Workbook

Sheet Algemene richtlijnen
A1: Algemene richtlijnen
A3: Algemeen: | B3: De groene tabbladen laten invoer toe met impact op uw aanvraag.
B4: De rode tabbladen bevatten parameters die u niet kan wijzigen.
B5: De oranje tabbladen hebben louter een informatieve waarde.
A7: Stappen
A8: 1 | B8: Bepaal voor welke zorgvormen en voor welke aanleidingen u een prijsaanvraag wenst in te dienen
B10: De zorgvormen zijn:
B11: - woonzorgcentrum inclusief kortverblijf;
B12: - centrum voor dagverzorging en centrum voor dagopvang;
B13: - groep van assistentiewoningen.
B15: De mogelijke aanleidingen zijn: | G15: kosteninvoer via:
B16: - infrastructuurforfait: eerste toekenning; | G16: 1A
B17: - drastische investeringen: geheel van investeringen waarvan minimaal 50% minimaal op twintig jaar wordt afgeschreven; | G17: 1A indien infrastructuurforfait / 1B indien geen infrastructuurforfait
B18: - niet-drastische investeringen: geheel van investeringen waarvan minder dan 50% minimaal op twintig jaar wordt afgeschreven; | G18: formulier 2
B19: - marge-evolutie; | G19: formulier 2
B20: - andere aanleidingen (zoals supplement in dagprijs of andere toeslagen). | G20: formulier 2
A22: 2 | B22: Hou rekening met: de mogelijkheden qua combinaties, de fasering van de prijsaanvragen en interferentie met indexatie:
B24: Beperking combinatie zorgvormen:
B25: Enkel voor WZC en kortverblijf samen kan 1 excel gebruikt worden.
B26: Voor een centrum voor dagverzorging (CDV)/centrum voor dagopvang of Groep Assistentiewoningen (GAW), dient telkens een aparte excel te worden gebruikt. Deze kunnen niet met elkaar of met het WZC/KV worden gecombineerd.
B28: Restrictie combinatie formulieren en aanleidingen binnen formulieren
B29: Voor dezelfde bewoners kunnen formulieren 1 en 2 niet gecombineerd worden.
B30: Voor dezelfde bewoners is het niet mogelijk om tabbladen 1A en 1B te combineren.
B31: Binnen formulier 2 is er geen combinatie mogelijk van marge-evolutie met niet-drastische investeringen.
B33: Fasering:
B34: Er moeten ten opzichte van een vorige aanvraag minstens 365 dagen verstreken zijn vooraleer een nieuwe aanvraag kan worden ingediend.
B35: De nieuwe aanvraag moet betrekking hebben op andere bewoners dan die waarvoor de vorige aanvraag werd ingediend, tenzij er minimaal twee jaar is verstreken ten opzichte van de vorige aanvraag.
B36: Een aanvraag voor een prijsbepaling of prijsverhoging van extra vergoedingen kan voor alle bewoners wel al na 365 dagen worden ingediend.
B38: Interferentie met indexatie:
B39: Bij overschrijding van de spilindex , dan kan prijs (vóór eventuele aftrek van een infrastructuurforfait) worden geïndexeerd binnen de periode van 365 dagen.
B40: Die indexatie kan niet samenvallen met de prijsaanvraag.
B41: Indien tijdens de behandelingstermijn van de prijsaanvraag de spilindex wordt overschreden, dan kan de voorziening daarentegen wel een aangepaste prijsaanvraag indienen.
A43: 3 | B43: De beslissingsboom ziet er als volgt uit:
E47: Tabblad 1A (a)
D49: JA
C50: Eerste prijsaanvraag voor eerste toekenning infrastructuurforfait of nieuwe aanvraag m.b.t. drastische investeringen voor bewoners met reeds infrastructuurforfait? | I50: Tabblad 1B (c)
H51: JA
D53: NEEN | E53: Investeringsproject met min.50% van de investeringen, afschrijvingsduur minimaal 20 jaar? (b)
I54: Formulier 2 (d): kies tussen: - marge-evolutie - andere aanleidingen
H55: NEEN
A61: 4 | B61: Stappenplan:
B63: Stap 1: U verdeelt de kosten over de verschillende zorgvormen en aanleidingen waarvoor u een prijsaanvraag wenst in te dienen.
B65: Case A:
B66: Een inrichtende macht heeft investeringen die toewijsbaar zijn aan een woonzorgcentrum en een groep van assistentiewoningen (GAW).
B67: Van de investeringen toewijsbaar aan de GAW, wordt 60% op 25 jaar afgeschreven.
B68: Binnen het woonzorgcentrum zijn er enerzijds kamerinvesteringen om voor die betrokken bewoners het infrastructuurforfait te bekomen en anderzijds collectieve investeringen die alle bewoners ten goede komen.
B69: De collectieve investeringen die alle bewoners van het woonzorgcentrum ten goede komen, worden integraal op minder dan twintig jaar afgeschreven.
B71: Welke zijn de zorgvormen en aanleidingen voor prijsaanvraag?
B72: De zorgvormen zijn enerzijds het woonzorgcentrum en anderzijds de groep van assistentiewoningen. Per zorgvorm vult u dus een excel in en dus 2 excels in totaal voor dit voorbeeld.
B73: Binnen de excel voor het woonzorgcentrum zijn er 2 aanleidingen voor prijsaanvraag: (1) infrastructuurforfait en (2) investeringen voor bewoners zonder infrastructuurforfait
B74: Binnen de excel voor de GAW is er maar 1 aanleiding, met name drastische investeringen.
B76: Stap 2: U doorloopt voor elke aanleiding de beslissingsboom om te bepalen in welk kostentabblad de kosten moeten ingevoerd worden:
B78: Case A (zelfde uitgangspunten als hiervoor):
B79: Voor de GAW stelt zich direct de vraag of minimaal de helft van de investeringen op minimaal twintig jaar wordt afgeschreven (beslissingsboom, b). Gezien "JA" gebeurt de kosteninvoer dus in tabblad 1B (belissingsboom, c) van de excel voor de GAW.
B80: Voor het woonzorgcentrum dienen we voor elke aanleiding en dus 2 maal de beslissingsboom te doorlopen:
B82: - investeringen voor infrastructuurforfait: gezien prijsaanvraag om het infrastructuurforfait toegekend te krijgen, geldt de kosteninvoer in tabblad 1A (a). Het toerekenbare deel van de collectieve investeringen wordt hierin mee opgenomen.
B83: - investeringen voor niet-infrastructuurforfaitgerechtigde bewoners: gezien deze investeringen op minder dan twintig jaar worden afgeschreven, is het antwoord op vraag (b) "NEEN" en geldt dus formulier 2 (=d uit de beslissingsboom).
B85: Binnen dezelfde excel voor het woonzorgcentrum gebeurt dus invoer in "1A-Infrastructuur met forfait" voor de bewoners met infrastructuurforfait en in "Formulier 2" voor de bewoners zonder infrastructuurforfait
B87: Case B: 3 jaar later
B88: Het woonzorgcentrum maakt 3 jaar later verlies. De zorgvorm is het woonzorgcentrum waarvoor dus 1 excel wordt ingediend.
B89: De aanleiding van de prijsaanvraag is marge-evolutie. Het woonzorgcentrum hanteert het formulier 2 voor alle bewoners. Voor de eerder forfaitgerechtigde bewoners wordt voor de huidige dagprijs uitgegaan van de dagprijs na aftrek van het infrastructuurforfait.
B91: Case C: 3 jaar later
B92: Het woonzorgcentrum besluit voor de bewoners waarvoor 3 jaar terug al een infrastructuurforfait was bekomen, een keuken te bouwen. De keuken wordt afgeschreven op 25 jaar.
B93: Gezien het een drastische investering betreft voor bewoners met reeds infrastructuurforfait (hoofdvraag beslissingsboom), zal opnieuw formulier 1A moeten ingevuld worden.
A95: Technische uitwerking: praktische kosteninvoer:
C97: wat? | D97: link
B98: 1) Vul het tabblad "generieke input" in | C98: dit tabblad bevat de identificatie en de capaciteitsgegevens waarvoor voor 1 of meerdere aanleidingen een prijsaanvraag wordt ingediend | D98: generieke input
B101: 2) Vul de kosten in de verschillende kostentabbladen in | C101: op basis van de gekozen situaties zal u 1 of meerdere kosten-tabbladen dienen in te vullen | D101: klik op de links in generieke input (rubriek 3.1)
B103: 3) Controleer het tabblad "Checklist" | C103: dit tabblad somt de voorgekomen fouten en vereiste documenten op: pas aan waar nodig | D103: controles
B105: 4) Print het outputtabblad uit en laat dit ondertekenen door de gemachtigden | D105: output
A201: 999999999999999

Sheet Generieke input
A1: Dagprijsaanvraag: generieke input
A3: Enkel de blauw aangeduide cellen kunnen (indien nodig) worden ingevuld | E3: Belangrijk: doorloop alle rubrieken. Vergeet niet om ook het jaar van aanvangsbevel in te vullen, tenzij het louter een aanvraag voor marge-evolutie betreft.
A4: 1. Datum aanvraag | C4: 2025-06-19 | D4: vul hier de datum van aanvraag in
A6: 2. Identificatie
B8: Naam inrichtende macht : | F8: Naam inrichtende macht | N8: in te vullen | V8: =IF(F8<>"",1,0) -> 1
B9: Rechtsvorm | F9: rechtsvorm: | N9: gelieve te selecteren in het uitklapveld | V9: =IF(F9<>"",1,0) -> 1
B10: Indien andere rechtsvorm: | N10: andere rechtsvorm in te vullen indien in de vorige cel "andere" werd geselecteerd | V10: 0
B11: Adres inrichtende macht: | F11: straat +nr, postcode + gemeente | N11: in te vullen: straat met huisnr, postcode met gemeente | V11: 1
B12: Naam voorziening: | F12: naam voorziening | N12: in te vullen | V12: 1
B13: Adres voorziening: | F13: =F11 -> straat +nr, postcode + gemeente | N13: in te vullen: straat met huisnr, postcode met gemeente | V13: 1
B14: Telefoonummer : | F14: xxxx/xx xx xx | N14: in te vullen | V14: 1
B15: Email: | F15: naam@extensie.be | N15: in te vullen | V15: 1
B16: Dossiernummer bij Zorg en Gezondheid (6 cijfers, in het midden gescheiden door .): | F16: gelieve hier uw dossiernummer bij Zorg en Gezondheid in te vullen | N16: in te vullen | V16: 1
B17: Ondernemingsnummer (zonder punten en met voorloopnul): | F17: geliever hier uw ondernemingsnummer in te vullen | N17: in te vullen | V17: 1
B18: Contactpersoon: | F18: voornaam + naam | N18: in te vullen | V18: 1
V19: =SUM(V8:V18) -> 10 | W19: =11-V19 -> 1
A20: 3. Aanleidingen prijsaanvraag en formulieren en kostentabbladen
A22: 3.1 Capaciteiten volgens aanleiding prijsaanvraag
B24: Vul hieronder voor de zorgvorm(en) waarvoor u momenteel een prijsaanvraag wenst in te dienen het volgende in: de totale capaciteit van de zorgvorm alsook de capaciteit waarvoor de prijsaanvraag wordt ingediend. Enkel het woonzorgcentrum en kortverblijf kunnen worden gecombineerd in 1 excel. Indien u naast een prijsaanvraag voor woonzorgcentrum en kortverblijf, ook nog een prijsaanvraag voor GAW en/of centrum voor dagverzorging/centrum voor dagopvang wenst in te dienen, dan dient u voor GAW en/of het centrum voor dagverzorging/centrum voor dagopvang een apart excelformulier te gebruiken. U dient dan meerdere excels in. Vul vervolgens de datum van het aanvangsbevel in rubriek 4 in. Daarna kan u door op de hyperlinks de groene zone te klikken (gebied F31:H31) naar de passende tabbladen navigeren om de kosten in te voeren.
F28: in te vullen | G28: in te vullen | H28: in te vullen | I28: niet in te vullen
C29: kolommen C-D: niet in te vullen | E29: in te vullen | F29: Capaciteiten voor prijsaanvraag
C30: Zorgvorm | D30: Capaciteitseenheid | E30: Erkende capaciteit | F30: Formulier 1: Infrastructuur | H30: Formulier 2 | I30: Totaal waarvoor prijsaanvraag | U30: check
F31: A: Met forfait | G31: B: Zonder forfait | U31: check aanw cap | V31: code | W31: cap ok? | X31: bezettingspercentage
C32: WZC | D32: bewoners | E32: 100 | F32: 0 | G32: 0 | H32: 0 | I32: =SUM(F32:H32) -> 0 | U32: =SUM(F32:H32) -> 0 | V32: =IF(U32>0,1,0) -> 0 | W32: =SUM(F32:H32)<=E32 -> TRUE
C33: CVK | D33: =D32 -> bewoners | E33: 0 | F33: 0 | G33: 0 | H33: 0 | I33: 0 | U33: =SUM(F33:H33) -> 0 | V33: =IF(U33>0,2,0) -> 0 | W33: =SUM(F33:H33)<=E33 -> TRUE | X33: 0.9 | Y33: =IF(U33>0,X33,0%) -> 0
C34: CDV/CDO | D34: gebruikers | E34: 0 | F34: 0 | G34: 0 | H34: 0 | I34: 0 | U34: =SUM(F34:H34) -> 0 | V34: =IF(U34>0,4,0) -> 0 | W34: =SUM(F34:H34)<=E34 -> TRUE | X34: 1 | Y34: =IF(U34>0,X34,0%) -> 0
C35: GAW | D35: bewoners | E35: 0 | F35: 0 | G35: 0 | H35: 0 | I35: 0 | U35: =SUM(F35:H35) -> 0 | V35: =IF(U35>0,8,0) -> 0 | W35: =SUM(F35:H35)<=E35 -> TRUE | X35: 0.95 | Y35: 0
E36: totaal: | F36: =SUM(F32:F35) -> 0 | G36: =SUM(G32:G35) -> 0 | H36: =SUM(H32:H35) -> 0 | I36: 0 | V36: =SUM(V32:V35) -> 0 | Y36: =SUM(Y33:Y35) -> 0
C38: Checks (geen input):
C39: De capaciteit in de prijsaanvraag/aanvragen ligt niet hoger dan de totale capaciteit? | H39: =IF(AND(W32,W33,W34,W35),"OK", "NIET OK") -> OK
C41: Indien keuze voor CDV of GAW, dan wordt dit niet gecombineerd met een andere zorgvorm? | H41: =IF(OR(V36=0,V36=1,V36=2,V36=3,V36=4,V36=8),"OK","NIET OK") -> OK | I41: Reden: CDV en GAW hebben elk een aparte erkenning, waarvoor dan een apart formulier moet worden ingediend.
I42: Ze kunnen dus noch met elkaar, noch met het WZC/KV gecombineerd worden voor de prijsaanvraag.
A45: 3.2 Bezettingsgraad (zoals berekend voor basistegemoetkoming zorg)
C47: =IF(OR(V36=1,V36=3), "U vraagt de prijs aan met betrekking tot woongelegenheden in een woonzorgcentrum. Hiervoor wordt de sectoriële bezettingsgraad gehanteerd:", IF(V36=4,"U doet een prijsaanvraag voor het CDV. De bezettingsgraad bedraagt dan 100%",IF((V36=2), "U vraagt de prijs aan louter met betrekking tot het kortverblijf.De bezettingsgraad bedraagt dan 90%",IF(V36=8,"U vraagt de prijs aan louter voor GAW's.De bezettingsgraad bedraagt dan 95%.","")))) ->  | K47: ='Parameters+keuzes'!C22 -> 0.9397 | W47: Bezettingsgraad voor formulieren: | AA47: =MIN(IF(OR(V36=1,V36=3),K47,Y36),100%) -> 0
W48: Indien formulier 2, aanvraag voor: | AA48: =IF(H32>0,C32,IF(H33>0,C33,IF(H34>0,C34,IF(H35>0,C35,"")))) -> 
A53: 4. Jaar aanvangsbevel werken en intrestvoet
C55: jaar aanvangsbevel | D55: 2023 | E55: in te vullen, tenzij louter marge-evolutie
C56: OLO + 200 bp | D56: =VLOOKUP(D55,'Parameters+keuzes'!A12:C17,3,0) -> 0.047

Sheet Parameters+keuzes
A1: Parameters | G1: Toelichting: | P1: Keuzes
A3: De parameters zoals hieronder vermeld, worden verder in 1 of meerdere prijsaanvragen gebruikt. Belangrijk is dat de parameters maar 1 maal per jaar worden geactualiseerd en dan voor een volledig jaar gelden. De informatie hierna is enkel ter consultatie.
A7: Parameters voor het jaar: | B7: 2025
A9: 1) OLO | P9: JA
P10: NEEN
A11: jaar aanvangsbevel | B11: OLO (min. 1%) | C11: OLO+200bp | D11: meting | P11: niet van toepassing
A12: 2021 | B12: =MAX(ROUND(AVERAGE('OLO-basis'!E234:E255)/100,4),1%) -> 0.01 | C12: =2%+B12 -> 0.03 | D12: 2020-12-31 | G12: bron: | H12: Yield of Belgian loans on the secondary market (nbb.be) | P12: rechtsvorm:
A13: 2022 | B13: =MAX(ROUND(AVERAGE('OLO-basis'!E485:E507)/100,4),1%) -> 0.01 | C13: =2%+B13 -> 0.03 | D13: 2021-12-31 | G13: berekeningswijze | H13: rekenkundig gemiddelde van de OLO (obligation linéaire, lineaire obligatie) op 10 jaar op basis van de waarnemingen in de maand december van het jaar voorafgaand aan het aanvangsbevel | P13: OCMW
A14: 2023 | B14: =MAX(ROUND(AVERAGE('OLO-basis'!E737:E757)/100,4),1%) -> 0.027 | C14: 0.047 | D14: 2022-12-31 | H14: bodembewaking: OLO bedraagt minimaal 1% | P14: AGB
A15: 2024 | B15: =MAX(ROUND(AVERAGE('OLO-basis'!E989:E1007)/100,4),1%) -> 0.027 | C15: 0.047 | D15: 2023-12-31 | G15: voorbeeld: | H15: OLO voor aanvangsbevel in 2021 = gemiddelde maand december 2020 | P15: BV
A16: 2025 | B16: =MAX(ROUND(AVERAGE('OLO-basis'!D1022:D1060)/100,4),1%) -> 0.028 | C16: 0.048 | D16: 2024-12-31 | G16: doel: | H16: bepaling financieringskost | P16: Commanditaire
A17: 2026 | C17: 0.02 | D17: 2025-12-31 | P17: Natuurlijke persoon
P18: NV
A19: 2) sectorale bezettingscijfers | P19: Provincie
P20: VZW
A21: beschikbaar op | B21: van toepassing op | G21: bron: | H21: bezettingsgraad conform methodologie van het infrastructuurforfait | P21: Andere
A22: 2023-12-31 | B22: 2024 | C22: 0.9397 | G22: berekeningswijze | H22: meest actuele referentieperiode van: | L22: 1/7/2022-30/6/2023
G23: doel: | H23: doorrekening van de kosten gebeurt op basis van de bezettingsgraad
A25: 3) forfait
B26: cijfer | C26: tekst
B27: 6.29 | C27: =TEXT(forfait,"#,00") -> 6,29 | G27: bron: | H27: Infrastructuurforfait (zorg-en-gezondheid.be)
A29: 4) gewogen gemiddelde dagprijs private sector
A30: berekend op basis van: | B30: van toepassing op: | C30: WZC | D30: GAW | G30: bron: | H30: WZC: | I30: dagprijsbevraging = prijs na aftrek van het infrastructuurforfait
A31: 2022 | B31: 2023 | C31: 65 | D31: 40 | H31: GAW | I31: vaste prijs: 40 euro + 25% = 50 euro
A32: 2023 | B32: 2024 | C32: 71.6 | D32: 40 | G32: berekeningswijze: | H32: jaarljkse bevraging van mei voorgaand jaar
G33: doel: | H33: beperking dagprijsstijging voor voorzieningen met bovengemiddelde dagprijs
A36: 5) afgevlakte gezondheidheidsindex
A37: december: | G37: bron: | H37: be.STAT (fgov.be)
A38: 2017 | B38: 103.72 | G38: doel: | H38: toetsing woonzorgcentra met bovengemiddelde dagprijs
A39: 2018 | B39: 106.01
A40: 2019 | B40: 106.76
A41: 2020 | B41: 107.72
A42: 2021 | B42: 111.97
A43: 2022 | B43: 124.5
A44: 2023 | B44: 125.91
A45: 2024 | B45: 130.42
A46: 6) geïndexeerde opstappen | G46: berekeningswijze: enkel bij overschrijden van een veelvoud van 0,5 euro worden deze opstappen aangepast aan de afgevlakte gezondheidsindex
A48: 2024 | B48: 6 | C48: 3

Sheet OLO-basis
A1: Dataset: Long term yield of the reference loans 11am
A2: Frequency | D2: Daily | H2: Yield of Belgian loans on the secondary market (nbb.be)
A3: Country | B3: Time
A4: Belgium | B4: 2020-01-02 | E4: 0.09
B5: 2020-01-03 | E5: -0.01
B6: 2020-01-06 | E6: -0.01
B7: 2020-01-07 | E7: 0
B8: 2020-01-08 | E8: 0
B9: 2020-01-09 | E9: 0.03
B10: 2020-01-10 | E10: 0.03
B11: 2020-01-13 | E11: 0.05
B12: 2020-01-14 | E12: 0.05
B13: 2020-01-15 | E13: 0.02
B14: 2020-01-16 | E14: 0.01
B15: 2020-01-17 | E15: 0.01
B16: 2020-01-20 | E16: 0.03
B17: 2020-01-21 | E17: 0.01
B18: 2020-01-22 | E18: -0.01
B19: 2020-01-23 | E19: -0.05
B20: 2020-01-24 | E20: -0.07
B21: 2020-01-27 | E21: -0.12
B22: 2020-01-28 | E22: -0.16
B23: 2020-01-29 | E23: -0.14
B24: 2020-01-30 | E24: -0.16
B25: 2020-01-31 | E25: -0.16
B26: 2020-02-03 | E26: -0.19
B27: 2020-02-04 | E27: -0.16
B28: 2020-02-05 | E28: -0.04
B29: 2020-02-06 | E29: -0.03
B30: 2020-02-07 | E30: -0.07
B31: 2020-02-10 | E31: -0.08
B32: 2020-02-11 | E32: -0.08
B33: 2020-02-12 | E33: -0.06
B34: 2020-02-13 | E34: -0.11
B35: 2020-02-14 | E35: -0.1
B36: 2020-02-17 | E36: -0.11
B37: 2020-02-18 | E37: -0.12
B38: 2020-02-19 | E38: -0.12
B39: 2020-02-20 | E39: -0.12
B40: 2020-02-21 | E40: -0.16
B41: 2020-02-24 | E41: -0.19
B42: 2020-02-25 | E42: -0.18
B43: 2020-02-26 | E43: -0.18
B44: 2020-02-27 | E44: -0.18
B45: 2020-02-28 | E45: -0.25
B46: 2020-03-02 | E46: -0.25
B47: 2020-03-03 | E47: -0.2
B48: 2020-03-04 | E48: -0.27
B49: 2020-03-05 | E49: -0.25
B50: 2020-03-06 | E50: -0.27
B51: 2020-03-09 | E51: -0.33
B52: 2020-03-10 | E52: -0.24
B53: 2020-03-11 | E53: -0.21
B54: 2020-03-12 | E54: -0.27
B55: 2020-03-13 | E55: 0.01
B56: 2020-03-16 | E56: 0.11
B57: 2020-03-17 | E57: 0.34
B58: 2020-03-18 | E58: 0.54
B59: 2020-03-19 | E59: 0.19
B60: 2020-03-20 | E60: 0.2
B61: 2020-03-23 | E61: 0.14
B62: 2020-03-24 | E62: 0.18
B63: 2020-03-25 | E63: 0.25
B64: 2020-03-26 | E64: 0.21
B65: 2020-03-27 | E65: 0
B66: 2020-03-30 | E66: -0.29
B67: 2020-03-31 | E67: 0.02
B68: 2020-04-01 | E68: 0.05
B69: 2020-04-02 | E69: 0.13
B70: 2020-04-03 | E70: 0.1
B71: 2020-04-06 | E71: 0.14
B72: 2020-04-07 | E72: 0.18
B73: 2020-04-08 | E73: 0.22
B74: 2020-04-09 | E74: 0.23
B75: 2020-04-14 | E75: 0.2
B76: 2020-04-15 | E76: 0.16
B77: 2020-04-16 | E77: 0.14
B78: 2020-04-17 | E78: 0.11
B79: 2020-04-20 | E79: 0.12
B80: 2020-04-21 | E80: 0.14
B81: 2020-04-22 | E81: 0.19
B82: 2020-04-23 | E82: 0.2
B83: 2020-04-24 | E83: 0.18
B84: 2020-04-27 | E84: 0.12
B85: 2020-04-28 | E85: 0.12
B86: 2020-04-29 | E86: 0.07
B87: 2020-04-30 | E87: 0.04
B88: 2020-05-04 | E88: 0
B89: 2020-05-05 | E89: 0.04
B90: 2020-05-06 | E90: 0.03
B91: 2020-05-07 | E91: 0.09
B92: 2020-05-08 | E92: 0.02
B93: 2020-05-11 | E93: 0.06
B94: 2020-05-12 | E94: 0.06
B95: 2020-05-13 | E95: 0.04
B96: 2020-05-14 | E96: 0.02
B97: 2020-05-15 | E97: 0.03
B98: 2020-05-18 | E98: 0.03
B99: 2020-05-19 | E99: 0.05
B100: 2020-05-20 | E100: 0.06
B101: 2020-05-25 | E101: 0.03
B102: 2020-05-26 | E102: 0.06
B103: 2020-05-27 | E103: 0.04
B104: 2020-05-28 | E104: 0.03
B105: 2020-05-29 | E105: -0.01
B106: 2020-06-02 | E106: 0.01
B107: 2020-06-03 | E107: 0.03
B108: 2020-06-04 | E108: 0.07
B109: 2020-06-05 | E109: 0.05
B110: 2020-06-08 | E110: 0.06
B111: 2020-06-09 | E111: 0.02
B112: 2020-06-10 | E112: 0.05
B113: 2020-06-11 | E113: 0.01
B114: 2020-06-12 | E114: -0.03
B115: 2020-06-15 | E115: -0.07
B116: 2020-06-16 | E116: -0.05
B117: 2020-06-17 | E117: -0.03
B118: 2020-06-18 | E118: -0.06
B119: 2020-06-19 | E119: -0.08
B120: 2020-06-22 | E120: -0.1
B121: 2020-06-23 | E121: -0.12
B122: 2020-06-24 | E122: -0.11
B123: 2020-06-25 | E123: -0.13
B124: 2020-06-26 | E124: -0.15
B125: 2020-06-29 | E125: -0.14
B126: 2020-06-30 | E126: -0.15
B127: 2020-07-01 | E127: -0.12
B128: 2020-07-02 | E128: -0.09
B129: 2020-07-03 | E129: -0.14
B130: 2020-07-06 | E130: -0.13
B131: 2020-07-07 | E131: -0.15
B132: 2020-07-08 | E132: -0.16
B133: 2020-07-09 | E133: -0.14
B134: 2020-07-10 | E134: -0.17
B135: 2020-07-13 | E135: -0.15
B136: 2020-07-14 | E136: -0.14
B137: 2020-07-15 | E137: -0.17
B138: 2020-07-16 | E138: -0.16
B139: 2020-07-17 | E139: -0.17
B140: 2020-07-20 | E140: -0.16
B141: 2020-07-22 | E141: -0.18
B142: 2020-07-23 | E142: -0.21
B143: 2020-07-24 | E143: -0.18
B144: 2020-07-27 | E144: -0.18
B145: 2020-07-28 | E145: -0.21
B146: 2020-07-29 | E146: -0.22
B147: 2020-07-30 | E147: -0.23
B148: 2020-07-31 | E148: -0.24
B149: 2020-08-03 | E149: -0.22
B150: 2020-08-04 | E150: -0.25
B151: 2020-08-05 | E151: -0.25
B152: 2020-08-06 | E152: -0.24
B153: 2020-08-07 | E153: -0.26
B154: 2020-08-10 | E154: -0.25
B155: 2020-08-11 | E155: -0.26
B156: 2020-08-12 | E156: -0.21
B157: 2020-08-13 | E157: -0.21
B158: 2020-08-14 | E158: -0.14
B159: 2020-08-17 | E159: -0.16
B160: 2020-08-18 | E160: -0.19
B161: 2020-08-19 | E161: -0.22
B162: 2020-08-20 | E162: -0.22
B163: 2020-08-21 | E163: -0.24
B164: 2020-08-24 | E164: -0.22
B165: 2020-08-25 | E165: -0.19
B166: 2020-08-26 | E166: -0.16
B167: 2020-08-27 | E167: -0.19
B168: 2020-08-28 | E168: -0.13
B169: 2020-08-31 | E169: -0.13
B170: 2020-09-01 | E170: -0.13
B171: 2020-09-02 | E171: -0.2
B172: 2020-09-03 | E172: -0.21
B173: 2020-09-04 | E173: -0.22
B174: 2020-09-07 | E174: -0.2
B175: 2020-09-08 | E175: -0.21
B176: 2020-09-09 | E176: -0.24
B177: 2020-09-10 | E177: -0.2
B178: 2020-09-11 | E178: -0.21
B179: 2020-09-14 | E179: -0.24
B180: 2020-09-15 | E180: -0.23
B181: 2020-09-16 | E181: -0.25
B182: 2020-09-17 | E182: -0.24
B183: 2020-09-18 | E183: -0.26
B184: 2020-09-21 | E184: -0.28
B185: 2020-09-22 | E185: -0.3
B186: 2020-09-23 | E186: -0.29
B187: 2020-09-24 | E187: -0.3
B188: 2020-09-25 | E188: -0.28
B189: 2020-09-28 | E189: -0.29
B190: 2020-09-29 | E190: -0.31
B191: 2020-09-30 | E191: -0.33
B192: 2020-10-01 | E192: -0.29
B193: 2020-10-02 | E193: -0.31
B194: 2020-10-05 | E194: -0.31
B195: 2020-10-06 | E195: -0.3
B196: 2020-10-07 | E196: -0.3
B197: 2020-10-08 | E197: -0.3
B198: 2020-10-09 | E198: -0.33
B199: 2020-10-12 | E199: -0.33
B200: 2020-10-13 | E200: -0.34
... 860 more rows

Sheet 1A-Infrastructuur met forfait (hidden)
A1: Prijsaanvraag infrastructuur met infrastructuurforfait
B2: Klik hier indien terug naar generieke input
B3: Enkel de lichtblauw gekleurde velden dienen te worden ingevuld
B4: Dit kostentabblad '1A' wordt ingevuld naar aanleiding van de investeringen die u uitvoert om het infrastructuurforfait te kunnen bekomen. Dit formulier wordt ook gebruikt voor drastische investeringen voor bewoners met een reeds lopend infrastructuurforfait (i.e. waarvoor in het verleden reeds de prijsaanvraag en het infrastructuurforfait werden goedgekeurd). Indien u voor bewoners met een lopend infrastructuurforfait voor een andere aanleiding dan drastische investeringen een prijsaanvraag wenst in te dienen, dan hanteert u het formulier 2.
A9: 1. Verantwoording van de gevraagde gemiddelde dagprijs
B11: Totaal verantwoorde dagprijs met aftrek forfait | E11: =IFERROR(G39+G65+G85+G126,0) -> 0 | F11: niet invullen, wordt automatisch berekend
B13: 1.1 Kamerinvesteringen
B15: Hierna neemt u de kost van de infrastructuurinvesteringen op, voor het deel dat betrekking heeft op de infrastructuurforfaitgerechtigde capaciteit. Die infrastructuurkost kan zowel betrekking hebben op een gebouw in eigendom of via een huurovereenkomst. In geval van huur dient de investeringskost van de verhuurder te worden verrekend. De financieringskost wordt automatisch berekend op basis van de OLO + 200 bp, zoals bepaald in het tabblad 'generieke input'. BELANGRIJK: voor de bouw- en aankoopkost onder 1.1 en de investeringskost onder 1.2, dient steeds ter verantwoording een excel met een kostenoverzicht te worden toegevoegd. Dit overzicht vermeldt per kostencategorie minimaal het bedrag, het verantwoordingsstuk en de referentie voor het verantwoordingsstuk. U kan daarvoor ook het tabblad "Bijlage investeringsoverzicht" gebruiken en op de rij 21 de link leggen naar de kostentotalen vermeld in hetzij tabel 3a of hetzij 3b. Het kostenoverzicht laat toe om steekproefgewijs verantwoordingsstukken op te vragen. In volgorde van verantwoordingswaarde zijn dit : facturen, gunningsbeslissingen, offertes, raming van architect of afschrijvingstabel. Deze verantwoordingsstukken mogen niet ouder zijn dan twee jaar, tenzij zij behoren tot een groter geheel van verantwoordingsstukken waarbij de afsluitende factuur/vorderingsstaat niet ouder is dan 2 jaar.
B18: totaalbedragen in euro over economische levensduur investering
E20: Gebouw | H20: Meubilair
B21: bouw/aankoopkost van forfaitgerechtigde capaciteit | E21: 0 | H21: 0 | K21: vermeld bedragen inclusief aankoopkosten, registratierechten, voor investering forfaitgerechtigde capaciteit
B22: kapitaalsubsidie uitbetaald over bouwperiode | K22: vermeld subsidies die tijdens de bouwperiode worden uitbetaald
B23: totale BTW-recuperatie | K23: vermeld de BTW die kan teruggevorderd worden
B24: te financieren bouwkost | E24: =E21-E22-E23 -> 0 | H24: =H21-H22-H23 -> 0 | K24: wordt automatisch berekend
B25: financieringskost | E25: =IF(bouwkost_werken>0,25*-PMT('Generieke input'!D56,25,bouwkost_netto_werken)-bouwkost_netto_werken,0) -> 0 | H25: =10*-PMT('Generieke input'!D56,10,bouwkost_werken_meubilair)-bouwkost_werken_meubilair -> 0 | K25: wordt automatisch berekend
B26: bouwkost incl. financieringskost | E26: =E24+E25 -> 0 | H26: =H24+H25 -> 0 | K26: wordt automatisch berekend
B27: onroerende voorheffing/belasting | E27: 0 | H27: 0 | K27: vermeld indien voorkomend, totaalbedrag van onroerende voorheffing (ongeïndexeerd) over economische levensduur
B28: netto bouw- en financieringskost | E28: =E26+onroerende_voorheffing -> 0 | H28: =H26+onroerende_voorheffing -> 0 | K28: wordt automatisch berekend
B29: aantal plaatsen onder forfait en waarop investeringskost van toepassing | E29: ='Generieke input'!F36 -> 0 | H29: =erkende_plaatsen1 -> 0 | K29: dit stemt overeen met de capaciteit v/h forfait zoals bepaald in het tabblad "Generieke input", rubriek 3.1
B30: afschrijvingsduur (in jaren) | E30: 25 | H30: 10 | K30: ligt standaard vast
B31: aantal dagen | E31: 365 | H31: 365 | K31: ligt vast
B32: bezettingsgraad | E32: ='Generieke input'!AA47 -> 0 | H32: =bezettingsgraad_werken -> 0 | K32: is functie van de zorgvorm zoals bepaald in het tabblad "Generieke input", rubriek 3.2
B33: infrastructuurkost in dagprijs | E33: =IFERROR(E28/E30/E31/E29/E32,0) -> 0 | H33: =IFERROR(H28/H30/H31/H29/H32,0) -> 0
B37: Infrastructuurcomponent in dagprijs incl. gederfd forfait | G37: =IFERROR((nettobouwkost_werken/afschrijvingsduur_nieuwbouw+nettobouwkost_meubilair/afschrijvingsduur_meubilair)/(erkende_plaatsen1*365*bezettingsgraad_werken),0) -> 0 | J37: wordt berekend
B38: - forfait | G38: =forfait -> 6.29 | J38: zie tabblad "Parameters + keuzes"
B39: infrastructuurcomponent in dagprijs na aftrek forfait | G39: =MAX(infrastructuurcomponent_dagprijs-G38,0) -> 0 | J39: wordt berekend
B40: Motivatie: | G40: voor de bouwkost werd gekozen voor hetzij (verwijder wat niet van toepassing is): eindafrekening / samenvattende vorderingsstaat/ geattesteerde afschrijvingstabel/ facturen/ gunningsbeslissing/ andere: ... Let op: de verantwoordingsstukken mogen niet ouder dan twee jaar zijn
B41: in geval van een investering derde partij: huurcontract, erfpachtovereenkomst, opstalovereenkomst, letter of intent waarin de bouwkost kan teruggevonden worden.
B43: Toe te voegen bijlagen: | F43: zowel in geval van een bouw onder eigen regie of in geval van huur bezorgt u: - exceloverzicht van alle bouwkosten met vermelding van het bedrag, het verantwoordingsstuk en daarnaast de referentie voor het verantwoordingsstuk. U kan ook het tabblad hiernaast "bijlage investeringsoverzicht" aanpassen en vanuit deze excel linken naar dit tabblad - vervolgens zullen de verantwoordingsstukken steekproefgewijs worden opgevraagd. In volgorde van belang zijn dit : facturen, gunningsbeslissingen, offertes, raming van architect, afschrijvingstabel, andere (extract uit boekhouding)...
B45: 1.2 Andere investeringen
B47: Vermeld hierna de andere, niet-infrastructuurinvesteringen, voor het deel dat betrekking heeft op/kan toegerekend worden aan de bewoners met infrastructuurforfait. In de blauwe hoofding past u de omschrijving van de investeringssoort aan. Het betreft investeringen die samenhangen met de infrastructuurinvesteringen. Als financieringskost wordt opnieuw de OLO op 10 jaar +200 bp genomen, zoals bepaald in het tabblad 'Generieke input'.
R49: =SUM(E51:Q51,E21:J21) -> 0
E50: Investering1 | G50: Investering2 | J50: Investering3 | M50: Investering4 | R50: vrij te wijzigen
B51: Eenmalige investeringskost (eventueel bij verhuurder) | E51: 0 | G51: ='Bijlage investeringsoverzicht'!C243 -> 0 | J51: ='Bijlage investeringsoverzicht'!D216 -> 0 | M51: ='Bijlage investeringsoverzicht'!C239 -> 0 | R51: in te vullen
B52: kapitaalsubsidie uitbetaald gedurende bouwperiode | R52: in te vullen
B53: totale BTW-recuperatie | R53: in te vullen
B54: Totale netto investeringskost | E54: =E51-ABS(E52)-ABS(E53) -> 0 | G54: =G51-ABS(G52)-ABS(G53) -> 0 | J54: =J51-ABS(J52)-ABS(J53) -> 0 | M54: =M51-ABS(M52)-ABS(M53) -> 0 | R54: wordt automatisch berekend
B55: financieringskost | E55: =IFERROR(-PMT('Generieke input'!D56,E59,E54)*E59-E54,0) -> 0 | G55: =IFERROR(-PMT('Generieke input'!D56,G59,G54)*G59-G54,0) -> 0 | J55: =IFERROR(-PMT('Generieke input'!D56,J59,J54)*J59-J54,0) -> 0 | M55: =IFERROR(-PMT('Generieke input'!D56,M59,M54)*M59-M54,0) -> 0 | R55: wordt automatisch berekend
B56: Investeringskost inclusief financieringskost | E56: =E54+E55 -> 0 | G56: =G54+G55 -> 0 | J56: =J54+J55 -> 0 | M56: =M54+M55 -> 0 | R56: wordt automatisch berekend
B57: gespreide subsidie | E57: 0 | G57: 0 | J57: 0 | M57: 0 | R57: in te vullen
B58: Netto investerings- en financieringskost | E58: =E56-E57 -> 0 | G58: =G56-G57 -> 0 | J58: =J56-J57 -> 0 | M58: =M56-M57 -> 0 | R58: wordt berekend
B59: Afschrijvingsduur investeringkost (in jaren) | E59: ='Bijlage investeringsoverzicht'!A240 -> 5 | G59: ='Bijlage investeringsoverzicht'!A243 -> 20 | J59: ='Bijlage investeringsoverzicht'!B216 -> 10 | M59: ='Bijlage investeringsoverzicht'!A239 -> 3 | R59: vermeld de economische levensduur, hier kan u wel een afwijkende afschrijvingsduur invullen, maar deze dient wel gebaseerd te zijn op aanvaarde waarderingsregels
B60: =B29 -> aantal plaatsen onder forfait en waarop investeringskost van toepassing | E60: =erkende_plaatsen1 -> 0 | G60: =E60 -> 0 | J60: =G60 -> 0 | M60: =J60 -> 0 | R60: =K29 -> dit stemt overeen met de capaciteit v/h forfait zoals bepaald in het tabblad "Generieke input", rubriek 3.1
B61: Aantal dagen | E61: 365 | G61: 365 | J61: 365 | M61: 365 | R61: =K31 -> ligt vast
B62: bezettingsgraad | E62: =bezettingsgraad_werken -> 0 | G62: =E62 -> 0 | J62: =G62 -> 0 | M62: =J62 -> 0 | R62: =K32 -> is functie van de zorgvorm zoals bepaald in het tabblad "Generieke input", rubriek 3.2
B63: investeringskost/periodieke vergoeding in dagprijs | E63: =IFERROR(ROUND(E58/E59/E61/E60/E62,2),0) -> 0 | G63: =IFERROR(ROUND(G58/G59/G61/G60/G62,2),0) -> 0 | J63: =IFERROR(ROUND(J58/J59/J61/J60/J62,2),0) -> 0 | M63: =IFERROR(ROUND(M58/M59/M61/M60/M62,2),0) -> 0 | R63: wordt berekend
B65: Overige investeringskosten in dagprijs: | G65: =E63+G63+J63+M63 -> 0 | J65: wordt berekend
B69: Toe te voegen bijlagen: | F69: analoog met de bijlagen vermeld bij 1.1
B72: 1.3 Kosten van personeel in dienstverband na verrekening van de overheidstussenkomsten
B74: Deze rubriek heeft betrekking op alle personeel, inclusief het zelfstandige zorgpersoneel en uitzendpersoneel. Enkel de bestuurders worden aan de diensten en diverse leveringen toegerekend. Enkel het personeel voor de infrastructuurforfaitgerechtigde capaciteit mag hier worden ingevuld. In geval van uitbreiding van capaciteit zijn de VTE's, personeelskosten en bepaalde overheidstussenkomsten op kruissnelheid wanneer de volledige uitgebreide capaciteit wordt bereikt. Hierbij mag echter geen rekening gehouden worden met de toekomstige inflatie gedurende het groeipad naar die volledige capaciteit, gezien die achteraf bekomen wordt via de indexering van de dagprijs. Vul hier per personeelscategorie op jaarbasis in: het aantal VTE, personeelskost en overheidstussenkomst (=voor de laatste 2 is dit het totaalbedrag, niet het bedrag per verblijfsdag). Personeelscategorieën: - zorgpersoneel = verpleegkundigen, zorgkundigen (verzorgenden), kinesitherapeuten, logopedisten, ergotherapeuten, personeel voor reactivatie; - administratief (inclusief directie), logistiek, technisch, poets- en keukenpersoneel: al het overige personeel dat niet tot de voorgaande categorie behoort Personeelskost: is brutoloonkost inclusief werkgeversbijdrage. Verzekeringen en andere overheadkosten worden hier niet vermeld, maar onder rubriek 1.4. Overheidstussenkomsten: Vul hier steeds het totaalbedrag en niet het bedrag per verblijfsdag in. De basistegemoetkoming voor zorg die in mindering wordt gebracht, heeft ook betrekking op de tussenkomst voor niet-personeelskosten (de basistegemoetkoming voor zorg mag echter integraal in mindering gebracht worden op de personeelskosten, zodat dit niet meer moet versleuteld worden naar rubriek 1.4). Overheidstussenkomsten (zoals elementen sociale akkoorden) die betrekking hebben op verschillende personeelscategorieën probeert u toe te wijzen volgens de detailberekening of, indien niet mogelijk, via een logische verdeelsleutel. U dient uiteraard enkel de overheidstussenkomst in te vullen voor de personeelscategorieën waarop die betrekking heeft. Belangrijk is dat alle componenten van de overheidstussenkomst worden opgenomen: voor een checklist zie tabblad "checklist overheidstussenkomst"
E77: Aantal VTE | F77: Personeelkost | G77: Basistegemoetkoming zorg (*) | H77: Eindeloopbaan (*) | I77: Fondsen maribel (*) | J77: Aanvullende financiering (*) | K77: IFIC | L77: Andere (vb. OCVK, nomenclatuur, jongdementie *) | M77: Nettokost
B78: Zorgpersoneel | E78: 0 | F78: 0 | G78: 0 | H78: 0 | I78: 0 | J78: 0 | K78: 0 | L78: 0 | M78: =F78-SUM(G78:L78) -> 0 | N78: in te vullen, behalve in kolom M
B79: Administratief, Logistiek, technisch, poets- en keukenpersoneel | E79: 0 | F79: 0 | G79: 0 | H79: 0 | I79: 0 | J79: 0 | K79: 0 | L79: 0 | M79: =F79-SUM(G79:L79) -> 0 | N79: in te vullen, behalve in kolom M
B80: Totaal | M80: =SUM(M78:N79) -> 0 | N80: in te vullen, behalve in kolom M
B81: (*) Voor een opsomming van de componenten van de basistegemoetkoming voor zorg en de overige overheidstussenkomsten, volg deze link: | I81: checklist overheidstussenkomst
B82: Totale netto-personeelskost | E82: =M80 -> 0 | F82: wordt berekend
B83: Aantal verblijfsdagen | E83: =IFERROR(erkende_plaatsen1*365*bezettingsgraad_werken,0) -> 0 | F83: wordt berekend
B85: Personeelskosten na overheidstussenkomst in dagprijs: | G85: =IFERROR(E82/E83,0) -> 0 | J85: wordt berekend
B86: Motivatie/bewijsstukken: | G86: eventuele toelichting sociale balans, extract resultatenrekening of businessplan
B88: 1.4 Producten en diensten en diverse leveringen te verrekenen in dagprijs
B90: Vul hierna in kolom E de andere kosten voor producten en diensten en diverse leveringen in met betrekking tot de forfaitgerechtigde infrastructuur. Hiervoor worden enkel die kosten opgenomen die niet eerder in de vorige rubrieken werden aangerekend. U vult daartoe in kolom E, waar van toepassing, de kosten op detailniveau in. Indien dit niet kan, mag u zich beperken tot de zwart omrande cellen/kaders. In sommige gevallen betekent dit dat u een automatisch berekend totaal zal overschrijven. Het totaal van de andere kosten voor producten en diensten en diverse leveringen wordt slechts verrekend in de dagprijs na aftrek van het deel dat reeds via een supplement werd doorgerekend. Naast "supplementen en voorschotten" vult u in kolom E het totaalbedrag aan supplementen en voorschotten in dat reeds door de bewoners wordt betaald en dus niet dient verrekend te worden in de dagprijs. In kolom F wordt vervolgens de gemiddelde kost per verblijfsdag berekend
B92: Producten: | E92: Totaal (in te vullen volgens instructies in kolom G) | F92: Kost per verblijfsdag (wordt berekend)
C93: Totaal | E93: =SUM(E94:E101) -> 0 | F93: =IFERROR(E93/$E$124,0) -> 0 | G93: wordt berekend of wordt, indien voorkomend, ingevuld indien cellen met detailinformatie met groene commentaar niet worden ingevuld
D94: Aankopen voeding | E94: 0 | F94: 0 | G94: facultatief in te vullen
D95: Aankopen medisch, verzorgingsmateriaal | E95: 0 | F95: 0 | G95: facultatief in te vullen
D96: Klein materiaal voor onderhoud | E96: 0 | F96: 0 | G96: facultatief in te vullen | H96: in zoverre geen groot, eigenaarsonderhoud. Kost van vervanging van bv. lift, zit in economische afschrijving van de infrastructuur
D97: Socioculturele activiteiten en ontspanning | E97: 0 | F97: 0 | G97: facultatief in te vullen
D98: Bureel en informatica | E98: 0 | F98: 0 | G98: facultatief in te vullen | H98: software wordt hier opgenomen in zoverre niet opgenomen onder 1.2, klein kantoormaterieel (perforator, mappen, nietjesmachine)
D99: Textiel en wasproducten | E99: 0 | F99: 0 | G99: facultatief in te vullen
D100: Toilet en opschik | E100: 0 | F100: 0 | G100: facultatief in te vullen
D101: Andere | E101: 0 | F101: 0 | G101: facultatief in te vullen
B103: Diensten en diverse leveringen:
C104: Externe diensten | E104: =SUM(E105:E112) -> 0 | F104: =IFERROR(E104/E124,0) -> 0 | G104: wordt berekend of wordt, indien voorkomend, ingevuld indien cellen met detailinformatie met groene commentaar niet worden ingevuld
D105: Sociaal secretariaat | E105: 0 | F105: =IFERROR(E105/$E$124,0) -> 0 | G105: facultatief in te vullen
D106: Boekhouding/adm/zorgtoepassing | E106: 0 | F106: 0 | G106: facultatief in te vullen | H106: externe accountant, bedrijfsrevisor, boekhouder in loondienst zit onder 1.3
D107: Informatieverwerking | E107: 0 | F107: 0 | G107: facultatief in te vullen | H107: informatieverwerking door derden, bvb. met betrekking tot sectoranalyses door derden, berekeningen personeelsinzet,…
D108: Keuken | E108: 0 | F108: 0 | G108: facultatief in te vullen | H108: externe keuken, interne keuken zit voor de invsteringen onder 1.3 andere investeringen en voor de personeelskosten onder 1.3
D109: Was en linnen | E109: 0 | F109: 0 | G109: facultatief in te vullen
D110: Onderhoud en schoonmaak | E110: 0 | F110: 0 | G110: facultatief in te vullen | H110: enkel gebruikersonderhoud, geen groot onderhoud/verbouwing gezien gedekt door afschrijvingen
D111: Vergoedingen en erelonen | E111: 0 | F111: 0 | G111: facultatief in te vullen | H111: vergoedingen/erelonen advocaten, notarissen
D112: Andere | E112: 0 | F112: 0 | G112: facultatief in te vullen
C113: Onderhoud en herstellingen | E113: 0 | F113: 0 | G113: indien voorkomend, in te vullen
C114: Verzekeringen | E114: 0 | F114: 0 | G114: indien voorkomend, in te vullen
C115: Administratie | E115: 0 | F115: 0 | G115: indien voorkomend, in te vullen
C116: Externe medische verzorging | E116: 0 | F116: 0 | G116: indien voorkomend, in te vullen
C117: Bezoldiging bestuurders | E117: 0 | F117: 0 | G117: indien voorkomend, in te vullen
C118: Aankopen energie | E118: 0 | F118: 0 | G118: indien voorkomend, in te vullen
B121: Supplementen en voorschotten ten gunste van derden | E121: 0 | F121: =IFERROR(E121/E124,0) -> 0 | G121: gelieve het bedrag van supplementen en voorschotten in te vullen met betrekking tot voorgaande kostencategorieën
G122: gelieve in bijlage het detail van de supplementen toe te lichten: | K122: bijlage supplement
B123: Totale nettokosten diensten en diverse leveringen (na aftrek suppelementen en voorschotten) | E123: =E93+E104+SUM(E113:E118)-ABS(E121) -> 0 | F123: wordt berekend
B124: Aantal verblijfsdagen | E124: =E83 -> 0 | F124: wordt berekend
B126: Producten en diensten en diverse leveringen in dagprijs: | G126: =IFERROR(E123/E124,0) -> 0 | J126: wordt berekend
B127: Motivatie: | G127: voor bepaalde posten zullen bijkomende verantwoordingsstukken worden opgevraagd
A131: 2. Evaluatie dagprijzen
B133: Verantwoorde prijs na aftrek forfait | E133: =ROUND(E11,2) -> 0 | F133: wordt berekend: som van 1.1 - 1.4
B135: 2.1 Aangevraagde dagprijzen voor nieuwe bewoners
B137: Vermeld hier voor de kamers in de vernieuwde infrastructuur waarop het forfait van toepassing is, de dagprijzen na aftrek van het forfait die u zou willen hanteren indien die forfaitgerechtigde capaciteit volledig bewoond zou zijn door nieuwe bewoners. Vermeld per kamertype de forfaitgerechtigde capaciteit (kolom E) en de nettodagprijs (=prijs na aftrek van het forfait, kolom F). In de kolom G, "Brutodagprijs" wordt de dagprijs zonder aftrek van het forfait berekend. Het totaal van de forfaitgerechtigde capaciteit moet overeenstemmen met wat in de "Generieke Input" werd vermeld in cel F36. Het deel van de verantwoorde kosten met betrekking tot de niet-forfaitgerechtigde capaciteit dient hetzij via 1B (indien geheel van toewijsbare investeringen drastische investeringen zijn) of via formulier 2 (indien geen drastische investeringen) te worden verrekend. De gevraagde dagprijzen na aftrek forfait worden slechts aanvaard indien het gemiddelde hiervan niet hoger ligt dan de "verantwoorde prijs na aftrek forfait" (cel E133).
B141: in te vullen | E141: in te vullen | F141: in te vullen | G141: wordt berekend, niet in te vullen
B142: Kamertype/woon/verblijfseenheid in nieuwe infrastructuur | E142: Forfaitgerechtigde capaciteit | F142: Aangevraagde dagprijs in nieuwe infrastructuur na aftrek forfait =Nettodagprijs | G142: Aangevraagde brutodagprijs in nieuwe infrastructuur vóór aftrek forfait = netto + forfait | H142: kolom G wordt berekend, niet overschrijven
F144: 0 | G144: =IF(F144>0,F144+forfait,0) -> 0 | H144: Eventuele foutmeldingen: | L144: alle kolommen in te vullen, behalve kolom G die wordt berekend
F145: 0 | G145: 0 | H145: =IF(E163<>erkende_plaatsen1,"De totale forfaitgerechtigde capaciteit voor de vermelde dagprijzen stemt niet overeen met de capaciteit in de tabel 'generieke input.', cel F36","") -> 
F146: 0 | G146: 0 | H146: =IFERROR(IF(F163>E133, "De gemiddelde prijs na aftrek forfait ligt hoger dan de verantwoorde prijs na aftrek forfait.Pas de prijs van 1 of meerdere kamertypes aan.",""),"") -> 
F147: 0 | G147: 0
G148: 0
G149: 0
G150: 0
G151: 0
G152: 0
G153: 0 | H153: brutodagprijs (kolom G) - forfait 6,29 euro = nettodagprijs (= prijs na aftrek forfait, kolom F)
G154: 0
G155: 0
G156: 0
G157: 0
G158: 0
G159: 0
G160: 0
G161: 0
G162: 0
B163: Gewogen gemiddelde | E163: =SUM(E144:E162) -> 0 | F163: =SUM(E144:E162*F144:F162)/IF(E163>0,E163,1) -> 0
B165: 2.2 Aangevraagde dagprijzen voor bestaande bewoners
B167: Vermeld hier per kamertype voor de bestaande bewoners in de infrastructuurforfaitgerechtigde capaciteit: - de capaciteit (kolom E) - de eventuele maximumprijs bij kennisname in de opnameoverenkomst en dit vóór aftrek van het forfait (kolom F, vermeld hier 0 euro indien die maximumprijs niet werd opgenomen). Deze maximumprijs kan in tussentijd nog geïndexeerd worden indien de spilindex wordt overschreden sinds het moment van opname in de opnameovereenkomst. - de gevraagde prijs in de nieuwe infrastructuur na aftrek van het forfait (in kolom H). Indien er effectief bewoners kennis genomen hebben van de maximale prijs, dan dient het bewijs van de start van de werken (via brief van de voorziening aan de aannemer) te worden toegevoegd. Via de ondertekening van het outputtabblad verklaren de gemachtigden naar eer en geweten dat het aantal bewoners met plafondprijs in de opnameovereenkomst effectief correct is. Het formulier toetst de prijzen dan automatisch af aan de evt. opgenomen prijs in de overeenkomst en geeft ook de aangepaste richtlijnen i.v.m. de evolutie van de stappen.
I171: berekend | J171: berekend
B172: in te vullen | E172: in te vullen | F172: in te vullen | G172: berekend | H172: in te vullen | I172: Kolommen G, I-K worden berekend: niet overschrijven
B173: Kamertype/woon/verblijfseenheid in oude infrastructuur voor bestaande bewoners | E173: Forfaitgerechtigde capaciteit | F173: initiële brutoprijs uit de opnameovereenkomst= prijs vóór aftrek forfait (indien geen prijs in overeenkomst =0 euro, indien wel = neem prijs uit overeenkomst, evt. aangepast aan afgevlakte gezondheidsindex) | G173: nettoprijs = initiële brutoprijs in de overeenkomst na aftrek van het huidige forfait (indien zo'n maximumprijs werd voorzien in de overeenkomst) | H173: =F142 -> Aangevraagde dagprijs in nieuwe infrastructuur na aftrek forfait =Nettodagprijs | I173: Aangevraagde nettodagprijs na aftrek forfait, na bescherming bestaande bewoners | J173: =G142 -> Aangevraagde brutodagprijs in nieuwe infrastructuur vóór aftrek forfait = netto + forfait | K173: Evolutie opstappen
F175: 0 | G175: =IF(F175=0,0,F175-forfait) -> 0 | H175: 0 | I175: =IF(G175=0,H175,MIN(G175:H175)) -> 0 | J175: =IF(I175>0,I175+forfait,0) -> 0 | K175: =IF(H175>0,IF(G175=0,"De nettodagprijs na aftrek van het forfait stijgt niet in het eerste jaar en kan daarna elke 6 maand met max. "& 'Parameters+keuzes'!$C$48 &" euro worden verhoogd tot de goedgekeurde nettoprijs na aftrek van het forfait bereikt is.", "De nettodagprijs na aftrek van het forfait kan bij ingebruikname met max. "& 'Parameters+keuzes'!$B$48&" euro stijgen en kan daarna ten vroegste elke 6 maand met maximaal "& 'Parameters+keuzes'!$B$48 & " euro worden verhoogd tot de goedgekeurde nettoprijs na aftrek van het forfait bereikt is."),"") ->  | Q175: Eventuele foutmeldingen:
F176: 0 | G176: 0 | H176: 0 | I176: 0 | J176: 0 | K176: =IF(H176>0,IF(G176=0,"De nettodagprijs na aftrek van het forfait stijgt niet in het eerste jaar en kan daarna elke 6 maand met max. "& 'Parameters+keuzes'!$C$48 &" euro worden verhoogd tot de goedgekeurde nettoprijs na aftrek van het forfait bereikt is.", "De nettodagprijs na aftrek van het forfait kan bij ingebruikname met max. "& 'Parameters+keuzes'!$B$48&" euro stijgen en kan daarna ten vroegste elke 6 maand met maximaal "& 'Parameters+keuzes'!$B$48 & " euro worden verhoogd tot de goedgekeurde nettoprijs na aftrek van het forfait bereikt is."),"") ->  | Q176: =IF(E194>'Generieke input'!F36,"De capaciteit van de bestaande bewoners kan niet hoger zijn dan de capaciteit voor het forfait zoals vermeld in de generieke input.","") -> 
F177: 0 | G177: 0 | H177: 0 | I177: 0 | J177: 0 | K177: =IF(H177>0,IF(G177=0,"De nettodagprijs na aftrek van het forfait stijgt niet in het eerste jaar en kan daarna elke 6 maand met max. "& 'Parameters+keuzes'!$C$48 &" euro worden verhoogd tot de goedgekeurde nettoprijs na aftrek van het forfait bereikt is.", "De nettodagprijs na aftrek van het forfait kan bij ingebruikname met max. "& 'Parameters+keuzes'!$B$48&" euro stijgen en kan daarna ten vroegste elke 6 maand met maximaal "& 'Parameters+keuzes'!$B$48 & " euro worden verhoogd tot de goedgekeurde nettoprijs na aftrek van het forfait bereikt is."),"") ->  | Q177: =IFERROR(IF(I194>E133, "De gemiddelde goedgekeurde prijs na aftrek forfait ligt hoger dan de verantwoorde dagprijs na aftrek van het forfait.Pas de prijs van 1 of meerdere kamertypes aan.",""),"") ->  | AB177: ja
F178: 0 | G178: 0 | H178: 0 | I178: 0 | J178: 0 | K178: =IF(H178>0,IF(G178=0,"De nettodagprijs na aftrek van het forfait stijgt niet in het eerste jaar en kan daarna elke 6 maand met max. "& 'Parameters+keuzes'!$C$48 &" euro worden verhoogd tot de goedgekeurde nettoprijs na aftrek van het forfait bereikt is.", "De nettodagprijs na aftrek van het forfait kan bij ingebruikname met max. "& 'Parameters+keuzes'!$B$48&" euro stijgen en kan daarna ten vroegste elke 6 maand met maximaal "& 'Parameters+keuzes'!$B$48 & " euro worden verhoogd tot de goedgekeurde nettoprijs na aftrek van het forfait bereikt is."),"") ->  | AB178: nee
F179: 0 | G179: 0 | H179: 0 | I179: 0 | J179: 0 | K179: =IF(H179>0,IF(G179=0,"De nettodagprijs na aftrek van het forfait stijgt niet in het eerste jaar en kan daarna elke 6 maand met max. "& 'Parameters+keuzes'!$C$48 &" euro worden verhoogd tot de goedgekeurde nettoprijs na aftrek van het forfait bereikt is.", "De nettodagprijs na aftrek van het forfait kan bij ingebruikname met max. "& 'Parameters+keuzes'!$B$48&" euro stijgen en kan daarna ten vroegste elke 6 maand met maximaal "& 'Parameters+keuzes'!$B$48 & " euro worden verhoogd tot de goedgekeurde nettoprijs na aftrek van het forfait bereikt is."),"") ->  | Q179: Aandachtspunten voor betaling en facturatie:
F180: 0 | G180: 0 | H180: 0 | I180: 0 | J180: 0 | K180: =IF(H180>0,IF(G180=0,"De nettodagprijs na aftrek van het forfait stijgt niet in het eerste jaar en kan daarna elke 6 maand met max. "& 'Parameters+keuzes'!$C$48 &" euro worden verhoogd tot de goedgekeurde nettoprijs na aftrek van het forfait bereikt is.", "De nettodagprijs na aftrek van het forfait kan bij ingebruikname met max. "& 'Parameters+keuzes'!$B$48&" euro stijgen en kan daarna ten vroegste elke 6 maand met maximaal "& 'Parameters+keuzes'!$B$48 & " euro worden verhoogd tot de goedgekeurde nettoprijs na aftrek van het forfait bereikt is."),"") -> 
F181: 0 | G181: 0 | H181: 0 | I181: 0 | J181: 0 | K181: =IF(H181>0,IF(G181=0,"De nettodagprijs na aftrek van het forfait stijgt niet in het eerste jaar en kan daarna elke 6 maand met max. "& 'Parameters+keuzes'!$C$48 &" euro worden verhoogd tot de goedgekeurde nettoprijs na aftrek van het forfait bereikt is.", "De nettodagprijs na aftrek van het forfait kan bij ingebruikname met max. "& 'Parameters+keuzes'!$B$48&" euro stijgen en kan daarna ten vroegste elke 6 maand met maximaal "& 'Parameters+keuzes'!$B$48 & " euro worden verhoogd tot de goedgekeurde nettoprijs na aftrek van het forfait bereikt is."),"") -> 
F182: 0 | G182: 0 | H182: 0 | I182: 0 | J182: 0 | K182: =IF(H182>0,IF(G182=0,"De nettodagprijs na aftrek van het forfait stijgt niet in het eerste jaar en kan daarna elke 6 maand met max. "& 'Parameters+keuzes'!$C$48 &" euro worden verhoogd tot de goedgekeurde nettoprijs na aftrek van het forfait bereikt is.", "De nettodagprijs na aftrek van het forfait kan bij ingebruikname met max. "& 'Parameters+keuzes'!$B$48&" euro stijgen en kan daarna ten vroegste elke 6 maand met maximaal "& 'Parameters+keuzes'!$B$48 & " euro worden verhoogd tot de goedgekeurde nettoprijs na aftrek van het forfait bereikt is."),"") -> 
F183: 0 | G183: 0 | H183: 0 | I183: 0 | J183: 0 | K183: =IF(H183>0,IF(G183=0,"De nettodagprijs na aftrek van het forfait stijgt niet in het eerste jaar en kan daarna elke 6 maand met max. "& 'Parameters+keuzes'!$C$48 &" euro worden verhoogd tot de goedgekeurde nettoprijs na aftrek van het forfait bereikt is.", "De nettodagprijs na aftrek van het forfait kan bij ingebruikname met max. "& 'Parameters+keuzes'!$B$48&" euro stijgen en kan daarna ten vroegste elke 6 maand met maximaal "& 'Parameters+keuzes'!$B$48 & " euro worden verhoogd tot de goedgekeurde nettoprijs na aftrek van het forfait bereikt is."),"") ->  | Q183: ="De factuur vermeldt:" -> De factuur vermeldt:
F184: 0 | G184: 0 | H184: 0 | I184: 0 | J184: 0 | K184: =IF(H184>0,IF(G184=0,"De nettodagprijs na aftrek van het forfait stijgt niet in het eerste jaar en kan daarna elke 6 maand met max. "& 'Parameters+keuzes'!$C$48 &" euro worden verhoogd tot de goedgekeurde nettoprijs na aftrek van het forfait bereikt is.", "De nettodagprijs na aftrek van het forfait kan bij ingebruikname met max. "& 'Parameters+keuzes'!$B$48&" euro stijgen en kan daarna ten vroegste elke 6 maand met maximaal "& 'Parameters+keuzes'!$B$48 & " euro worden verhoogd tot de goedgekeurde nettoprijs na aftrek van het forfait bereikt is."),"") ->  | Q184: ="Brutoprijs" & " (kolom J) - forfait 6,29 euro = Nettodagprijs na bescherming (kolom I)" -> Brutoprijs (kolom J) - forfait 6,29 euro = Nettodagprijs na bescherming (kolom I)
F185: 0 | G185: 0 | H185: 0 | I185: 0 | J185: 0 | K185: =IF(H185>0,IF(G185=0,"De nettodagprijs na aftrek van het forfait stijgt niet in het eerste jaar en kan daarna elke 6 maand met max. "& 'Parameters+keuzes'!$C$48 &" euro worden verhoogd tot de goedgekeurde nettoprijs na aftrek van het forfait bereikt is.", "De nettodagprijs na aftrek van het forfait kan bij ingebruikname met max. "& 'Parameters+keuzes'!$B$48&" euro stijgen en kan daarna ten vroegste elke 6 maand met maximaal "& 'Parameters+keuzes'!$B$48 & " euro worden verhoogd tot de goedgekeurde nettoprijs na aftrek van het forfait bereikt is."),"") -> 
F186: 0 | G186: 0 | H186: 0 | I186: 0 | J186: 0 | K186: =IF(H186>0,IF(G186=0,"De nettodagprijs na aftrek van het forfait stijgt niet in het eerste jaar en kan daarna elke 6 maand met max. "& 'Parameters+keuzes'!$C$48 &" euro worden verhoogd tot de goedgekeurde nettoprijs na aftrek van het forfait bereikt is.", "De nettodagprijs na aftrek van het forfait kan bij ingebruikname met max. "& 'Parameters+keuzes'!$B$48&" euro stijgen en kan daarna ten vroegste elke 6 maand met maximaal "& 'Parameters+keuzes'!$B$48 & " euro worden verhoogd tot de goedgekeurde nettoprijs na aftrek van het forfait bereikt is."),"") -> 
F187: 0 | G187: 0 | H187: 0 | I187: 0 | J187: 0 | K187: =IF(H187>0,IF(G187=0,"De nettodagprijs na aftrek van het forfait stijgt niet in het eerste jaar en kan daarna elke 6 maand met max. "& 'Parameters+keuzes'!$C$48 &" euro worden verhoogd tot de goedgekeurde nettoprijs na aftrek van het forfait bereikt is.", "De nettodagprijs na aftrek van het forfait kan bij ingebruikname met max. "& 'Parameters+keuzes'!$B$48&" euro stijgen en kan daarna ten vroegste elke 6 maand met maximaal "& 'Parameters+keuzes'!$B$48 & " euro worden verhoogd tot de goedgekeurde nettoprijs na aftrek van het forfait bereikt is."),"") -> 
F188: 0 | G188: 0 | H188: 0 | I188: 0 | J188: 0 | K188: =IF(H188>0,IF(G188=0,"De nettodagprijs na aftrek van het forfait stijgt niet in het eerste jaar en kan daarna elke 6 maand met max. "& 'Parameters+keuzes'!$C$48 &" euro worden verhoogd tot de goedgekeurde nettoprijs na aftrek van het forfait bereikt is.", "De nettodagprijs na aftrek van het forfait kan bij ingebruikname met max. "& 'Parameters+keuzes'!$B$48&" euro stijgen en kan daarna ten vroegste elke 6 maand met maximaal "& 'Parameters+keuzes'!$B$48 & " euro worden verhoogd tot de goedgekeurde nettoprijs na aftrek van het forfait bereikt is."),"") -> 
F189: 0 | G189: 0 | H189: 0 | I189: 0 | J189: 0 | K189: =IF(H189>0,IF(G189=0,"De nettodagprijs na aftrek van het forfait stijgt niet in het eerste jaar en kan daarna elke 6 maand met max. "& 'Parameters+keuzes'!$C$48 &" euro worden verhoogd tot de goedgekeurde nettoprijs na aftrek van het forfait bereikt is.", "De nettodagprijs na aftrek van het forfait kan bij ingebruikname met max. "& 'Parameters+keuzes'!$B$48&" euro stijgen en kan daarna ten vroegste elke 6 maand met maximaal "& 'Parameters+keuzes'!$B$48 & " euro worden verhoogd tot de goedgekeurde nettoprijs na aftrek van het forfait bereikt is."),"") -> 
F190: 0 | G190: 0 | H190: 0 | I190: 0 | J190: 0 | K190: =IF(H190>0,IF(G190=0,"De nettodagprijs na aftrek van het forfait stijgt niet in het eerste jaar en kan daarna elke 6 maand met max. "& 'Parameters+keuzes'!$C$48 &" euro worden verhoogd tot de goedgekeurde nettoprijs na aftrek van het forfait bereikt is.", "De nettodagprijs na aftrek van het forfait kan bij ingebruikname met max. "& 'Parameters+keuzes'!$B$48&" euro stijgen en kan daarna ten vroegste elke 6 maand met maximaal "& 'Parameters+keuzes'!$B$48 & " euro worden verhoogd tot de goedgekeurde nettoprijs na aftrek van het forfait bereikt is."),"") -> 
F191: 0 | G191: 0 | H191: 0 | I191: 0 | J191: 0 | K191: =IF(H191>0,IF(G191=0,"De nettodagprijs na aftrek van het forfait stijgt niet in het eerste jaar en kan daarna elke 6 maand met max. "& 'Parameters+keuzes'!$C$48 &" euro worden verhoogd tot de goedgekeurde nettoprijs na aftrek van het forfait bereikt is.", "De nettodagprijs na aftrek van het forfait kan bij ingebruikname met max. "& 'Parameters+keuzes'!$B$48&" euro stijgen en kan daarna ten vroegste elke 6 maand met maximaal "& 'Parameters+keuzes'!$B$48 & " euro worden verhoogd tot de goedgekeurde nettoprijs na aftrek van het forfait bereikt is."),"") -> 
F192: 0 | G192: 0 | H192: 0 | I192: 0 | J192: 0 | K192: =IF(H192>0,IF(G192=0,"De nettodagprijs na aftrek van het forfait stijgt niet in het eerste jaar en kan daarna elke 6 maand met max. "& 'Parameters+keuzes'!$C$48 &" euro worden verhoogd tot de goedgekeurde nettoprijs na aftrek van het forfait bereikt is.", "De nettodagprijs na aftrek van het forfait kan bij ingebruikname met max. "& 'Parameters+keuzes'!$B$48&" euro stijgen en kan daarna ten vroegste elke 6 maand met maximaal "& 'Parameters+keuzes'!$B$48 & " euro worden verhoogd tot de goedgekeurde nettoprijs na aftrek van het forfait bereikt is."),"") -> 
F193: 0 | G193: 0 | H193: 0 | I193: 0 | J193: 0 | K193: =IF(H193>0,IF(G193=0,"De nettodagprijs na aftrek van het forfait stijgt niet in het eerste jaar en kan daarna elke 6 maand met max. "& 'Parameters+keuzes'!$C$48 &" euro worden verhoogd tot de goedgekeurde nettoprijs na aftrek van het forfait bereikt is.", "De nettodagprijs na aftrek van het forfait kan bij ingebruikname met max. "& 'Parameters+keuzes'!$B$48&" euro stijgen en kan daarna ten vroegste elke 6 maand met maximaal "& 'Parameters+keuzes'!$B$48 & " euro worden verhoogd tot de goedgekeurde nettoprijs na aftrek van het forfait bereikt is."),"") -> 
B194: Gewogen gemiddelde | E194: =SUM(E175:E193) -> 0 | H194: =SUM(E175:E193*H175:H193)/IF(E194>0,E194,1) -> 0 | I194: =SUM(E175:E193*I175:I193)/IF($E$194>0,$E$194,1) -> 0 | J194: =I194+forfait -> 6.29
B196: Motivatie opname prijs in overeenkomst via: | E196: door ondertekening van het outputtabblad wordt naar eer en geweten verklaard dat het aantal vermelde bewoners met opnameovereenkomst correct is
E197: bewijs van de datum van de start van de werken aan de hand van een aanvangsbevel van de werken (brief voorziening aan de aannemer)

Sheet 1B-Infra zonder forfait (hidden)
A1: Prijsaanvraag infrastructuur zonder infrastructuurforfait
B2: Klik hier indien terug naar generieke input
B3: Enkel de lichtblauw gekleurde velden dienen te worden ingevuld
B4: Dit onderdeel wordt ingevuld voor de bewoners zonder infrastructuurforfait waarvoor drastische investeringen worden gerealiseerd waarvan minimaal de helft wordt afgeschreven over een looptijd van minimaal twintig jaar. Indien de investeringen hieraan niet voldoen, dient u het formulier 2 te hanteren. Voor dezelfde bewoners kan u formulier 1 voor investeringen en formulier 2 voor marge-evolutie niet simultaan gebruiken. U zal een keuze moeten maken welk formulier eerst gehanteerd wordt en een volgende aanvraag voor de andere aanleiding kan maar na twee jaar.
A9: 1. Verantwoording van de gevraagde gemiddelde dagprijs
B11: Totaal verantwoorde dagprijs | E11: =IFERROR(infrakost_verblijfsdag_werken+G51+G77+G118,0) -> 0 | F11: wordt automatisch berekend
B13: 1.1 lopende infrastructuurkost in dagprijs
B15: Geef hier de lopende infrastructuurkosten op onder de vorm van afschrijvingen, huur- en intrestkosten. Die dienen dan gestaafd te worden op basis van een extract uit de analytische boekhouding m.b.t. de betrokken voorziening en eenheden. Indien u slechts een dagprijsverhoging wenst voor een bepaald deel van de erkende capaciteit, dan kan slechts het deel van de lopende infrastructuurkosten worden verrekend dat betrekking heeft op dat deel van de capaciteit. Er is dan bijgevolg een pro ratering van de infrastructuurkosten vereist.
E19: Bedragen in euro:
B20: afschrijvingen lopende infrastructuur | E20: 0 | H20: vermeld hier de lopende afschrijvingen/jaar | K20: te verantwoorden via de boekhouding
B21: huur/erfpacht lopende infrastructuur | H21: vermeld hier de lopende erfpachtvergoeding | K21: te verantwoorden via de boekhouding
B22: lopende intrestkosten | H22: vermeld hier de lopende intrestkosten | K22: te verantwoorden via de boekhouding
B23: totale lopende infrastructuurkost | E23: =E20+E21+E22 -> 0 | H23: niet in te vullen, wordt berekend
B24: aantal plaatsen prijsaanvraag | E24: ='Generieke input'!G36 -> 0 | H24: niet in te vullen, dit stemt overeen met de capaciteit vermeld in het tabblad "Generieke input", cel G36
B25: aantal dagen | E25: =IF('Generieke input'!V36=4,250,365) -> 365 | H25: is 365 voor alle zorgvormen behalve CDV = 250 dagen
B26: bezettingsgraad | E26: ='Generieke input'!AA47 -> 0 | H26: Bepaald in tabblad "generieke input", onder rubriek 3.2
B27: lopende infrastructuurkost in dagprijs: | E27: =E23/PRODUCT(E24:G26) -> 
B29: Toe te voegen bijlagen: | F29: U bezorgt een extract uit de analytische boekhouding voor de betrokken componenten. Indien de prijsaanvraag slechts betrekking heeft op een deel van de totale capaciteit, dan versleutelt u de de kosten volgens het aandeel in de totale capaciteit. Indien de analytische opdeling op niveau van de zorgvorm ontbreekt, kan vertrokken worden van het hogere beschikbare niveau, waarop dan vervolgens opnieuw een verdeelsleutel wordt toegepast die rekening houdt met het aandeel van de zorgvorm en de betrokken capaciteit waarvoor de prijsaanvraag wordt ingediend.
B31: 1.2 Nieuwe investeringen in dagprijs
B33: Vermeld hierna de nieuwe investeringen indien hiervan minimaal 50% op minimaal twintig jaar wordt afgeschreven. De kamerinfrastructuur en het meubilair dienen volgens vaste termijnen van respectievelijk 25 en 10 jaar te worden afgeschreven. Van deze investeringen mag enkel het deel opgenomen worden dat kan toegerekend worden aan de niet-infrastructuurforfaitgerechtigde bewoners. In geval van een gecombineerd investeringsproject voor infrastructuurforfaitgerechtigde en niet-infrastructuurforfaitgerechtigde bewoners gaat u dus als volgt te werk: - bepaal eerst het deel van de nieuwe investeringen dat betrekking heeft op de niet-infrastructuurforfaitgerechtigde bewoners - ga vervolgens na of van het voornoemde deel minimaal 50% een afschrijvingsduur heeft van minimaal 20 jaar: > indien zo, dan mag dit formulier inderdaad gebruikt worden; >> indien niet, dan dient het formulier 2 te worden gebruikt.
E36: Investering1 | F36: Investering2 | G36: Investering3 | H36: Investering4 | I36: Investering5 | J36: Investering6 | K36: Investering7 | L36: Investering8 | M36: Investering9 | N36: Investering10 | R36: vrij te wijzigen volgens soort investering
B37: Eenmalige investeringskost (eventueel bij verhuurder) | G37: 0 | H37: 0 | R37: in te vullen
B38: kapitaalsubsidie uitbetaald gedurende bouwperiode | R38: in te vullen
B39: totale BTW-recuperatie | R39: in te vullen
B40: Totale netto investeringskost | E40: =E37-ABS(E38)-ABS(E39) -> 0 | F40: =F37-ABS(F38)-ABS(F39) -> 0 | G40: =G37-ABS(G38)-ABS(G39) -> 0 | H40: =H37-ABS(H38)-ABS(H39) -> 0 | I40: =I37-ABS(I38)-ABS(I39) -> 0 | J40: 0 | K40: 0 | L40: 0 | M40: 0 | N40: 0 | R40: wordt berekend
B41: financieringskost | E41: =IFERROR(-PMT('Generieke input'!$D$56,E45,E40)*E45-E40,0) -> 0 | F41: =IFERROR(-PMT('Generieke input'!$D$56,F45,F40)*F45-F40,0) -> 0 | G41: =IFERROR(-PMT('Generieke input'!$D$56,G45,G40)*G45-G40,0) -> 0 | H41: =IFERROR(-PMT('Generieke input'!$D$56,H45,H40)*H45-H40,0) -> 0 | I41: =IFERROR(-PMT('Generieke input'!$D$56,I45,I40)*I45-I40,0) -> 0 | J41: =IFERROR(-PMT('Generieke input'!$D$56,J45,J40)*J45-J40,0) -> 0 | K41: =IFERROR(-PMT('Generieke input'!$D$56,K45,K40)*K45-K40,0) -> 0 | L41: =IFERROR(-PMT('Generieke input'!$D$56,L45,L40)*L45-L40,0) -> 0 | M41: =IFERROR(-PMT('Generieke input'!$D$56,M45,M40)*M45-M40,0) -> 0 | N41: =IFERROR(-PMT('Generieke input'!$D$56,N45,N40)*N45-N40,0) -> 0 | R41: wordt berekend
B42: Investeringskost inclusief financieringskost | E42: =E40+E41 -> 0 | F42: =F40+F41 -> 0 | G42: =G40+G41 -> 0 | H42: =H40+H41 -> 0 | I42: =I40+I41 -> 0 | J42: 0 | K42: 0 | L42: 0 | M42: 0 | N42: 0 | R42: wordt berekend
B43: gespreide subsidie | R43: in te vullen
B44: Netto investerings- en financieringskost | E44: =E42-E43 -> 0 | F44: =F42-F43 -> 0 | G44: =G42-G43 -> 0 | H44: =H42-H43 -> 0 | I44: =I42-I43 -> 0 | J44: 0 | K44: 0 | L44: 0 | M44: 0 | N44: 0 | R44: wordt berekend
B45: Afschrijvingsduur investeringkost (in jaren) | G45: 5 | H45: 25 | R45: vermeld de economische levensduur die past binnen de waarderingsregel van de entiteit | W45: kan eventueel gewijzigd worden bij afwijkende afschrijvingsduur
B46: =B24 -> aantal plaatsen prijsaanvraag | E46: ='Generieke input'!G36 -> 0 | F46: =E46 -> 0 | G46: =F46 -> 0 | H46: =G46 -> 0 | I46: =H46 -> 0 | J46: 0 | K46: 0 | L46: 0 | M46: 0 | N46: 0 | R46: wordt automatisch overgenomen uit het tabblad Generieke input, rubriek 3.1
B47: Aantal dagen | E47: =E25 -> 365 | F47: =E47 -> 365 | G47: =F47 -> 365 | H47: 365 | I47: 365 | J47: 365 | K47: 365 | L47: 365 | M47: 365 | N47: 365 | R47: ligt standaard vast
B48: bezettingsgraad | E48: =bezettingsgraad_werken -> 0 | F48: =E48 -> 0 | G48: =F48 -> 0 | H48: =G48 -> 0 | I48: =H48 -> 0 | J48: 0 | K48: 0 | L48: 0 | M48: 0 | N48: 0 | R48: wordt automatisch bepaald op basis van de zorgvorm, confer tabblad "Generieke input", rubriek 3.2
B49: investeringskost/periodieke vergoeding in dagprijs | E49: =IFERROR(ROUND(E44/E45/E47/E46/E48,2),0) -> 0 | F49: =IFERROR(ROUND(F44/F45/F47/F46/F48,2),0) -> 0 | G49: =IFERROR(ROUND(G44/G45/G47/G46/G48,2),0) -> 0 | H49: =IFERROR(ROUND(H44/H45/H47/H46/H48,2),0) -> 0 | I49: =IFERROR(ROUND(I44/I45/I47/I46/I48,2),0) -> 0 | J49: 0 | K49: 0 | L49: 0 | M49: 0 | N49: 0
B51: Nieuwe investeringskosten in dagprijs: | G51: =SUM(E49:N49) -> 0
B52: Motivatie: | G52: voor de bouwkost werd gekozen voor hetzij (verwijder wat niet van toepassing is): eindafrekening / samenvattende vorderingsstaat/ geattesteerde afschrijvingstabel/ facturen/ gunningsbeslissing/ andere: ...
B55: Toe te voegen bijlagen: | F55: Voeg tabblad met investeringsoverzicht met kostencomponenten en verantwoordingsstukken toe, of maak gebruik van het standaard voorziene tabblad "bijlage investeringsoverzicht". Hierna worden de verantwoordingsstukken steekproefgewijs opgevraagd.
B57: Check op geoorloofd gebruik van formulier:
D58: totaal investeringen >=20 jaar | F58: =SUMIFS(E37:N37,E45:N45,">=20") -> 0
D59: totale investering | F59: =SUM(E37:N37) -> 0
F60: =IFERROR(F58/F59,0) -> 0
B62: Besluit: | C62: =IF(F60>=50%, "De nieuwe investeringen met een afschrijvingsduur van minimaal 20 jaar vertegenwoordigen minimaal 50% van de totale gefactureerde investeringskost. Het juiste formulier wordt gebruikt.", "De nieuwe investeringen met een afschrijvingsduur van minimaal 20 jaar vertegenwoordigen minder dan 50% van de totale gefactureerde investeringskost. Bijgevolg dient u het formulier 2, andere te gebruiken.") -> De nieuwe investeringen met een afschrijvingsduur van minimaal 20 jaar vertegenwoordigen minder dan 50% van de totale gefactureerde investeringskost. Bijgevolg dient u het formulier 2, andere te gebruiken.
B64: 1.3 Kosten van personeel in dienstverband na verrekening van de overheidstussenkomsten
B66: Deze rubriek heeft betrekking op alle personeel, inclusief het zelfstandige zorgpersoneel en uitzendpersoneel. Enkel de bestuurders worden onder diensten en diverse leveringen toegerekend. Enkel het personeel voor de niet-infrastructuurforfaitgerechtigde capaciteit mag hier worden ingevuld. In geval van uitbreiding van capaciteit zijn de VTE's, personeelskosten en bepaalde overheidstussenkomsten op kruissnelheid wanneer de volledige uitgebreide capaciteit wordt bereikt. Hierbij mag echter geen rekening gehouden worden met de inflatie, gezien die reeds bekomen wordt via de indexering van de dagprijs. Vul hier per personeelscategorie op jaarbasis in: het aantal VTE, personeelskost en overheidstussenkomst (=voor de laatste 2 is dit het totaalbedrag, niet het bedrag per verblijfsdag). Personeelscategorieën: - zorgpersoneel = verpleegkundigen, zorgkundigen (verzorgenden), kinesitherapeuten, logopedisten, ergotherapeuten, personeel voor reactivatie; - administratief (inclusief directie), logistiek, technisch, poets- en keukenpersoneel: al het overige personeel dat niet tot de voorgaande categorie behoort Personeelskost: is brutoloonkost inclusief werkgeversbijdrage. Verzekeringen en andere overheadkosten worden hier niet vermeld, maar onder rubriek 1.4. Overheidstussenkomsten: Vul hier steeds het totaalbedrag en niet het bedrag per verblijfsdag in. De basistegemoetkoming voor zorg die in mindering wordt gebracht, heeft ook betrekking op de tussenkomst voor niet-personeelskosten (de basistegemoetkoming voor zorg mag echter integraal in mindering gebracht worden op de personeelskosten, zodat dit niet meer moet versleuteld worden naar rubriek 1.4). Overheidstussenkomsten (zoals elementen sociale akkoorden) die betrekking hebben op verschillende personeelscategorieën probeert u toe te wijzen volgens de detailberekening of, indien niet mogelijk, via een logische verdeelsleutel. U dient uiteraard enkel de overheidstussenkomst in te vullen voor de personeelscategorieën waarop die betrekking heeft. Belangrijk is dat alle componenten van de overheidstussenkomst worden opgenomen: voor een checklist zie tabblad "checklist overheidstussenkomst"
E69: Aantal VTE | F69: Personeelkost | G69: Basistegemoetkoming zorg (*) | H69: Eindeloopbaan (*) | I69: Fondsen maribel (*) | J69: Aanvullende financiering (*) | K69: IFIC | L69: Andere (vb. OCVK, nomenclatuur, jongdementie *) | M69: Nettokost
B70: Zorgpersoneel | E70: 0 | F70: 0 | G70: 0 | H70: 0 | I70: 0 | J70: 0 | K70: 0 | L70: 0 | M70: =F70-SUM(G70:L70) -> 0 | N70: in te vullen, behalve in kolom M
B71: Administratief, Logistiek, technisch, poets- en keukenpersoneel | E71: 0 | F71: 0 | G71: 0 | H71: 0 | I71: 0 | J71: 0 | K71: 0 | L71: 0 | M71: =F71-SUM(G71:L71) -> 0 | N71: in te vullen, behalve in kolom M
B72: Totaal | M72: =SUM(M70:N71) -> 0 | N72: in te vullen, behalve in kolom M
B73: (*) Voor een opsomming van de componenten van de basistegemoetkoming voor zorg en de overige overheidstussenkomsten, volg deze link: | I73: checklist overheidstussenkomst
B74: Totale netto-personeelskost | E74: =M72 -> 0 | F74: wordt berekend
B75: Aantal verblijfsdagen | E75: ='Generieke input'!G36*E25*bezettingsgraad_werken -> 0 | F75: wordt berekend
B77: Personeelskosten na overheidstussenkomst in dagprijs: | G77: =IFERROR(E74/E75,0) -> 0 | J77: wordt berekend
B78: Motivatie/bewijsstukken: | G78: eventuele toelichting sociale balans, extract resultatenrekening of businessplan
B80: 1.4 Producten en diensten en diverse leveringen te verrekenen in dagprijs
B82: Vul hierna in kolom E de andere kosten voor producten en diensten en diverse leveringen in met betrekking tot de niet-forfaitgerechtigde bewoners. Hiervoor worden enkel die kosten opgenomen die niet eerder in de vorige rubrieken werden aangerekend. U vult daartoe in kolom E, waar van toepassing, de kosten op detailniveau in. Indien dit niet kan, mag u zich beperken tot de zwart omkaderde cellen/kaders. In sommige gevallen betekent dit dat u een automatisch berekend totaal zal overschrijven. Het totaal van de andere kosten voor producten en diensten en diverse leveringen wordt slechts verrekend in de dagprijs na aftrek van het deel dat reeds via een supplement werd doorgerekend. Naast "supplementen en voorschotten" vult u in kolom E het totaalbedrag aan supplementen en voorschotten in dat reeds door de bewoners wordt betaald en dus niet dient verrekend te worden in de dagprijs. In kolom F wordt vervolgens de gemiddelde kost per verblijfsdag berekend
B84: Producten: | E84: Totaal (in te vullen volgens instructies in kolom G) | F84: Kost per verblijfsdag (wordt berekend)
C85: Totaal | E85: =SUM(E86:E93) -> 0 | F85: =IFERROR(E85/$E$116,0) -> 0 | G85: wordt berekend of wordt, indien voorkomend, ingevuld indien cellen met detailinformatie met groene commentaar niet worden ingevuld
D86: Aankopen voeding | E86: 0 | F86: 0 | G86: facultatief in te vullen
D87: Aankopen medisch, verzorgingsmateriaal | E87: 0 | F87: 0 | G87: facultatief in te vullen
D88: Klein materiaal voor onderhoud | E88: 0 | F88: 0 | G88: facultatief in te vullen | H88: in zoverre geen groot, eigenaarsonderhoud. Kost van vervanging van bv. lift, zit in economische afschrijving van de infrastructuur
D89: Socioculturele activiteiten en ontspanning | E89: 0 | F89: 0 | G89: facultatief in te vullen
D90: Bureel en informatica | E90: 0 | F90: 0 | G90: facultatief in te vullen | H90: software wordt hier opgenomen in zoverre niet opgenomen onder 1.2, klein kantoormaterieel (perforator, mappen, nietjesmachine)
D91: Textiel en wasproducten | E91: 0 | F91: 0 | G91: facultatief in te vullen
D92: Toilet en opschik | E92: 0 | F92: 0 | G92: facultatief in te vullen
D93: Andere | E93: 0 | F93: 0 | G93: facultatief in te vullen
B95: Diensten en diverse leveringen:
C96: Externe diensten | E96: =SUM(E97:E104) -> 0 | F96: =IFERROR(E96/E116,0) -> 0 | G96: wordt berekend of wordt, indien voorkomend, ingevuld indien cellen met detailinformatie met groene commentaar niet worden ingevuld
D97: Sociaal secretariaat | E97: 0 | F97: =IFERROR(E97/$E$116,0) -> 0 | G97: facultatief in te vullen
D98: Boekhouding/adm/zorgtoepassing | E98: 0 | F98: 0 | G98: facultatief in te vullen | H98: externe accountant, bedrijfsrevisor, boekhouder in loondienst zit onder 1.3
D99: Informatieverwerking | E99: 0 | F99: 0 | G99: facultatief in te vullen | H99: informatieverwerking door derden, bvb. met betrekking tot sectoranalyses door derden, berekeningen personeelsinzet,…
D100: Keuken | E100: 0 | F100: 0 | G100: facultatief in te vullen | H100: externe keuken, interne keuken zit voor de invsteringen onder 1.2 andere investeringen en voor de personeelskosten onder 1.3
D101: Was en linnen | E101: 0 | F101: 0 | G101: facultatief in te vullen
D102: Onderhoud en schoonmaak | E102: 0 | F102: 0 | G102: facultatief in te vullen | H102: enkel gebruikersonderhoud, geen groot onderhoud/verbouwing gezien gedekt door afschrijvingen
D103: Vergoedingen en erelonen | E103: 0 | F103: 0 | G103: facultatief in te vullen | H103: vergoedingen/erelonen advocaten, notarissen
D104: Andere | E104: 0 | F104: 0 | G104: facultatief in te vullen
C105: Onderhoud en herstellingen | E105: 0 | F105: 0 | G105: indien voorkomend, in te vullen
C106: Verzekeringen | E106: 0 | F106: 0 | G106: indien voorkomend, in te vullen
C107: Administratie | E107: 0 | F107: 0 | G107: indien voorkomend, in te vullen
C108: Externe medische verzorging | E108: 0 | F108: 0 | G108: indien voorkomend, in te vullen
C109: Bezoldiging bestuurders | E109: 0 | F109: 0 | G109: indien voorkomend, in te vullen
C110: Aankopen energie | E110: 0 | F110: 0 | G110: indien voorkomend, in te vullen
B113: Supplementen en voorschotten ten gunste van derden | E113: 0 | F113: =IFERROR(E113/E116,0) -> 0 | G113: gelieve het bedrag van supplementen en voorschotten in te vullen met betrekking tot voorgaande kostencategorieën
G114: gelieve in bijlage het detail van de supplementen toe te lichten: | K114: bijlage supplement
B115: Totale nettokosten diensten en diverse leveringen (na aftrek suppelementen en voorschotten) | E115: =E85+E96+SUM(E105:E110)-ABS(E113) -> 0 | F115: wordt berekend
B116: Aantal verblijfsdagen | E116: =E75 -> 0 | F116: wordt berekend
B118: Producten en diensten en diverse leveringen in dagprijs: | G118: =IFERROR(E115/E116,0) -> 0 | J118: wordt berekend
B119: Motivatie: | G119: voor bepaalde posten zullen bijkomende verantwoordingsstukken worden opgevraagd
A122: 2. Evaluatie dagprijzen
B124: Verantwoorde prijs | E124: =ROUND(E11,2) -> 0 | F124: wordt berekend: som van 1.1 - 1.4
B126: 2.1 Aangevraagde dagprijzen voor nieuwe bewoners
B128: Vermeld hier voor de kamers in de vernieuwde infrastructuur de dagprijzen voor de niet-infrastructuurforfaitgerechtigde bewoners die u zou willen hanteren indien die capaciteit volledig bewoond zou zijn door nieuwe bewoners. Vermeld per kamertype de capaciteit (kolom E) en de gevraagde dagprijs (kolom F). Het totaal van de capaciteiten per kamertype moet overeenstemmen met de capaciteit "zonder forfait" in het tabblad "Generieke input", cel G36. De gevraagde dagprijzen worden slechts aanvaard indien het gemiddelde hiervan niet hoger ligt dan de verantwoorde prijs, cel E124
B132: in te vullen | E132: in te vullen | F132: in te vullen
B133: Kamertype/woon/verblijfseenheid in nieuwe infrastructuur | E133: Capaciteit waarvoor prijsaanvraag | F133: Gevraagde dagprijs
F135: 0 | G135: Eventuele foutmeldingen: | L135: alle kolommen in te vullen
F136: 0 | G136: =IF(E154<>'Generieke input'!G36,"De totale capaciteit voor de vermelde dagprijzen stemt niet overeen met de capaciteit in de generieke input, cel G36","") -> 
F137: 0 | G137: =IFERROR(IF(F154>E124, "De gemiddelde prijs ligt hoger dan de verantwoorde prijs .Pas de prijs van 1 of meerdere kamertypes aan.",""),"") -> 
F138: 0
F139: 0
F140: 0
F141: 0
F142: 0
F143: 0
F144: 0
F145: 0
F146: 0
F147: 0
F148: 0
F149: 0
F150: 0
F151: 0
F152: 0
F153: 0
B154: Gewogen gemiddelde | E154: =SUM(E135:E153) -> 0 | F154: =SUM(E135:E153*F135:F153)/IF(E154>0,E154,1) -> 0
B156: 2.2 Aangevraagde dagprijzen voor bestaande bewoners
B158: Vermeld hier per kamertype voor de bestaande bewoners die niet infrastructuurforfaitgerechtigd zijn: de capaciteit waarvoor de prijs wordt aangevraagd (kolom E), de eventuele maximumprijs bij kennisname in de opnameoverenkomst (kolom F, vermeld hier 0 euro indien die maximumprijs niet werd opgenomen) en de gevraagde prijs in de nieuwe infrastructuur (G). Deze maximumprijs kan in tussentijd nog geïndexeerd worden indien de spilindex wordt overschreden sinds het moment van opname in de opnameovereenkomst. Indien er effectief bewoners kennis genomen hebben van de maximale prijs, dan dient het bewijs van de start van de werken (via brief van de voorziening aan de aannemer) te worden toegevoegd. Via de ondertekening van het outputtabblad verklaren de gemachtigden naar eer en geweten dat het aantal bewoners met plafondprijs in de opnameovereenkomst effectief correct is. Het formulier toetst de prijzen dan automatisch af aan de evt. opgenomen prijs in de overeenkomst en geeft ook de aangepaste richtlijnen i.v.m. de evolutie van de stappen.
B163: in te vullen | E163: in te vullen | F163: in te vullen | G163: in te vullen | H163: Kolom H wordt berekend, kolom I wordt bepaald: niet overschrijven
B164: Kamertype/woon/verblijfseenheid in oude infrastructuur voor bestaande bewoners | E164: Capaciteit waarvoor prijsaanvraag | F164: Prijs in opnameovereenkomst? (indien niet =0 euro) | G164: Aangevraagde prijs in nieuwe infrastructuur | H164: Goedgekeurde prijs | I164: Evolutie opstappen
F166: 0 | G166: 0 | H166: =IF(F166=0,G166,MIN(F166:G166)) -> 0 | I166: =IF(G166>0,IF(F166=0,"De dagprijs stijgt niet in het eerste jaar en kan daarna elke 6 maand met max. "& 'Parameters+keuzes'!$C$48 &" euro worden verhoogd tot de goedgekeurde prijs bereikt is.", "De dagprijs kan bij ingebruikname met max. "& 'Parameters+keuzes'!$B$48&" euro stijgen en kan daarna ten vroegste elke 6 maand met maximaal "& 'Parameters+keuzes'!$B$48 & " euro worden verhoogd tot de goedgekeurde prijs bereikt is."),"") ->  | O166: Eventuele foutmeldingen:
F167: 0 | G167: 0 | H167: 0 | I167: =IF(G167>0,IF(F167=0,"De dagprijs stijgt niet in het eerste jaar en kan daarna elke 6 maand met max. "& 'Parameters+keuzes'!$C$48 &" euro worden verhoogd tot de goedgekeurde prijs bereikt is.", "De dagprijs kan bij ingebruikname met max. "& 'Parameters+keuzes'!$B$48&" euro stijgen en kan daarna ten vroegste elke 6 maand met maximaal "& 'Parameters+keuzes'!$B$48 & " euro worden verhoogd tot de goedgekeurde prijs bereikt is."),"") ->  | O167: =IF(E185>erkende_plaatsen1,"De capaciteit van de bestaande bewoners kan niet hoger zijn dan de capaciteit voor het forfait zoals vermeld in de generieke input","") -> 
F168: 0 | G168: 0 | H168: 0 | I168: =IF(G168>0,IF(F168=0,"De dagprijs stijgt niet in het eerste jaar en kan daarna elke 6 maand met max. "& 'Parameters+keuzes'!$C$48 &" euro worden verhoogd tot de goedgekeurde prijs bereikt is.", "De dagprijs kan bij ingebruikname met max. "& 'Parameters+keuzes'!$B$48&" euro stijgen en kan daarna ten vroegste elke 6 maand met maximaal "& 'Parameters+keuzes'!$B$48 & " euro worden verhoogd tot de goedgekeurde prijs bereikt is."),"") ->  | O168: =IFERROR(IF(H185>E124, "De gemiddelde goedgekeurde prijs ligt hoger dan de verantwoorde prijs.Pas de prijs van 1 of meerdere kamertypes aan.",""),"") ->  | Z168: ja
F169: 0 | G169: 0 | H169: 0 | I169: =IF(G169>0,IF(F169=0,"De dagprijs stijgt niet in het eerste jaar en kan daarna elke 6 maand met max. "& 'Parameters+keuzes'!$C$48 &" euro worden verhoogd tot de goedgekeurde prijs bereikt is.", "De dagprijs kan bij ingebruikname met max. "& 'Parameters+keuzes'!$B$48&" euro stijgen en kan daarna ten vroegste elke 6 maand met maximaal "& 'Parameters+keuzes'!$B$48 & " euro worden verhoogd tot de goedgekeurde prijs bereikt is."),"") ->  | Z169: nee
F170: 0 | G170: 0 | H170: 0 | I170: =IF(G170>0,IF(F170=0,"De dagprijs stijgt niet in het eerste jaar en kan daarna elke 6 maand met max. "& 'Parameters+keuzes'!$C$48 &" euro worden verhoogd tot de goedgekeurde prijs bereikt is.", "De dagprijs kan bij ingebruikname met max. "& 'Parameters+keuzes'!$B$48&" euro stijgen en kan daarna ten vroegste elke 6 maand met maximaal "& 'Parameters+keuzes'!$B$48 & " euro worden verhoogd tot de goedgekeurde prijs bereikt is."),"") -> 
F171: 0 | G171: 0 | H171: 0 | I171: =IF(G171>0,IF(F171=0,"De dagprijs stijgt niet in het eerste jaar en kan daarna elke 6 maand met max. "& 'Parameters+keuzes'!$C$48 &" euro worden verhoogd tot de goedgekeurde prijs bereikt is.", "De dagprijs kan bij ingebruikname met max. "& 'Parameters+keuzes'!$B$48&" euro stijgen en kan daarna ten vroegste elke 6 maand met maximaal "& 'Parameters+keuzes'!$B$48 & " euro worden verhoogd tot de goedgekeurde prijs bereikt is."),"") -> 
F172: 0 | G172: 0 | H172: 0 | I172: =IF(G172>0,IF(F172=0,"De dagprijs stijgt niet in het eerste jaar en kan daarna elke 6 maand met max. "& 'Parameters+keuzes'!$C$48 &" euro worden verhoogd tot de goedgekeurde prijs bereikt is.", "De dagprijs kan bij ingebruikname met max. "& 'Parameters+keuzes'!$B$48&" euro stijgen en kan daarna ten vroegste elke 6 maand met maximaal "& 'Parameters+keuzes'!$B$48 & " euro worden verhoogd tot de goedgekeurde prijs bereikt is."),"") -> 
F173: 0 | G173: 0 | H173: 0 | I173: =IF(G173>0,IF(F173=0,"De dagprijs stijgt niet in het eerste jaar en kan daarna elke 6 maand met max. "& 'Parameters+keuzes'!$C$48 &" euro worden verhoogd tot de goedgekeurde prijs bereikt is.", "De dagprijs kan bij ingebruikname met max. "& 'Parameters+keuzes'!$B$48&" euro stijgen en kan daarna ten vroegste elke 6 maand met maximaal "& 'Parameters+keuzes'!$B$48 & " euro worden verhoogd tot de goedgekeurde prijs bereikt is."),"") -> 
F174: 0 | G174: 0 | H174: 0 | I174: =IF(G174>0,IF(F174=0,"De dagprijs stijgt niet in het eerste jaar en kan daarna elke 6 maand met max. "& 'Parameters+keuzes'!$C$48 &" euro worden verhoogd tot de goedgekeurde prijs bereikt is.", "De dagprijs kan bij ingebruikname met max. "& 'Parameters+keuzes'!$B$48&" euro stijgen en kan daarna ten vroegste elke 6 maand met maximaal "& 'Parameters+keuzes'!$B$48 & " euro worden verhoogd tot de goedgekeurde prijs bereikt is."),"") -> 
F175: 0 | G175: 0 | H175: 0 | I175: =IF(G175>0,IF(F175=0,"De dagprijs stijgt niet in het eerste jaar en kan daarna elke 6 maand met max. "& 'Parameters+keuzes'!$C$48 &" euro worden verhoogd tot de goedgekeurde prijs bereikt is.", "De dagprijs kan bij ingebruikname met max. "& 'Parameters+keuzes'!$B$48&" euro stijgen en kan daarna ten vroegste elke 6 maand met maximaal "& 'Parameters+keuzes'!$B$48 & " euro worden verhoogd tot de goedgekeurde prijs bereikt is."),"") -> 
F176: 0 | G176: 0 | H176: 0 | I176: =IF(G176>0,IF(F176=0,"De dagprijs stijgt niet in het eerste jaar en kan daarna elke 6 maand met max. "& 'Parameters+keuzes'!$C$48 &" euro worden verhoogd tot de goedgekeurde prijs bereikt is.", "De dagprijs kan bij ingebruikname met max. "& 'Parameters+keuzes'!$B$48&" euro stijgen en kan daarna ten vroegste elke 6 maand met maximaal "& 'Parameters+keuzes'!$B$48 & " euro worden verhoogd tot de goedgekeurde prijs bereikt is."),"") -> 
F177: 0 | G177: 0 | H177: 0 | I177: =IF(G177>0,IF(F177=0,"De dagprijs stijgt niet in het eerste jaar en kan daarna elke 6 maand met max. "& 'Parameters+keuzes'!$C$48 &" euro worden verhoogd tot de goedgekeurde prijs bereikt is.", "De dagprijs kan bij ingebruikname met max. "& 'Parameters+keuzes'!$B$48&" euro stijgen en kan daarna ten vroegste elke 6 maand met maximaal "& 'Parameters+keuzes'!$B$48 & " euro worden verhoogd tot de goedgekeurde prijs bereikt is."),"") -> 
F178: 0 | G178: 0 | H178: 0 | I178: =IF(G178>0,IF(F178=0,"De dagprijs stijgt niet in het eerste jaar en kan daarna elke 6 maand met max. "& 'Parameters+keuzes'!$C$48 &" euro worden verhoogd tot de goedgekeurde prijs bereikt is.", "De dagprijs kan bij ingebruikname met max. "& 'Parameters+keuzes'!$B$48&" euro stijgen en kan daarna ten vroegste elke 6 maand met maximaal "& 'Parameters+keuzes'!$B$48 & " euro worden verhoogd tot de goedgekeurde prijs bereikt is."),"") -> 
F179: 0 | G179: 0 | H179: 0 | I179: =IF(G179>0,IF(F179=0,"De dagprijs stijgt niet in het eerste jaar en kan daarna elke 6 maand met max. "& 'Parameters+keuzes'!$C$48 &" euro worden verhoogd tot de goedgekeurde prijs bereikt is.", "De dagprijs kan bij ingebruikname met max. "& 'Parameters+keuzes'!$B$48&" euro stijgen en kan daarna ten vroegste elke 6 maand met maximaal "& 'Parameters+keuzes'!$B$48 & " euro worden verhoogd tot de goedgekeurde prijs bereikt is."),"") -> 
F180: 0 | G180: 0 | H180: 0 | I180: =IF(G180>0,IF(F180=0,"De dagprijs stijgt niet in het eerste jaar en kan daarna elke 6 maand met max. "& 'Parameters+keuzes'!$C$48 &" euro worden verhoogd tot de goedgekeurde prijs bereikt is.", "De dagprijs kan bij ingebruikname met max. "& 'Parameters+keuzes'!$B$48&" euro stijgen en kan daarna ten vroegste elke 6 maand met maximaal "& 'Parameters+keuzes'!$B$48 & " euro worden verhoogd tot de goedgekeurde prijs bereikt is."),"") -> 
F181: 0 | G181: 0 | H181: 0 | I181: =IF(G181>0,IF(F181=0,"De dagprijs stijgt niet in het eerste jaar en kan daarna elke 6 maand met max. "& 'Parameters+keuzes'!$C$48 &" euro worden verhoogd tot de goedgekeurde prijs bereikt is.", "De dagprijs kan bij ingebruikname met max. "& 'Parameters+keuzes'!$B$48&" euro stijgen en kan daarna ten vroegste elke 6 maand met maximaal "& 'Parameters+keuzes'!$B$48 & " euro worden verhoogd tot de goedgekeurde prijs bereikt is."),"") -> 
F182: 0 | G182: 0 | H182: 0 | I182: =IF(G182>0,IF(F182=0,"De dagprijs stijgt niet in het eerste jaar en kan daarna elke 6 maand met max. "& 'Parameters+keuzes'!$C$48 &" euro worden verhoogd tot de goedgekeurde prijs bereikt is.", "De dagprijs kan bij ingebruikname met max. "& 'Parameters+keuzes'!$B$48&" euro stijgen en kan daarna ten vroegste elke 6 maand met maximaal "& 'Parameters+keuzes'!$B$48 & " euro worden verhoogd tot de goedgekeurde prijs bereikt is."),"") -> 
F183: 0 | G183: 0 | H183: 0 | I183: =IF(G183>0,IF(F183=0,"De dagprijs stijgt niet in het eerste jaar en kan daarna elke 6 maand met max. "& 'Parameters+keuzes'!$C$48 &" euro worden verhoogd tot de goedgekeurde prijs bereikt is.", "De dagprijs kan bij ingebruikname met max. "& 'Parameters+keuzes'!$B$48&" euro stijgen en kan daarna ten vroegste elke 6 maand met maximaal "& 'Parameters+keuzes'!$B$48 & " euro worden verhoogd tot de goedgekeurde prijs bereikt is."),"") -> 
F184: 0 | G184: 0 | H184: 0 | I184: =IF(G184>0,IF(F184=0,"De dagprijs stijgt niet in het eerste jaar en kan daarna elke 6 maand met max. "& 'Parameters+keuzes'!$C$48 &" euro worden verhoogd tot de goedgekeurde prijs bereikt is.", "De dagprijs kan bij ingebruikname met max. "& 'Parameters+keuzes'!$B$48&" euro stijgen en kan daarna ten vroegste elke 6 maand met maximaal "& 'Parameters+keuzes'!$B$48 & " euro worden verhoogd tot de goedgekeurde prijs bereikt is."),"") -> 
B185: Gewogen gemiddelde | E185: =SUM(E166:E184) -> 0 | G185: =SUM(E166:E184*G166:G184)/IF(E185>0,E185,1) -> 0 | H185: =SUM(E166:E184*H166:H184)/IF($E$185>0,$E$185,1) -> 0
B187: Motivatie opname prijs in overeenkomst via: | E187: ='1A-Infrastructuur met forfait'!E196 -> door ondertekening van het outputtabblad wordt naar eer en geweten verklaard dat het aantal vermelde bewoners met opnameovereenkomst correct is
E188: bewijs van de datum van de start van de werken aan hand van een aanvangsbevel van de werken (brief voorziening aan de aannemer)

Sheet Formulier 2 (hidden)
A1: Formulier 2: andere (geen drastische infrastructuurwerken of evolueren naar marge)
B2: Klik hier indien terug naar generieke input
B3: U kan de lichtblauw gekleurde cellen invullen (waar nodig)
B4: Dit formulier wordt gebruikt voor alle zorgvormen en voor volgende aanleidingen voor dagprijsverhoging: hetzij (a) investeringen waarvan minder dan 50% van de totale kost op factuur afgeschreven wordt op minimaal twintig jaar (rubriek 3) of hetzij (b) een marge-evolutie (rubrieken 1 en 2). Beide (a) en (b) kunnen niet gelijktijdig worden ingevoerd. Tussen de indiening van (a) en (b) dient ook minimaal twee jaar verstreken te zijn. Verder kan dit formulier ook ingevuld worden voor verschuiving van supplement naar dagprijs (rubriek 4) of voor andere toeslagen (rubriek 6).
A8: 1. Resultatenrekening
B10: Indien u een dagprijsverhoging wenst omwille van marge-evolutie, dan vult u het laatst beschikbaar boekjaar in E13 in en dient u hierna de opbrengsten en kosten in te voeren van de laatste 2 beschikbare boekjaren. Indien u het formulier gebruikt voor niet-drastische investeringen, dan vult u rubrieken 1&2 niet in en vult u rubriek 3 in. Vervolgens vult u in rubriek 2 de huidige gewogen gemiddelde dagprijs in. Indien u de dagprijsverhoging slechts aanvraagt voor een deel van de bewoners terwijl de opbrengsten en kosten betrekking hebben op de volledige voorziening, dan dient u de opbrengsten en kosten te prorateren in functie van het aantal bewoners waarop de dagprijsverhoging zal worden toegepast. De marge-evolutie zal immers berekend worden op basis van de ingevoerde opbrengsten en kosten vóór uitzonderlijk resultaat, zodat die uiteraard in verhouding moeten staan tot het aantal bewoners waarop de dagprijsverhoging betrekking zal hebben. Indien de resultatenrekening niet direct op het niveau van de zorgvorm kan worden bezorgd, dient er vertrokken te worden van de resultatenrekening op hoger niveau (dit kan van de rechtspersoon zijn of een analytische resultatenrekening/beleidsveld voor verschillende zorgvormen samen). Op basis van redelijke verdeelsleutels wordt uit die geaggregeerde resultatenrekening, de resultatenrekening samengesteld van de zorgvorm waarvoor de prijsaanvraag wordt ingediend.
B13: Boekjaar van de laatst beschikbare jaarrekening? | E13: 2024 | F13: <= vul hiernaast het jaartal van het laatste beschikbare boekjaar in
G15: jaarrekening | J15: jaarrekening
G16: jaar : | H16: =K16-1 -> 2023 | J16: jaar : | K16: =E13 -> 2024
B17: I Werkingsopbrengsten (70/74) | G17: 0 | J17: 0 | M17: gelieve in te vullen
B18: II Bedrijfskosten (60/64) | G18: =SUM(G19:I22) -> 0 | J18: =SUM(J19:L22) -> 0 | M18: wordt berekend
B19: . Handelsgoederen, grond- en hulpstoffen, diensten en diverse leveringen (60/61) | G19: 0 | J19: 0 | M19: gelieve in te vullen
B20: . Personeelskosten (62) | G20: 0 | J20: 0 | M20: gelieve in te vullen
B21: . Afschrijvingen, waardeverminderingen en voorzieningen (63) | G21: 0 | J21: 0 | M21: gelieve in te vullen
B22: . Andere bedrijfskosten (64) | M22: gelieve in te vullen
B23: III Nettobedrijfsresultaat (I - II) | G23: =G17-G18 -> 0 | J23: =J17-J18 -> 0
M24: wordt berekend
B25: IV Financiële opbrengsten (75) | G25: 0 | J25: 0 | M25: gelieve in te vullen
B26: V Financiële kosten (65) | G26: 0 | J26: 0 | M26: gelieve in te vullen
B27: VI Winst/verlies uit gewone | G27: =G23+G25-G26 -> 0 | J27: =J23+J25-J26 -> 0
B28: uitbating vóór belasting
B29: ((totaal III + (IV-V)) | M29: wordt berekend
B30: Marge vóór uitzonderlijk resultaat | G30: =IFERROR(G27/G17,0%) -> 0 | J30: =IFERROR(J27/J17,0%) -> 0 | M30: wordt berekend
B31: Marge < 2,5% | G31: =IF(G30<2.5%,"JA","NEEN") -> JA | J31: =IF(J30<2.5%,"JA","NEEN") -> JA | M31: wordt bepaald
B32: VII Uitzonderlijke opbrengsten (76) | G32: 0 | J32: 0 | M32: gelieve in te vullen
B33: VIII Uitzonderlijke kosten (66) | G33: 0 | J33: 0 | M33: gelieve in te vullen
B34: IX Resultaat vóór belastingen | G34: =G27+G32-G33 -> 0 | J34: =J27+J32-J33 -> 0
B35: (totaal VI+ (VII-VIII) | M35: wordt berekend
B36: X Belastingen (67/78) | M36: gelieve in te vullen
B37: XI Winst / verlies boekjaar | G37: =G34-G36 -> 0 | J37: =J34-J36 -> 0
B38: na belastingen | M38: word berekend
B40: Eventuele bijkomende bewijsstukken: | F40: Resultatenrekening (extracomptabel) van de betrokken zorgvorm (woonzorgcentrum en kortverblijf, DVC, GAW)
F41: Indien ontbrekend, kan vertrokken worden van het hogere beschikbare niveau, waarop dan vervolgens een verdeelsleutel wordt toegepast.
A43: 2. | B43: Marge-evolutie
B45: Indien u een dagprijsverhoging voor marge-evolutie wenst, dan dient u naast de jaarrekening onder (1), onder (2.1) voor het WZC inclusief kortverblijf en de GAW op rij 55 de huidige gewogen gemiddelde dagprijs van uw voorziening in te vullen. In het eerste luik (2.1) worden vervolgens de criteria getoetst. Basisvoorwaarde is dat de marge gedurende de 2 afgelopen boekjaren minder dan 2,5% bedroeg, wat door de excel wordt afgetoetst op basis van de resultatenrekening onder rubriek 1. Daarnaast zal (a) de gewogen gemiddelde dagprijs van uw voorziening (zoals bepaald in het kader van de bevraging van het departement zorg) worden vergeleken met (b) de gewogen gemiddelde dagprijs van de private sector voor de WZC en KV of een vaste referentieprijs voor de GAW. Indien (a) hoger ligt dan 125% van (b), dan wordt uw voorziening beschouwd als een voorziening met een bovengemiddelde dagprijs. Dit vereist dan een bijkomende toets van de evolutie van huurkost, afschrijvingen en intrest. Deze kosten mogen samen over de afgelopen 4 jaar niet sterker geëvolueerd zijn dan de afgevlakte gezondheidsindex.Indien dit toch het geval is, dient aangetoond te worden dat er significante investeringen werden uitgevoerd. In het tweede luik (2.2) wordt de dagprijsverhoging bepaald die nodig zou zijn om vertrekkend van het laatst beschikbare boekjaar, tot een marge van 2,5% te kunnen komen. Ten eerste wordt daartoe de vereiste toename van de % marge (B) berekend door het verschil te berekenen tussen 2,5% en de marge van het laatste beschikbare boekjaar (A). Ten tweede wordt die vereiste margetoename (B) verrekend op de werkingsopbrengsten van het laatst beschikbare boekjaar om de extra benodigde werkingsopbrengsten (C) te berekenen: C=B x werkingsopbrengsten. Ten derde worden de zo berekende extra benodigde werkingsopbrengsten vertaald in een dagprijstoename o.b.v. de bezettingsgraad (D) zoals bepaald in "Generieke Input" en het aantal woongelegenheden (E) waarover die wordt gespreid. Ten vierde wordt in geval van de onder 2.1 bepaalde voorziening met reeds een bovengemiddelde dagprijs, de dagprijsstijging afgetopt op een percentage van de gewogen gemiddelde dagprijs van de private sector + 25% (GGDP) of de referentieprijs voor de GAW. Het voornoemde percentage bedraagt 5% indien er in het laatste boekjaar een marge was tussen 0% en 2,5% (beperkt resultaat) en 10% indien het laatste boekjaar een negatieve marge toonde.
B50: 2.1 Toetsing criteria:
B51: Klik sowieso in een willekeurige cel om de passende rijen te laten verschijnen (of te laten verdwijnen)!
B52: marge gedurende 2 afgelopen boekjaren < 2,5%? | F52: =IF(AND(COUNTIF(G31:L31,"JA")=2,J17>0),"JA","NEEN") -> NEEN | H52: wordt bepaald
B54: bovengemiddelde dagprijs? | F54: =IF(OR(F52="NEEN",'Generieke input'!AA48="CDV/CDO"),"NVT", IF(F55>F57,"JA","NEEN")) -> NVT | H54: indien JA en indien volgende cellen niet verschijnen, gelieve dan in een willekeurige cel te klikken
B55: huidige gewogen gemiddelde dagprijs van de voorziening (na aftrek infrastructuurforfait) | F55: 75 | H55: dient u in te vullen, zie: https://view.officeapps.live.com/op/view.aspx?src=https%3A%2F%2Fwww.zorg-en-gezondheid.be%2Fsites%2Fdefault%2Ffiles%2F2023-10%2FOverzicht_alle_dagprijzen_2023_-_eentweepers_-_Vlaanderen.xlsx&wdOrigin=BROWSELINK
B56: gewogen gemiddelde dagprijs private sector o.b.v. laatste beschikbaar jaar | F56: =IF('Generieke input'!AA48="GAW",'Parameters+keuzes'!D32,'Parameters+keuzes'!C32) -> 71.6 | H56: wordt opgezocht bij parameters
B57: gewogen gemiddelde dagprijs private sector + 25% | F57: =1.25*F56 -> 89.5 | H57: word berekend
B58: verantwoording evolutie huurkost, afschrijvingen en intrestlast | F58: =IF(OR(F52="NEEN",J17=0,F54="NEEN",F54="NVT"),"NIET VEREIST",IF(OR(F80="JA",F81="JA"),"VEREIST EN OK","VEREIST EN NIET OK")) -> NIET VEREIST
B60: evolutie huurkost, afschrijvingen en intrestlast in orde?
B62: recente huurkost, afschrijvingen en intrestlast in | C62: =K16 -> 2024 | D62: wordt bepaald o.b.v. laatste jaarrekening | F62: =SUM(G64:G66) -> 120000 | H62: wordt berekend
B63: waarvan:
B64: huurkost | G64: 120000 | H64: vul hier in, bewijs via extract analytische boekhouding
B65: afschrijvingen | G65: 0 | H65: vul hier in, bewijs via extract analytische boekhouding
B66: intrest | G66: 0 | H66: vul hier in, bewijs via extract analytische boekhouding
B68: huurkost, afschrijvingen en intrest 4 jaar terug in | C68: =C62-4 -> 2020 | D68: wordt bepaald o.b.v. jaarrekening N-4 | F68: =SUM(G70:G72) -> 110000
B69: waarvan:
B70: huurkost | G70: 110000 | H70: vul hier in, bewijs via extract analytische boekhouding
B71: afschrijvingen | G71: 0 | H71: vul hier in, bewijs via extract analytische boekhouding
B72: intrest | G72: 0 | H72: vul hier in, bewijs via extract analytische boekhouding
B74: toename huurkost, afschrijvingen en intrest | F74: =IFERROR(F62/F68-1,100%) -> 0.09090909091 | H74: wordt berekend
B75: toename afgevlakte gezondheidsindex | F75: =F78/F77-1 -> 0.2107315262 | H75: wordt berekend
B77: beginindex | C77: =C68 -> 2020 | D77: wordt bepaald | F77: =_xlfn.XLOOKUP(C77,'Parameters+keuzes'!A38:A44,'Parameters+keuzes'!B38:B44,0,0) -> 107.72 | H77: wordt opgezocht bij parameters
B78: eindindex | C78: =C77+4 -> 2024 | D78: wordt bepaald | F78: =_xlfn.XLOOKUP(C78,'Parameters+keuzes'!A38:A45,'Parameters+keuzes'!B38:B45,0,0) -> 130.42 | H78: wordt opgezocht bij parameters
B80: Evolutie huurkost, afschrijvingen en intrestlast < afgevlakte gezondheidsindex | F80: =IF(F74<=F75,"JA","NEEN") -> JA | H80: wordt bepaald
B81: ="Verantwoording materiële investering in periode " &C68&"-"&C62&"?" -> Verantwoording materiële investering in periode 2020-2024? | F81: JA | H81: =IF(F80="NEEN","Voeg bewijs materiële investering toe.","") -> 
B83: 2.2 berekening dagprijsverhoging
B84: recente marge | E84: A | F84: =J30 -> 0 | H84: zie laatste boekjaar
B85: extra marge tot 2,5% | E85: B=max(0%;2,5%-A) | F85: =IF(F52="JA",MAX(ROUND(2.5%-F84,4),0),0%) -> 0 | H85: wordt berekend
B87: extra marge x werkingsopbrengsten (70/74) | E87: C=B x werkingsopbrengsten | F87: =F85*J17 -> 0 | H87: wordt berekend
B89: aantal dagen (berekend) | E89: ="F=" &E130& "xDxE" -> F=365xDxE | F89: =PRODUCT(F90:G91,E130) -> 0 | H89: wordt berekend
B90: bezettingsgraad | E90: D | F90: ='Generieke input'!AA47 -> 0 | H90: zie "Generieke input"
B91: aantal woongelegenheden | E91: E | F91: ='Generieke input'!H36 -> 0 | H91: zie "Generieke input"
B93: maximale prijsverhoging ifv marge | E93: G=C/F | F93: =ROUND(F87/F89,2) ->  | H93: wordt berekend
B95: Aftopping bij bovengemiddelde woonzorgcentra
B96: verstreksituatie | F96: =IF(J27>=0,"Marge >=0%","Marge <0%") -> Marge >=0% | H96: wordt bepaald op basis van resultaat laatste jaar | N96: te beveiligen
B97: dagprijsstijging t.o.v. gewogen gemiddelde dagprijs private sector is max. | E97: H | F97: =IF(AND(F52="JA",J37>=0),"5%","10%") -> 10% | H97: in functie van resultaat vóór uitzonderlijk resultaat, in laatste jaar. Indien verlies =10%, beperkt resultaat = 5% | N97: te beveiligen
B98: gewogen gemiddelde dagprijs private sector o.b.v. laatste beschikbaar jaar | E98: I | F98: =F56 -> 71.6 | H98: wordt berekend | N98: te beveiligen
B99: gewogen gemiddelde dagprijs private sector + 25% | E99: J= 1,25 x I | F99: =ROUND(1.25*F98,2) -> 89.5 | H99: wordt berekend | N99: te beveiligen
B100: maximale prijsverhoging i.f.v. gewogen gemiddelde dagprijs private sector | E100: K=H x J | F100: =ROUND(F97*F99,2) -> 8.95 | H100: wordt berekend | N100: te beveiligen
B102: afgetoetste dagprijsverhoging | E102: =IF(F58="NIET VEREIST", "G","MIN (G,K)") -> G | F102: =IF(F58<>"VEREIST EN NIET OK",IF(OR(F54="NEEN",F54="NVT"),F93,MIN(F93,F100)),0) ->  | H102: wordt bepaald
B104: Maximale prijsverhoging o.b.v. marge-evolutie: | G104: =F102 -> 
B108: Over te maken gegevens: | F108: =F40 & ". " & F41 -> Resultatenrekening (extracomptabel) van de betrokken zorgvorm (woonzorgcentrum en kortverblijf, DVC, GAW). Indien ontbrekend, kan vertrokken worden van het hogere beschikbare niveau, waarop dan vervolgens een verdeelsleutel wordt toegepast.
F109: Het verslag van de efficiëntiemaatregelen: dit is een overzicht van de maatregelen die de voorziening in de voorbij 3 jaren heeft genomen en in de volgende jaren gaat nemen om het verlies weg te werken of te beperken.
A111: 3. | B111: Nieuwe investeringen (geen drastische investeringen)
B113: Deze rubriek dient u enkel te vervolledigen indien u een aanvraag voor investeringen wenst in te dienen. In dat geval dient u wel nog 2 jaar te wachten vooraleer u voor marge-evolutie een aanvraag kan indienen. Deze rubriek wordt ook enkel gehanteerd indien de investeringen voor minder dan de helft op minimaal twintig jaar worden afgeschreven. Indien de investeringen voor minimaal de helft op minimaal twintig jaar worden afgeschreven, kan het formulier 1 worden gehanteerd. Formulier 1 kan voor dezelfde bewoners echter niet gecombineerd worden met formulier 2 (voor marge-evolutie). Er zal dan ook twee jaar moeten verstreken zijn tussen beide formulieren. U kan hier vrij de afschrijvingstermijn bepalen in zoverre dat die in lijn ligt van de waarderingsregels. Indien de investering ter vervanging van een voorgaande investering geldt, dan dient de reeds eerder in de dagprijs opgenomen kost in mindering te worden gebracht.
E119: Investeringscategorie I: …........ | G119: Investeringscategorie II: ………. | J119: Investeringscategorie III: ….... | M119: Investeringscategorie IV: ……… | P119: U kan dit wijzigen in functie van de specifieke investeringstypes volgens afschrijvingstermijn
B120: Eenmalige investeringskost | E120: 0 | G120: 0 | J120: 0 | M120: 0 | P120: (verplicht in te vullen)
B121: totaal kapitaalsubsidie | P121: (verplicht in te vullen)
B122: totale BTW-recuperatie | P122: (verplicht in te vullen)
B123: Totale netto investeringskost | E123: =E120-E121-E122 -> 0 | G123: =G120-G121-G122 -> 0 | J123: =J120-J121-J122 -> 0 | M123: =M120-M121-M122 -> 0 | P123: wordt berekend
B124: financieringskost | E124: =IFERROR(-PMT('Generieke input'!D56,E128,E123)*E128-E123,0) -> 0 | G124: =IFERROR(-PMT('Generieke input'!D56,G128,G123)*G128-G123,0) -> 0 | J124: =IFERROR(-PMT('Generieke input'!D56,J128,J123)*J128-J123,0) -> 0 | M124: =IFERROR(-PMT('Generieke input'!D56,M128,M123)*M128-M123,0) -> 0 | P124: wordt berekend o.b.v. OLO in Generieke Input
B125: Investeringskost inclusief financieringskost | E125: =E123+E124 -> 0 | G125: =G123+G124 -> 0 | J125: =J123+J124 -> 0 | M125: =M123+M124 -> 0 | P125: wordt berekend
B126: intrestsubsidie | E126: 0 | P126: in te vullen, indien voorkomend
B127: Netto investerings- en financieringskost | E127: =E125-E126 -> 0 | G127: =G125-G126 -> 0 | J127: =J125-J126 -> 0 | M127: =M125-M126 -> 0 | P127: wordt berekend
B128: Afschrijvingsduur eenmalige investeringkost (in jaren): | E128: 10 | J128: 15 | P128: in te vullen, gebaseerd op de waarderingsregels
B129: Aantal erkende capaciteit | E129: ='Generieke input'!H36 -> 0 | G129: =E129 -> 0 | J129: =G129 -> 0 | M129: =J129 -> 0 | P129: wordt overgenomen uit Generieke input
B130: Aantal dagen | E130: =IF('Generieke input'!$V$36=4,250,365) -> 365 | G130: =E130 -> 365 | J130: =G130 -> 365 | M130: =J130 -> 365 | P130: zie Gregoriaanse kalender
B131: bezettingsgraad | E131: ='Generieke input'!AA47 -> 0 | G131: =E131 -> 0 | J131: =G131 -> 0 | M131: =J131 -> 0 | P131: wordt overgenomen uit Generieke input
B132: maximale bruto dagprijsverhoging | E132: =IFERROR(ROUND(E127/E128/E130/E129/E131,2),0) -> 0 | G132: =IFERROR(ROUND(G127/G128/G130/G129/G131,2),0) -> 0 | J132: =IFERROR(ROUND(J127/J128/J130/J129/J131,2),0) -> 0 | M132: =IFERROR(ROUND(M127/M128/M130/M129/M131,2),0) -> 0 | P132: wordt berekend
B133: Reeds opgenomen bedrag in dagprijs in geval van vervanging | P133: in te vullen
B134: maximale netto dagprijsverhoging | E134: =E132-E133 -> 0 | G134: =G132-G133 -> 0 | J134: =J132-J133 -> 0 | M134: =M132-M133 -> 0 | P134: wordt berekend
B136: Voorstel van prijsverhoging: | G136: =E134+G134+J134+M134 -> 0 | J136: wordt berekend
G137: Belangrijk: de verantwoordingsstukken mogen niet ouder dan twee jaar zijn.
B140: Toe te voegen bijlagen: | F140: Voeg tabblad met investeringsoverzicht met kostencomponenten en verantwoordingsstukken toe, of maak gebruik van het standaard voorziene tabblad. Hierna worden de verantwoordingsstukken steekproefgewijs opgevraagd.
A143: 4. | B143: Verschuiving van supplement naar dagprijs
B145: Voorstel van prijsverhoging: | G145: 0
B146: Motivatie:
B149: Over te maken gegevens: | F149: Bewijs van reële kosten die aanleiding geven tot de gevraagde dagprijsverhoging
A152: 5. | B152: Evaluatie dagprijzen
B154: Vul onder 5.1 en 5.2 per kamertype de capaciteiten en de gevraagde dagprijzen in. In rubriek 5.3 wordt de plafondprijs voor de nieuwe en bestaande bewoners bepaald. Voor de nieuwe bewoners wordt de gemiddelde dagprijs enkel afgetopt op basis van de verantwoorde kost. Voor de bestaande bewoners is er een aftopping op 10% van de huidige gemiddelde dagprijs (na eventuele aftrek van het infrastructuurforfait). In rubriek 5.4 worden de opstappen bepaald. In geval van een marge-evolutie waarbij het laatste jaar een positieve marge laat zien, worden de opstappen bovendien beperkt tot 5% het eerste jaar (met opstappen van 6 euro per 6 maand) en vanaf de 13e maand maximaal 10%. Indien het laatste jaar echter een negatieve marge laat zien, verlopen de opstappen volgens maximaal 6 euro per 6 maand met een maximum van 10%. Voor de andere aanleidingen dan marge-evolutie gelden altijd de opstappen van 6 euro per 6 maand.
B160: 5.1 Aangevraagde dagprijzen per kamertype voor nieuwe bewoners
B162: Vermeld hier de dagprijzen indien de capaciteit volledig bewoond zou zijn door nieuwe bewoners. Vermeld per kamertype de capaciteit en de gevraagde dagprijs. Indien er eerder een infrastructuurforfait werd toegekend, is de gevraagde dagprijs na aftrek van dit infrastructuurforfait. Het gemiddelde van die dagprijs mag de verantwoorde kost niet overstijgen. U vindt die terug in rubriek 5.3, onder goedgekeurde maximale gemiddelde dagprijs.
B166: in te vullen | E166: in te vullen | F166: in te vullen
B167: Kamertype/woon/verblijfseenheid in nieuwe infrastructuur | E167: Capaciteit waarvoor prijsaanvraag | F167: Gevraagde dagprijs (na evt. infrastructuurforfait)
F169: 0 | G169: Eventuele foutmeldingen: | L169: kolommen B, E, F zijn in te vullen
F170: 0 | G170: =IF(E188<>'Generieke input'!H36,"De totale capaciteit voor de vermelde dagprijzen stemt niet overeen met de capaciteit in het tabblad 'Generieke input', cel H36","") -> 
F171: 0 | G171: =IFERROR(IF(F188>F236, "De gemiddelde prijs ligt hoger dan de maximale gemiddelde prijs van " & F236&" euro zoals berekend onder 5.3. Pas de prijs van 1 of meerdere kamertypes aan.",""),"") -> 
F172: 0
F173: 0
F174: 0
F175: 0
F176: 0
F177: 0
F178: 0
F179: 0
F180: 0
F181: 0
F182: 0
F183: 0
F184: 0
F185: 0
F186: 0
F187: 0
B188: Gewogen gemiddelde | E188: =SUM(E169:E187) -> 0 | F188: =SUM(E169:E187*F169:F187)/IF(E188>0,E188,1) -> 0 | G188: =" Ter info: dit gewogen gemiddelde wordt vergeleken met de goedgekeurde maximale gemiddelde dagprijs van " &F236& " euro." -> 
B190: 5.2 Aangevraagde dagprijzen bestaande bewoners (vertrekbasis = dagprijs per kamertype in de oude voorziening)
B192: Vermeld hier per kamertype (in kolom B) voor de bestaande bewoners: de capaciteit (kolom E), de huidige dagprijs in de oude infrastructuur (kolom F) en de gevraagde prijs in de nieuwe infrastructuur (= kolom G). Het programma berekent dan de plafondprijs (kolom H), de maximale prijs in jaar 1 (kolom I) en de maximale prijs vanaf jaar 2 (kolom J). De plafondprijs wordt bepaald onder 5.3 in de kolom bestaande bewoners. Deze is het minimum van de effectieve doorrekenbare kost en 110% van de huidige gemiddelde dagprijs (na eventuele aftrek van het infrastructuurforfait). De opstappen worden bepaald onder rubriek 5.4. In geval van een marge-evolutie onderscheiden we volgende groeiritmes voor de opstappen: Indien in het laatste boekjaar een positieve marge of beperkt resultaat wordt gerealiseerd, zullen de opstappen beperkt blijven tot maximaal 5% ten opzichte van de dagprijs van het kamertype in het eerste jaar (met stappen van 6 euro per 6 maand). Indien in het laatste boekjaar een negatieve marge wordt gerealiseerd, mogen de opstappen 6 euro per 6 maand bedragen. Voor de niet-drastische investeringen gelden steeds de opstappen van 6 euro per 6 maand.
E197: in te vullen | F197: in te vullen | G197: in te vullen | H197: wordt berekend | I197: wordt berekend | J197: wordt berekend
B198: Kamertype/woon/verblijfseenheid in oude infrastructuur voor bestaande bewoners | E198: Capaciteit waarvoor prijsaanvraag | F198: Huidige nettodagprijs (na evt. infrastructuurforfait) | G198: Aangevraagde nettodagprijs (na evt. infrastructuurforfait) | H198: Goedgekeurde nettodagprijs (na evt.infrastructuurforfait) | I198: max.nettodagprijs jaar1 (na evt. infrastructuurforfait) | J198: max. nettodagprijs (na evt. infrastructuurforfait)
S199: kolommen E-G zijn in te vullen, H-I zijn te beveiligen
F200: 0 | G200: 0 | H200: =MIN(G200,IFERROR(ROUND(F200*(1+$E$238),2),0)) -> 0 | I200: =MIN(G200,IFERROR(ROUND($F200*(1+E$245),2),0)) -> 0 | J200: =H200 -> 0 | K200: Eventuele foutmeldingen:
F201: 0 | G201: 0 | H201: =MIN(G201,IFERROR(ROUND(F201*(1+$E$238),2),0)) -> 0 | I201: =MIN(G201,IFERROR(ROUND($F201*(1+E$245),2),0)) -> 0 | J201: =H201 -> 0 | K201: =IF(E219>F91,"De capaciteit van de bestaande bewoners kan niet hoger zijn dan de capaciteit voor de prijsaanvraag","") -> 
F202: 0 | G202: 0 | H202: 0 | I202: 0 | J202: 0
F203: 0 | G203: 0 | H203: 0 | I203: 0 | J203: 0
F204: 0 | G204: 0 | H204: 0 | I204: 0 | J204: 0
F205: 0 | G205: 0 | H205: 0 | I205: 0 | J205: 0
F206: 0 | G206: 0 | H206: 0 | I206: 0 | J206: 0
F207: 0 | G207: 0 | H207: 0 | I207: 0 | J207: 0
F208: 0 | G208: 0 | H208: 0 | I208: 0 | J208: 0
F209: 0 | G209: 0 | H209: 0 | I209: 0 | J209: 0
F210: 0 | G210: 0 | H210: 0 | I210: 0 | J210: 0
F211: 0 | G211: 0 | H211: 0 | I211: 0 | J211: 0
F212: 0 | G212: 0 | H212: 0 | I212: 0 | J212: 0
F213: 0 | G213: 0 | H213: 0 | I213: 0 | J213: 0
F214: 0 | G214: 0 | H214: 0 | I214: 0 | J214: 0
F215: 0 | G215: 0 | H215: 0 | I215: 0 | J215: 0
F216: 0 | G216: 0 | H216: 0 | I216: 0 | J216: 0
F217: 0 | G217: 0 | H217: 0 | I217: 0 | J217: 0
F218: 0 | G218: 0 | H218: 0 | I218: 0 | J218: 0
B219: Gewogen gemiddelde | E219: =SUM(E200:E218) -> 0 | F219: =IFERROR(SUMPRODUCT(F200:F218,E200:E218)/MAX(SUM(E219),),0) -> 0 | G219: =IFERROR(SUMPRODUCT(G200:G218,E200:E218)/MAX(SUM(E219),),0) -> 0 | H219: =SUMPRODUCT($E$200:$E$218,H200:H218)/MAX(SUM($E$200:$E$218),1) -> 0 | I219: =SUMPRODUCT($E$200:$E$218,I200:I218)/MAX(SUM($E$200:$E$218),1) -> 0 | J219: 0 | K219: naast de aangevraagde prijs, vindt u hier de plafondprijs (kolom H), de maximumprijs in jaar 1 (kolom I) en de maximumprijs waarnaar u in de periode na jaar 1 evolueert
H220: =IFERROR(H219/F219-1,0) -> 0 | I220: =I219-$F$219 -> 0 | J220: =J219-I219 -> 0 | K220: hier worden de opstappen berekend
B222: 5.3 Goedgekeurde maximale gemiddelde prijs | E222: maximale gemiddelde prijs | G222: wordt volledig berekend
E223: bestaande bewoners | F223: nieuwe bewoners
B224: Huidige gemiddelde dagprijs (na eventuele aftrek van het infrastructuurforfait) | D224: =F219 -> 0 | E224: =D224 -> 0 | F224: =D224 -> 0
B226: toegelaten prijsstijging | D226: 0.1
B227: ="plafonnering "& D226*100& "% gemiddelde dagprijs" -> plafonnering 10% gemiddelde dagprijs | D227: =ROUND(D226*D224,2) -> 0
B229: Verantwoorde kost op basis van marge | D229: =G104 ->  | F229: =D229 -> 
B230: ="Voor bestaande bewoners geplafonneerd tot " & D226*100 &"% van de gemiddelde dagprijs" -> Voor bestaande bewoners geplafonneerd tot 10% van de gemiddelde dagprijs | D230: =MIN(D226*D224,D229) ->  | E230: =D230 -> 
B232: Verantwoorde kost op basis van andere kosten:
B233: Effectieve kosten/dag | D233: =G136+G145 -> 0 | F233: =D233 -> 0
B234: Voor bestaande bewoners geplafonneerd tot 10% van de gemiddelde dagprijs | D234: =MIN(D227-D230,D233) ->  | E234: =D234 -> 
B236: goedgekeurde maximale gemiddelde dagprijs (na eventuele aftrek van het infrastructuurforfait) | E236: =SUM(E224:E235) ->  | F236: =SUM(F224:F235) -> 
B238: Max. % toename per kamertype (marge + andere kosten) t.o.v. gemiddelde prijs bestaande bewoners | E238: =IFERROR(ROUND(E236/E224-1,4),0) -> 0
B240: 5.4 Opstappen bestaande bewoners
E242: jaar1 | F242: jaar2 e.v. | G242: wordt volledig berekend | I242: Huidige | K242: Aangevraagd | M242: Verhoging
B243: =IF(F52="JA","In geval van marge-evolutie, laatste jaar =","") ->  | E243: =IF(B243<>"",F96,"") ->  | G243: =IF(E243<>"",IF(E243="Marge >=0%","Opstap eerste jaar beperkt tot 5%, opstappen van 6 euro per 6 maand","Opstap tot max. 10%, beperkt tot 6 euro per 6 maand"),"") -> 
B244: opstappen (steeds t.o.v. huidige dagprijs na eventuele aftrek van het infrastructuurforfait) | E244: =MIN(F97*E224,12,D230+D234) ->  | F244: =(D230+D234)-E244 -> 
B245: procentueel | E245: =IFERROR(ROUND(E244/E224,4),0) -> 0 | F245: =IFERROR(F244/E224,0) -> 0
A247: 6. | B247: Andere toeslagen
I249: Huidige | K249: Aangevraagd | M249: Verhoging
B250: A. Toeslagen gevraagd bovenop de dagprijzen (*)
I252: 0 | K252: 0 | M252: =(K252-I252)/I252 -> 
B267: belangrijke opmerkingen:
B268: - (*) de posten die hier niet worden vermeld, worden onherroepelijk beschouwd als zijnde inbegrepen in de dagprijzen;
B269: - de verhoging van bestaande toeslagen en de facturatie als toeslag van producten of diensten die voorheen inbegrepen
B270: waren in de dagprijzen, moeten voorafgaandelijk worden aangevraagd.
B273: Motivatie voor de verhoging van het (de) supplement(en): | G273: Verplicht in te vullen! | I273: De hieronder ingevulde tekst moet volledig zichtbaar zijn!
B280: B. Beschrijving toeslagen die bovenop de dagprijzen
B281: aangerekend worden als voorgeschoten kosten
B282: (= zonder marge van de voorziening)
B298: C. Opsomming van alle kortingen die gegeven worden (aangeven onder welke voorwaarden deze gegeven worden, welk bedrag of
B299: percentage en voor welke periode)
B300: Korting voor : | I300: Huidige | K300: Aangevraagd
I301: 0 | K301: 0

Sheet Bijlage investeringsoverzicht
A1: Dit is een hulpblad voor de detaillering van de investeringskosten in hetzij formulier 1 of 2. Onder stap 1 voert u de investeringssoorten en hun afschrijvingsduur in. Onder stap 2 vermeldt u de detaillijnen voor de kosten met per detaillijn de omschrijving, het referentienummer van het verantwoordingsstuk, het bedrag en het toewijzingspercentage Onder stap 3 kan u de investeringskosten toewijzen volgens de combinatie van investeringssoort en afschrijvingsduur (3a) of enkel volgens afschrijvingsduur (3b)
A5: Stap 1: voer hier de investeringssoorten en hun afschrijvingsduur in
A6: Belangrijk: de geevens hieronder zijn enkel bedoeld als voorbeeld, gelieve de reële gegevens in te vullen. Gelieve de reeds ingevulde gegevens te overschrijven.
A7: in te vullen | B7: in te vullen
A8: Kies uit de investeringssoort: | B8: afschrijvingsduur
A9: Gebouw | B9: 25
A10: Meubilair (los) | B10: 10
A11: domotica | B11: 3
A12: gordijnen | B12: 5
A13: hardware | B13: 10
A14: software | B14: 5
A15: Investering5 | B15: 20
A16: Investering6
A17: Investering7
A18: Investering8
A19: Investering9
A20: Investering10
A21: Investering11
A22: Investering12
A23: Investering13
A24: Investering14
A26: Stap 2: voer de kostencomponenten in
A28: Per detaillijn vermeldt u:
B29: kolom A | C29: investeringssoort, door het selecteren van de uitvallijst. Die uitvallijst wordt bepaald op basis van de rubrieken die in stap 1 werden opgenomen
B30: kolom B | C30: de omschrijving van de werken of aankoop
B31: kolom C | C31: het referentienummer van het verantwoordingsstuk, op basis waarvan dit door de administratie kan worden opgevraagd
B32: kolom D | C32: kostprijs exclusief BTW
B33: kolom E | C33: kostprijs inclusief BTW
B34: kolom F | C34: toewijzingspercentage: het deel van de investeringskost dat voor de prijsaanvraag kan worden meegerekend
A36: Belangrijk: er zijn tot rij197 lijnen voor invoer. U kan deze sheet nog bewerken en verder aanvullen met bijkomende invoerlijnen
A37: De gegevens hieronder zijn enkel bedoeld als voorbeeld. Gelieve die te overtypen met uw gegevens met betrekking tot de investeringskost.
A38: geel= te selecteren | B38: oranje wordt berekend
A39: groen= in te vullen
A41: in te vullen | B41: in te vullen | C41: in te vullen | D41: in te vullen | E41: in te vullen | F41: in te vullen | G41: wordt berekend
A42: Investeringssoort in formulier | B42: Omschrijving | C42: Verantwoordingsstuk | D42: Referentie | E42: Kostprijs (incl. niet-aftrekbare BTW) | F42: toewijzings% | G42: toe te rekenen
A43: Gebouw | B43: studie architect | C43: contract | D43: 2023-contract-1 | F43: 1 | G43: =F43*E43 -> 0
A44: Gebouw | B44: omgevingsaanleg | C44: gunningsbeslissing | D44: 2024-GB1 | F44: 1 | G44: =F44*E44 -> 0
A45: Gebouw | B45: ruwbouw | C45: gunningsbeslissing | D45: 2024-GB2 | F45: 1 | G45: 0
A46: Gebouw | B46: technieken en afwerking | C46: gunningsbeslissing | D46: 2024-GB3 | F46: 1 | G46: 0
A47: Gebouw | B47: vast meubilair | C47: gunningsbeslissing | D47: 2024-GB4 | F47: 1 | G47: 0
A48: Gebouw | B48: herzieningen | C48: vorderingstaat | D48: VS-18 | F48: 1 | G48: 0
A49: Meubilair (los) | B49: nachttafels + tafels + bedden | C49: factuur | D49: AF18 | F49: 1 | G49: 0
A50: Meubilair (los) | B50: kasten | C50: offerte | D50: bestelbon_Furniture | F50: 1 | G50: 0
A51: domotica | B51: oproepsysteem | C51: offerte | D51: bestelbon_CallMe | F51: 1 | G51: 0
A52: gordijnen | B52: gordijnen | C52: factuur | D52: AF27 | F52: 1 | G52: 0
A53: hardware | B53: computers | C53: factuur | D53: AF36 | F53: 1 | G53: 0
A54: software | B54: licenties | C54: factuur | D54: AF39 | F54: 1 | G54: 0
A55: Investering5 | B55: keuken | C55: factuur | D55: AF99 | F55: 1 | G55: 0
A56: Kies uit de investeringscomponent: | F56: 1 | G56: 0
A57: Kies uit de investeringscomponent: | F57: 1 | G57: 0
A58: Kies uit de investeringscomponent: | F58: 1 | G58: 0
A59: Kies uit de investeringscomponent: | F59: 1 | G59: 0
A60: Kies uit de investeringscomponent: | F60: 1 | G60: 0
A61: Kies uit de investeringscomponent: | F61: 1 | G61: 0
A62: Kies uit de investeringscomponent: | F62: 1 | G62: 0
A63: Kies uit de investeringscomponent: | F63: 1 | G63: 0
A64: Kies uit de investeringscomponent: | F64: 1 | G64: 0
A65: Kies uit de investeringscomponent: | F65: 1 | G65: 0
A66: Kies uit de investeringscomponent: | F66: 1 | G66: 0
A67: Kies uit de investeringscomponent: | F67: 1 | G67: 0
A68: Kies uit de investeringscomponent: | F68: 1 | G68: 0
A69: Kies uit de investeringscomponent: | F69: 1 | G69: 0
A70: Kies uit de investeringscomponent: | F70: 1 | G70: 0
A71: Kies uit de investeringscomponent: | F71: 1 | G71: 0
A72: Kies uit de investeringscomponent: | F72: 1 | G72: 0
A73: Kies uit de investeringscomponent: | F73: 1 | G73: 0
A74: Kies uit de investeringscomponent: | F74: 1 | G74: 0
A75: Kies uit de investeringscomponent: | F75: 1 | G75: 0
A76: Kies uit de investeringscomponent: | F76: 1 | G76: 0
A77: Kies uit de investeringscomponent: | F77: 1 | G77: 0
A78: Kies uit de investeringscomponent: | F78: 1 | G78: 0
A79: Kies uit de investeringscomponent: | F79: 1 | G79: 0
A80: Kies uit de investeringscomponent: | F80: 1 | G80: 0
A81: Kies uit de investeringscomponent: | F81: 1 | G81: 0
A82: Kies uit de investeringscomponent: | F82: 1 | G82: 0
A83: Kies uit de investeringscomponent: | F83: 1 | G83: 0
A84: Kies uit de investeringscomponent: | F84: 1 | G84: 0
A85: Kies uit de investeringscomponent: | F85: 1 | G85: 0
A86: Kies uit de investeringscomponent: | F86: 1 | G86: 0
A87: Kies uit de investeringscomponent: | F87: 1 | G87: 0
A88: Kies uit de investeringscomponent: | F88: 1 | G88: 0
A89: Kies uit de investeringscomponent: | F89: 1 | G89: 0
A90: Kies uit de investeringscomponent: | F90: 1 | G90: 0
A91: Kies uit de investeringscomponent: | F91: 1 | G91: 0
A92: Kies uit de investeringscomponent: | F92: 1 | G92: 0
A93: Kies uit de investeringscomponent: | F93: 1 | G93: 0
A94: Kies uit de investeringscomponent: | F94: 1 | G94: 0
A95: Kies uit de investeringscomponent: | F95: 1 | G95: 0
A96: Kies uit de investeringscomponent: | F96: 1 | G96: 0
A97: Kies uit de investeringscomponent: | F97: 1 | G97: 0
A98: Kies uit de investeringscomponent: | F98: 1 | G98: 0
A99: Kies uit de investeringscomponent: | F99: 1 | G99: 0
A100: Kies uit de investeringscomponent: | F100: 1 | G100: 0
A101: Kies uit de investeringscomponent: | F101: 1 | G101: 0
A102: Kies uit de investeringscomponent: | F102: 1 | G102: 0
A103: Kies uit de investeringscomponent: | F103: 1 | G103: 0
A104: Kies uit de investeringscomponent: | F104: 1 | G104: 0
A105: Kies uit de investeringscomponent: | F105: 1 | G105: 0
A106: Kies uit de investeringscomponent: | F106: 1 | G106: 0
A107: Kies uit de investeringscomponent: | F107: 1 | G107: 0
A108: Kies uit de investeringscomponent: | F108: 1 | G108: 0
A109: Kies uit de investeringscomponent: | F109: 1 | G109: 0
A110: Kies uit de investeringscomponent: | F110: 1 | G110: 0
A111: Kies uit de investeringscomponent: | F111: 1 | G111: 0
A112: Kies uit de investeringscomponent: | F112: 1 | G112: 0
A113: Kies uit de investeringscomponent: | F113: 1 | G113: 0
A114: Kies uit de investeringscomponent: | F114: 1 | G114: 0
A115: Kies uit de investeringscomponent: | F115: 1 | G115: =F115*E115 -> 0
A116: Kies uit de investeringscomponent: | F116: 1 | G116: 0
A117: Kies uit de investeringscomponent: | F117: 1 | G117: 0
A118: Kies uit de investeringscomponent: | F118: 1 | G118: 0
A119: Kies uit de investeringscomponent: | F119: 1 | G119: 0
A120: Kies uit de investeringscomponent: | F120: 1 | G120: 0
A121: Kies uit de investeringscomponent: | F121: 1 | G121: 0
A122: Kies uit de investeringscomponent: | F122: 1 | G122: 0
A123: Kies uit de investeringscomponent: | F123: 1 | G123: 0
A124: Kies uit de investeringscomponent: | F124: 1 | G124: 0
A125: Kies uit de investeringscomponent: | F125: 1 | G125: 0
A126: Kies uit de investeringscomponent: | F126: 1 | G126: 0
A127: Kies uit de investeringscomponent: | F127: 1 | G127: 0
A128: Kies uit de investeringscomponent: | F128: 1 | G128: 0
A129: Kies uit de investeringscomponent: | F129: 1 | G129: 0
A130: Kies uit de investeringscomponent: | F130: 1 | G130: 0
A131: Kies uit de investeringscomponent: | F131: 1 | G131: 0
A132: Kies uit de investeringscomponent: | F132: 1 | G132: 0
A133: Kies uit de investeringscomponent: | F133: 1 | G133: 0
A134: Kies uit de investeringscomponent: | F134: 1 | G134: 0
A135: Kies uit de investeringscomponent: | F135: 1 | G135: 0
A136: Kies uit de investeringscomponent: | F136: 1 | G136: 0
A137: Kies uit de investeringscomponent: | F137: 1 | G137: 0
A138: Kies uit de investeringscomponent: | F138: 1 | G138: 0
A139: Kies uit de investeringscomponent: | F139: 1 | G139: 0
A140: Kies uit de investeringscomponent: | F140: 1 | G140: 0
A141: Kies uit de investeringscomponent: | F141: 1 | G141: 0
A142: Kies uit de investeringscomponent: | F142: 1 | G142: 0
A143: Kies uit de investeringscomponent: | F143: 1 | G143: 0
A144: Kies uit de investeringscomponent: | F144: 1 | G144: 0
A145: Kies uit de investeringscomponent: | F145: 1 | G145: 0
A146: Kies uit de investeringscomponent: | F146: 1 | G146: 0
A147: Kies uit de investeringscomponent: | F147: 1 | G147: 0
A148: Kies uit de investeringscomponent: | F148: 1 | G148: 0
A149: Kies uit de investeringscomponent: | F149: 1 | G149: 0
A150: Kies uit de investeringscomponent: | F150: 1 | G150: 0
A151: Kies uit de investeringscomponent: | F151: 1 | G151: =F151*E151 -> 0
A152: Kies uit de investeringscomponent: | F152: 1 | G152: 0
A153: Kies uit de investeringscomponent: | F153: 1 | G153: 0
A154: Kies uit de investeringscomponent: | F154: 1 | G154: 0
A155: Kies uit de investeringscomponent: | F155: 1 | G155: 0
A156: Kies uit de investeringscomponent: | F156: 1 | G156: 0
A157: Kies uit de investeringscomponent: | F157: 1 | G157: 0
A158: Kies uit de investeringscomponent: | F158: 1 | G158: 0
A159: Kies uit de investeringscomponent: | F159: 1 | G159: 0
A160: Kies uit de investeringscomponent: | F160: 1 | G160: 0
A161: Kies uit de investeringscomponent: | F161: 1 | G161: 0
A162: Kies uit de investeringscomponent: | F162: 1 | G162: 0
A163: Kies uit de investeringscomponent: | F163: 1 | G163: 0
A164: Kies uit de investeringscomponent: | F164: 1 | G164: 0
A165: Kies uit de investeringscomponent: | F165: 1 | G165: 0
A166: Kies uit de investeringscomponent: | F166: 1 | G166: 0
A167: Kies uit de investeringscomponent: | F167: 1 | G167: 0
A168: Kies uit de investeringscomponent: | F168: 1 | G168: 0
A169: Kies uit de investeringscomponent: | F169: 1 | G169: 0
A170: Kies uit de investeringscomponent: | F170: 1 | G170: 0
A171: Kies uit de investeringscomponent: | F171: 1 | G171: 0
A172: Kies uit de investeringscomponent: | F172: 1 | G172: 0
A173: Kies uit de investeringscomponent: | F173: 1 | G173: 0
A174: Kies uit de investeringscomponent: | F174: 1 | G174: 0
A175: Kies uit de investeringscomponent: | F175: 1 | G175: 0
A176: Kies uit de investeringscomponent: | F176: 1 | G176: 0
A177: Kies uit de investeringscomponent: | F177: 1 | G177: 0
A178: Kies uit de investeringscomponent: | F178: 1 | G178: 0
A179: Kies uit de investeringscomponent: | F179: 1 | G179: 0
A180: Kies uit de investeringscomponent: | F180: 1 | G180: 0
A181: Kies uit de investeringscomponent: | F181: 1 | G181: 0
A182: Kies uit de investeringscomponent: | F182: 1 | G182: 0
A183: Kies uit de investeringscomponent: | F183: 1 | G183: 0
A184: Kies uit de investeringscomponent: | F184: 1 | G184: 0
A185: Kies uit de investeringscomponent: | F185: 1 | G185: 0
A186: Kies uit de investeringscomponent: | F186: 1 | G186: 0
A187: Kies uit de investeringscomponent: | F187: 1 | G187: 0
A188: Kies uit de investeringscomponent: | F188: 1 | G188: 0
A189: Kies uit de investeringscomponent: | F189: 1 | G189: 0
A190: Kies uit de investeringscomponent: | F190: 1 | G190: 0
A191: Kies uit de investeringscomponent: | F191: 1 | G191: 0
A192: Kies uit de investeringscomponent: | F192: 1 | G192: 0
A193: Kies uit de investeringscomponent: | F193: 1 | G193: 0
A194: Kies uit de investeringscomponent: | F194: 1 | G194: 0
A195: Kies uit de investeringscomponent: | F195: 1 | G195: 0
A196: Kies uit de investeringscomponent: | F196: 1 | G196: 0
A197: Kies uit de investeringscomponent: | F197: 1 | G197: 0
A199: Stap 3: toewijzing kosten
A201: Er zijn 2 allocatietabellen waarvan de per categorie toegewezen bedragen naar keuze kunnen worden overgenomen in de kostentabbladen.
A203: 3a: toewijzing per investeringssoort-afschrijvingsduur:
A205: In kolom C wordt per eerder gekozen investeringssoort (kolom A) en afschrijvingsduur (kolom B), het investeringsbedrag toegewezen
A206: U kan dit bedrag uit kolom C toewijzen aan/verdelen over kolommen D-F.
D208: in te vullen | E208: in te vullen | F208: in te vullen
D209: Formulier 1 | F209: Formulier 2
A210: overgenomen | B210: overgenomen | C210: wordt berekend | D210: met IFF | E210: zonder IFF
A211: Kies uit de investeringssoort: | B211: afschrijvingsduur | C211: kost (in euro): | D211: formulier 1A | E211: formulier 1B
A212: =A9 -> Gebouw | B212: 25 | C212: =SUMIF($A$43:$A$197,A212,$G$43:$G$197) -> 0 | D212: =C212 -> 0
... 35 more rows

Sheet Bijlage extra vergoedingen (hidden)
A1: Bijlage extra vergoedingen | B1: totaalbedrag in euro
A3: Detailleer het totaalbedrag conform onderstaande rubrieken:
A5: sondevoeding: het surplus op de gebruikelijke voedingskost, na aftrek van de door het RIZIV terugbetaalde tegemoetkoming:
A6: dokterskosten, paramedische kosten en medicatie:
A7: kapper:
A8: abonnement op kabeldistributie:
A9: telefoonkosten:
A10: reiniging van persoonlijke kleding:
A11: kamerbediening (buiten medische redenen)
A13: bron: https://www.zorg-en-gezondheid.be/wat-is-in-de-dagprijs-van-een-woonzorgcentrum-inbegrepen
H208: brutodagprijs - forfait 5,11 euro = nettodagprijs (= prijs na aftrek forfait)
H230: =MIN(IF(F230<$F$38,1.15*$F$38,1.15*F230),G230) -> 0
L239: =J228 & " (kolom J) - forfait 5,11 euro = Nettodagprijs na bescherming (kolom H)" -> (kolom J) - forfait 5,11 euro = Nettodagprijs na bescherming (kolom H)
L245: - vervolgens wordt hierop het forfait van 5,11 euro in mindering gebracht
L248: bij ingebruikname: nettodagprijs = huidige dagprijs (HDP) + max. 5 euro opstap bruto - 5,11 euro forfait
L249: ten vroegste 6 maand na ingebruikname: nettoprijs = HDP + 2 x max. 5 euro opstap bruto - 5,11 euro forfait

Sheet Checklist overheidstussenkomst
B1: Checklist componenten overheidstussenkomsten | H1: Navigatie: | I1: Navigatie: | K1: Terug naar algemene richtlijnen | L1: Generieke input | N1: IFIC
A3: In geval van een woonzorgcentrum/CVK:
B4: 1) Basistegemoetkoming voor zorg van jaar voor de aanvraag Personeelskosten • Zorgpersoneel: verpleegkundigen, zorgkundigen, kinesitherapeuten, logopedisten, ergotherapeuten, personeel voor reactivering (delen A1,A2, A3, B1, B2, C, E1, E2, E3, E4, F, H, M) • Financiering van coördinerend arts in het woonzorgcentrum met bijkomende erkenning • Financiering ondersteunend personeel (deel K) Om versleutelingsproblemen te vermijden mag op niveau van het personeel ook inbegrepen zijn: • Financiering van verzorgingsmateriaal • Financiering van opleiding Naast de pure basistegemoetkoming zorg: - tegemoetkoming incontinentiemateriaal - tegemoetkoming OCVK 2) tegemoetkoming vrijstelling van arbeidsprestaties en eindeloopbaan: vergoeding premie voor sommige werknemers die kiezen voor behoud de arbeidsprestaties vanaf de leeftijd van 45 jaar of voor de vervangers als die werknemers kiezen voor vermindering van de arbeidsprestaties. Laatst gekende rechtenbedrag = 4 voorschotten + bedrag afrekening van de volgende referentieperiode 3) Fonds Sociale Maribel: laatst ontvangen inkomsten 4) Aanvullende financiering (niet voor nieuwe voorzieningen of voor extra capaciteit) • Bovennorm zorg: laatst gekende rechtenbedrag • Ondersteunend personeel: laatst gekende rechtenbedrag 5) Loonsverhoging VIA5+VIA6: 6,96% van de personeelskost, dit zit verwerkt in IFIC 6) DAC- en Gesco-tussenkomsten cfr. uitbetaald bedrag voor het jaar voorafgaand aan het jaar waarin de aanvraag wordt ingediend (niet voor nieuwe voorzieningen of voor extra capaciteit) 7) Andere: • Nomenclatuur-inkomsten (bvb. kiné-ROB) • Financiering bijkomende erkenning oriënterend centrum voor kortverblijf • Financiering bijzondere erkenning voor de zorg en ondersteuning van personen met jongdementie • Syndicale premie
A39: In geval van een centrum voor dagverzorging (CDV):
B41: basistegemoetkoming zorg
B42: tegemoetkoming reiskosten
B43: werkingssubsidies CDV
H209: brutodagprijs - forfait 5,11 euro = nettodagprijs (= prijs na aftrek forfait)
H231: =MIN(IF(F231<$F$39,1.15*$F$39,1.15*F231),G231) -> 0

Sheet Checklist_prijsaanvraag
A2: Checks | E2: Check | F2: Vereiste actie:
A4: A. Invoer
A5: Generieke input:
A7: 1. Datum aanvraag ingevuld? | E7: =IF('Generieke input'!C4<>"", "OK","NIET OK") -> OK | F7: =IF(E7="NIET OK", "Gelieve de aanvraagdatum in te vullen","") -> 
A9: 2. Identifcatie volledig? | E9: =IF('Generieke input'!W19>1,"NIET OK","Ok") -> Ok | F9: =IF(E9="NIET OK", 'Generieke input'!W19& " gegevens werd niet ingevuld. Gelieve aan te vullen.","") -> 
A11: 3.1 Capaciteiten volgens aanleiding prijsaanvraag:
A12: Kloppen de capaciteiten (deelcapaciteiten niet hoger dan totaal)? | E12: ='Generieke input'!H39 -> OK | F12: =IF(E12="NIET OK", "Ga na of de capaciteiten in hetzij formulier 1, hetzij formulier 2 niet hoger liggen dan de totale capaciteit van de zorgvorm","") -> 
A13: Geen combinatie van CDV of GAW met andere zorgvormen? | E13: ='Generieke input'!H41 -> OK | F13: =IF(E13="NIET OK", "Ga na of er geen combinatie is tussen de zorgvormen CDV of GAW met de andere zorgvormen.Indien toch, dan zal er een aparte prijsaanvraag moeten worden ingediend","") -> 
A15: 4. Werd jaar van het aanvangsbevel ingevuld? | E15: =IF('Generieke input'!D55>0,"OK","NIET OK") -> OK | F15: =IF(E15="NIET OK", "Gelieve het jaar van aanvangsbevel in te vullen","") -> 
A17: Formulier 1A: Infrastructuur met forfait
A19: Werd deze kosteninvoer gekozen onder generieke input? | E19: =IF(capforfait>0,"JA","NEEN") -> NEEN
A21: Indien ja, werden volgende gegevens ingevuld:
A23: 1.1 kamergerelateerde investeringen | E23: =IF(E19<>"JA", "NVT", IF(AND('1A-Infrastructuur met forfait'!bouwkost_werken>0,'1A-Infrastructuur met forfait'!bouwkost_meubilair>0),"OK","NIET OK")) -> NVT | F23: =IF(E23="NIET OK","Gelieve de kosten in te voeren voor "&A23,"") -> 
A24: 1.2 andere investeringen | E24: =IF(E19<>"JA","NVT",IF(SUM('1A-Infrastructuur met forfait'!E51:Q51)=0,"Te bekijken","OK")) -> NVT | F24: =IF(E24="Te bekijken","Gelieve, indien van toepassing, de kosten in te voeren voor "&A24,"") -> 
A25: 1.3 personeelskosten | E25: =IF(E19<>"JA","NVT",IF('1A-Infrastructuur met forfait'!G85>0,"OK","NIET OK")) -> NVT | F25: =IF(E25="NIET OK","Gelieve, indien van toepassing, de kosten in te voeren of te wijzigen voor "&A25,"") -> 
A26: 1.4 producten en diensten en diverse leveringen | E26: =IF(E19<>"JA","NVT",IF('1A-Infrastructuur met forfait'!G126>0,"OK","NIET OK")) -> NVT | F26: =IF(E26="NIET OK","Gelieve, indien van toepassing, de kosten in te voeren voor "&A26,"") -> 
A28: 2.1 evaluatie dagprijzen: nieuwe bewoners: capaciteiten | E28: =IF(E19<>"JA","NVT",IF('1A-Infrastructuur met forfait'!H145<>"","NIET OK","OK")) -> NVT | F28: =IF(E28="NIET OK", "Gelieve de capaciteiten te wijzigen. " &'1A-Infrastructuur met forfait'!H145, "") -> 
A29: 2.1 evaluatie dagprijzen: nieuwe bewoners: dagprijs in nieuwe infrastructuur na aftrek forfait | E29: =IF(E19<>"JA","NVT",IF('1A-Infrastructuur met forfait'!H146<>"","NIET OK","OK")) -> NVT | F29: =IF(E29="NIET OK",'1A-Infrastructuur met forfait'!H146, "") -> 
A30: 2.1 evaluatie dagprijzen: dagprijzen ingevuld? | E30: =IF(E19<>"JA","NVT",IF('1A-Infrastructuur met forfait'!F163=0,"NIET OK","OK")) -> NVT | F30: =IF(E30="NIET OK","U dient minimaal voor de nieuwe bewoners capaciteiten én prijzen in te vullen", "") -> 
A32: 2.2 evaluatie dagprijzen: bestaande bewoners: capaciteiten | E32: =IF(E19<>"JA","NVT",IF('1A-Infrastructuur met forfait'!Q176<>"","NIET OK","OK")) -> NVT | F32: =IF(E32="NIET OK", "Gelieve de capaciteiten te wijzigen. " &'1A-Infrastructuur met forfait'!Q176,"") -> 
A33: 2.2 evaluatie dagprijzen: bestaande bewoners: dagprijs in nieuwe infrastructuur na aftrek forfait | E33: =IF(E19<>"JA","NVT",IF('1A-Infrastructuur met forfait'!Q177<>"","NIET OK","OK")) -> NVT | F33: =IF(E33="NIET OK",'1A-Infrastructuur met forfait'!Q177,"") -> 
A35: Formulier 1B: Infrastructuur zonder forfait
A37: Werd deze kosteninvoer gekozen onder generieke input? | E37: =IF(capzoforfait>0,"JA","NEEN") -> NEEN
A39: Indien ja, werden volgende gegevens ingevuld:
A41: 1.1 lopende infrastructuurkost in dagprijs | E41: =IF(E37<>"JA", "NVT",IF('1B-Infra zonder forfait'!E23>0,"OK","Te bekijken")) -> NVT | F41: =IF(E41="Te bekijken","Gelieve ook de lopende infrastructuurkosten in te voeren, indien voorkomend","") -> 
A42: 1.2 nieuwe investeringen in dagprijs: aanwezig? | E42: =IF(E37<>"JA", "NVT",IF('1B-Infra zonder forfait'!G51>0,"OK","NIET OK")) -> NVT | F42: =IF(E42="NIET OK","U gebruikt dit formulier maar er werden geen investeringskosten ingevoerd? Gelieve te checken.","") -> 
A43: 1.2 nieuwe investeringen in dagprijs: terecht gebruik van dit formulier? | E43: =IFERROR(IF(E37<>"JA", "NVT",IF('1B-Infra zonder forfait'!F60>=50%,"OK","NIET OK")), "NVT") -> NVT | F43: =IF(E43="NIET OK",'1B-Infra zonder forfait'!C62,"") -> 
A44: 1.3 personeelskosten | E44: =IFERROR(IF(E37<>"JA", "NVT",IF('1B-Infra zonder forfait'!G77>0,"OK","NIET OK")),"NVT") -> NVT | F44: =IF(E44="NIET OK","Gelieve de kosten in te voeren voor "&A44,"") -> 
A45: 1.4 producten en diensten en diverse leveringen | E45: =IF(E37<>"JA", "NVT",IF('1B-Infra zonder forfait'!G118>0,"OK","NIET OK")) -> NVT | F45: =IF(E45="NIET OK","Gelieve de kosten in te voeren voor "&A45,"") -> 
A47: 2.1 evaluatie dagprijzen: nieuwe bewoners: capaciteiten | E47: =IF(E37<>"JA", "NVT",IF('1B-Infra zonder forfait'!G136<>"","NIET OK","OK")) -> NVT | F47: =IF(E47="NIET OK", "Gelieve de capaciteiten te wijzigen. " &'1B-Infra zonder forfait'!G136,"") -> 
A48: 2.1 evaluatie dagprijzen: nieuwe bewoners: dagprijs in nieuwe infrastructuur | E48: =IF(E37<>"JA", "NVT",IF('1B-Infra zonder forfait'!G137<>"","NIET OK","OK")) -> NVT | F48: =IF(E48="NIET OK",'1B-Infra zonder forfait'!G137, "") -> 
A49: 2.1 evaluatie dagprijzen: dagprijzen ingevuld? | E49: =IF(E37<>"JA", "NVT",IF('1B-Infra zonder forfait'!F154=0,"NIET OK","OK")) -> NVT | F49: =IF(E49="NIET OK","U dient minimaal voor de nieuwe bewoners capaciteiten én prijzen in te vullen.", "") -> 
A51: 2.2 evaluatie dagprijzen: bestaande bewoners: capaciteiten | E51: =IF(E37<>"JA", "NVT",IF('1B-Infra zonder forfait'!O167<>"","NIET OK","OK")) -> NVT | F51: =IF(E51="NIET OK", "Gelieve de capaciteiten te wijzigen. " &'1B-Infra zonder forfait'!O167,"") -> 
A52: 2.2 evaluatie dagprijzen: bestaande bewoners: dagprijs in nieuwe infrastructuur | E52: =IF(E37<>"JA", "NVT",IF('1B-Infra zonder forfait'!O168<>"","NIET OK","OK")) -> NVT | F52: =IF(E52="NIET OK",'1B-Infra zonder forfait'!O168,"") -> 
A54: Formulier 2: formulier andere: alle zorgvormen
A56: Werd deze kosteninvoer gekozen onder generieke input? | E56: =IF(capexgaw>0,"JA","NEEN") -> NEEN
A58: Werden investeringskosten ingevuld onder rubriek 3: | E58: =IF(E56<>"JA","NVT",IF(E56<>"JA","NVT",IF('Formulier 2'!G136>0,"JA","NEEN"))) -> NVT
A60: Indien investeringskosten werden ingevuld onder rubriek 3, kan er geen prijsaanvraag worden gevraagd voor marge-evolutie: | E60: =IF(E56<>"JA","NVT",IF(E58="NEEN", "OK",IF('Formulier 2'!G104=0,"OK","NIET OK"))) -> NVT | F60: =IF(E60="NIET OK", "Voor dezelfde bewoners kan er niet simultaan een prijsaanvraag voor marge-evolutie en investeringskost worden ingediend.","") -> 
A62: Indien neen en als voor deze kosteninvoer werd gekozen, werden dan de nodige gegevens ingevuld voor marge-evolutie:
A65: 1. Resultatenrekening: werd het jaartal van het laatst beschikbare boekjaar ingevuld? | E65: =IF(OR(E56<>"JA",E58="JA"),"NVT",IF(AND(E58="NEEN",'Formulier 2'!E13>0),"OK","NIET OK")) -> NVT | F65: =IF(E65="NIET OK","Vul het jaartal van het laatst beschikbare boekjaar in","") -> 
A66: 1. Resultatenrekening: werden de kosten en opbrengsten van de laatste 2 jaar ingevuld? | E66: =IF(OR(E56<>"JA",E58="JA"),"NVT",IF(AND(E58="NEEN",'Formulier 2'!G17>0,'Formulier 2'!J17>0),"OK","NIET OK")) -> NVT | F66: =IF(E66="NIET OK", "U heeft geen of onvolledige invoer voor marge-evolutie","") -> 
A67: 2.1 Marge-evolutie - toetsing criteria: werd de gewogen gemiddelde dagprijs van de voorziening ingevuld? | E67: =IF(OR(E56<>"JA",E58="JA"),"NVT",IF(AND('Formulier 2'!F55>0,Checklist_prijsaanvraag!E58="NEEN"),"OK","NIET OK")) -> NVT
A69: 5.1 evaluatie dagprijzen: nieuwe bewoners: capaciteiten | E69: =IF(E56<>"JA","NVT",IF('Formulier 2'!G170<>"","NIET OK","OK")) -> NVT | F69: =IF(E69="NIET OK",'Formulier 2'!G170 &". Pas de capaciteiten aan.","") -> 
A70: 5.1 evaluatie dagprijzen: nieuwe bewoners: dagprijs in nieuwe infrastructuur | E70: =IF(E56<>"JA","NVT",IF('Formulier 2'!G171<>"","NIET OK","OK")) -> NVT | F70: =IF(E70="NIET OK",'Formulier 2'!G171,"") -> 
A72: 5.2 evaluatie dagprijzen: bestaande bewoners: capaciteiten | E72: =IF(E56<>"JA","NVT",IF('Formulier 2'!K201<>"","NIET OK","OK")) -> NVT
A73: 5.2 evaluatie dagprijzen: bestaande bewoners: huidige dagprijs | E73: =IF(E56<>"JA","NVT",IF(AND('Formulier 2'!E219>0,'Formulier 2'!F219=0), "NIET OK","OK")) -> NVT | F73: =IF(E73="NIET OK", "U heeft capaciteiten ingevuld voor de bestaande bewoners, maar geen huidige dagprijzen","") -> 
A74: 5.2 evaluatie dagprijzen: bestaande bewoners: dagprijs in nieuwe infrastructuur | E74: =IF(E56<>"JA","NVT",IF(AND('Formulier 2'!E219>0,'Formulier 2'!G219=0),"NIET OK","OK")) -> NVT | F74: =IF(E74="NIET OK", "U heeft capaciteiten ingevuld voor de bestaande bewoners, maar geen dagprijzen.","") -> 
A77: B. Documenten
A79: Bij alle aanvragen voegt u een verslag van de gebruikersraad.
A80: Daarnaast zijn er er nog volgende specifieke documenten per prijsaanvraag:
A82: 1A-Infrastructuur met forfait
A83: Exceloverzicht van alle investeringskosten met vermelding van het bedrag, het verantwoordingsstuk en daarnaast de referentie voor het verantwoordingsstuk. Gebruik best een apart tabblad en evt. het standaard voorziene tabblad "Bijlage investeringsoverzicht"
A84: =IF(SUM('1A-Infrastructuur met forfait'!G175:G193)>0, "U heeft voor 1 of meerdere bewoners een plafondprijs opgenomen in de overeenkomst. Gelieve volgende verantwoording te bezorgen: ","") -> 
A85: =IF(A84<>"","a)" &'1A-Infrastructuur met forfait'!E196 & " en b) " & '1A-Infrastructuur met forfait'!E197,"") -> 
A87: 1B-Infrastructuur zonder forfait
A88: =A83 -> Exceloverzicht van alle investeringskosten met vermelding van het bedrag, het verantwoordingsstuk en daarnaast de referentie voor het verantwoordingsstuk. Gebruik best een apart tabblad en evt. het standaard voorziene tabblad "Bijlage investeringsoverzicht"
A89: =IF(SUM('1B-Infra zonder forfait'!F166:F184)>0, "U heeft voor 1 of meerdere bewoners een plafondprijs opgenomen in de overeenkomst. Gelieve volgende verantwoording te bezorgen: ","") -> 
A90: =IF(A89<>"","a)" &'1B-Infra zonder forfait'!E187 & " en b) " & '1B-Infra zonder forfait'!E188,"") -> 
A92: Formulier 2: andere: alle zorgvormen
A93: ="Indien aanvraag voor investeringskost: "&A83 -> Indien aanvraag voor investeringskost: Exceloverzicht van alle investeringskosten met vermelding van het bedrag, het verantwoordingsstuk en daarnaast de referentie voor het verantwoordingsstuk. Gebruik best een apart tabblad en evt. het standaard voorziene tabblad "Bijlage investeringsoverzicht"
A95: Indien aanvraag voor marge-evolutie, gelieve aan te leveren:
A96: ='Formulier 2'!F108 -> Resultatenrekening (extracomptabel) van de betrokken zorgvorm (woonzorgcentrum en kortverblijf, DVC, GAW). Indien ontbrekend, kan vertrokken worden van het hogere beschikbare niveau, waarop dan vervolgens een verdeelsleutel wordt toegepast.
A97: Het verslag van de efficiëntiemaatregelen: dit is een overzicht van de maatregelen die de voorziening in de voorbij 3 jaren heeft genomen en in de volgende jaren gaat nemen om het verlies weg te werken of te beperken.

Sheet Output
H1: Aandachtspunten:
A2: Dagprijsaanvraag: samenvatting
G3: 1 | H3: HEEL BELANGRIJK: ga na of de prijzen verschijnen. Indien dit niet het geval is, gelieve dan de macrobeveiliging in te schakelen. Voor meer uitleg: zie word-documenten "Technische nota prijsaanvraagformulier"
G4: 1 | H4: Het merendeel van gegevens voor de output wordt overgenomen uit de andere tabbladen. Enkel onderaan dienen de gemachtigden hun naam te vermelden en te handtekenen.
A5: 1. Datum aanvraag | C5: ='Generieke input'!C4 -> 2025-06-19 | G5: 1 | H5: De getekende versie van dit tabblad wordt als pdf meegestuurd. Via bestand>afdrukken kan u de layout nog wijzigen.
G6: 1
A7: 2. Identificatie | G7: 1
G8: 1
A9: Naam inrichtende macht : | B9: ='Generieke input'!F8 -> Naam inrichtende macht | G9: 1
A10: Rechtsvorm | B10: ='Generieke input'!F9 -> rechtsvorm: | G10: 1
A11: Indien andere rechtsvorm: | B11: ='Generieke input'!F10 -> 0 | G11: 1
A12: Adres inrichtende macht: | B12: ='Generieke input'!F11 -> straat +nr, postcode + gemeente | G12: 1
A13: Naam voorziening: | B13: ='Generieke input'!F12 -> naam voorziening | G13: 1
A14: Adres voorziening: | B14: ='Generieke input'!F13 -> straat +nr, postcode + gemeente | G14: 1
A15: Telefoonummer : | B15: ='Generieke input'!F14 -> xxxx/xx xx xx | G15: 1
A16: Email: | B16: ='Generieke input'!F15 -> naam@extensie.be | G16: 1
A17: Dossiernr ZG | B17: ='Generieke input'!F16 -> gelieve hier uw dossiernummer bij Zorg en Gezondheid in te vullen | G17: 1
A18: Ondernemingsnummer | B18: ='Generieke input'!F17 -> geliever hier uw ondernemingsnummer in te vullen | G18: 1
A19: Contactpersoon: | B19: ='Generieke input'!F18 -> voornaam + naam | G19: 1
G20: 1
A21: 3.1 Nieuwe bewoners | G21: =IF(OR(G26=1,G49=1,G72=1),1,0) -> 0
G22: =G21 -> 0
A23: Formulier 1 met forfait | G23: =IF(SUM(E26:E44)>0,1,0) -> 0
G24: =G23 -> 0
A25: Kamertype | D25: aantal | E25: dagprijs na aftrek forfait | F25: brutoprijs (vóór aftrek forfait) | G25: =G26 -> 0
A26: ='1A-Infrastructuur met forfait'!B144 -> 0 | D26: ='1A-Infrastructuur met forfait'!E144 -> 0 | E26: ='1A-Infrastructuur met forfait'!F144 -> 0 | F26: ='1A-Infrastructuur met forfait'!G144 -> 0 | G26: =IF(E26>0,1,0) -> 0
A27: ='1A-Infrastructuur met forfait'!B145 -> 0 | D27: ='1A-Infrastructuur met forfait'!E145 -> 0 | E27: ='1A-Infrastructuur met forfait'!F145 -> 0 | F27: ='1A-Infrastructuur met forfait'!G145 -> 0 | G27: =IF(E27>0,1,0) -> 0
A28: ='1A-Infrastructuur met forfait'!B146 -> 0 | D28: ='1A-Infrastructuur met forfait'!E146 -> 0 | E28: ='1A-Infrastructuur met forfait'!F146 -> 0 | F28: ='1A-Infrastructuur met forfait'!G146 -> 0 | G28: 0
A29: ='1A-Infrastructuur met forfait'!B147 -> 0 | D29: ='1A-Infrastructuur met forfait'!E147 -> 0 | E29: ='1A-Infrastructuur met forfait'!F147 -> 0 | F29: ='1A-Infrastructuur met forfait'!G147 -> 0 | G29: 0
A30: ='1A-Infrastructuur met forfait'!B148 -> 0 | D30: ='1A-Infrastructuur met forfait'!E148 -> 0 | E30: ='1A-Infrastructuur met forfait'!F148 -> 0 | F30: ='1A-Infrastructuur met forfait'!G148 -> 0 | G30: 0
A31: ='1A-Infrastructuur met forfait'!B149 -> 0 | D31: ='1A-Infrastructuur met forfait'!E149 -> 0 | E31: ='1A-Infrastructuur met forfait'!F149 -> 0 | F31: ='1A-Infrastructuur met forfait'!G149 -> 0 | G31: 0
A32: ='1A-Infrastructuur met forfait'!B150 -> 0 | D32: ='1A-Infrastructuur met forfait'!E150 -> 0 | E32: ='1A-Infrastructuur met forfait'!F150 -> 0 | F32: ='1A-Infrastructuur met forfait'!G150 -> 0 | G32: 0
A33: ='1A-Infrastructuur met forfait'!B151 -> 0 | D33: ='1A-Infrastructuur met forfait'!E151 -> 0 | E33: ='1A-Infrastructuur met forfait'!F151 -> 0 | F33: ='1A-Infrastructuur met forfait'!G151 -> 0 | G33: 0
A34: ='1A-Infrastructuur met forfait'!B152 -> 0 | D34: ='1A-Infrastructuur met forfait'!E152 -> 0 | E34: ='1A-Infrastructuur met forfait'!F152 -> 0 | F34: ='1A-Infrastructuur met forfait'!G152 -> 0 | G34: 0
A35: ='1A-Infrastructuur met forfait'!B153 -> 0 | D35: ='1A-Infrastructuur met forfait'!E153 -> 0 | E35: ='1A-Infrastructuur met forfait'!F153 -> 0 | F35: ='1A-Infrastructuur met forfait'!G153 -> 0 | G35: 0
A36: ='1A-Infrastructuur met forfait'!B154 -> 0 | D36: ='1A-Infrastructuur met forfait'!E154 -> 0 | E36: ='1A-Infrastructuur met forfait'!F154 -> 0 | F36: ='1A-Infrastructuur met forfait'!G154 -> 0 | G36: 0
A37: ='1A-Infrastructuur met forfait'!B155 -> 0 | D37: ='1A-Infrastructuur met forfait'!E155 -> 0 | E37: ='1A-Infrastructuur met forfait'!F155 -> 0 | F37: ='1A-Infrastructuur met forfait'!G155 -> 0 | G37: 0
A38: ='1A-Infrastructuur met forfait'!B156 -> 0 | D38: ='1A-Infrastructuur met forfait'!E156 -> 0 | E38: ='1A-Infrastructuur met forfait'!F156 -> 0 | F38: ='1A-Infrastructuur met forfait'!G156 -> 0 | G38: 0
A39: ='1A-Infrastructuur met forfait'!B157 -> 0 | D39: ='1A-Infrastructuur met forfait'!E157 -> 0 | E39: ='1A-Infrastructuur met forfait'!F157 -> 0 | F39: ='1A-Infrastructuur met forfait'!G157 -> 0 | G39: 0
A40: ='1A-Infrastructuur met forfait'!B158 -> 0 | D40: ='1A-Infrastructuur met forfait'!E158 -> 0 | E40: ='1A-Infrastructuur met forfait'!F158 -> 0 | F40: ='1A-Infrastructuur met forfait'!G158 -> 0 | G40: 0
A41: ='1A-Infrastructuur met forfait'!B159 -> 0 | D41: ='1A-Infrastructuur met forfait'!E159 -> 0 | E41: ='1A-Infrastructuur met forfait'!F159 -> 0 | F41: ='1A-Infrastructuur met forfait'!G159 -> 0 | G41: 0
A42: ='1A-Infrastructuur met forfait'!B160 -> 0 | D42: ='1A-Infrastructuur met forfait'!E160 -> 0 | E42: ='1A-Infrastructuur met forfait'!F160 -> 0 | F42: ='1A-Infrastructuur met forfait'!G160 -> 0 | G42: 0
A43: ='1A-Infrastructuur met forfait'!B161 -> 0 | D43: ='1A-Infrastructuur met forfait'!E161 -> 0 | E43: ='1A-Infrastructuur met forfait'!F161 -> 0 | F43: ='1A-Infrastructuur met forfait'!G161 -> 0 | G43: 0
A44: ='1A-Infrastructuur met forfait'!B162 -> 0 | D44: ='1A-Infrastructuur met forfait'!E162 -> 0 | E44: ='1A-Infrastructuur met forfait'!F162 -> 0 | F44: ='1A-Infrastructuur met forfait'!G162 -> 0 | G44: 0
G45: =G26 -> 0
A46: Formulier 1 zonder forfait | G46: =IF(SUM(F49:F67)>0,1,0) -> 0
G47: =G46 -> 0
A48: Kamertype | E48: aantal | F48: dagprijs | G48: =G49 -> 0
A49: ='1B-Infra zonder forfait'!B135 -> 0 | E49: ='1B-Infra zonder forfait'!E135 -> 0 | F49: ='1B-Infra zonder forfait'!F135 -> 0 | G49: =IF(F49>0,1,0) -> 0
A50: ='1B-Infra zonder forfait'!B136 -> 0 | E50: ='1B-Infra zonder forfait'!E136 -> 0 | F50: ='1B-Infra zonder forfait'!F136 -> 0 | G50: =IF(F50>0,1,0) -> 0
A51: ='1B-Infra zonder forfait'!B137 -> 0 | E51: ='1B-Infra zonder forfait'!E137 -> 0 | F51: ='1B-Infra zonder forfait'!F137 -> 0 | G51: 0
A52: ='1B-Infra zonder forfait'!B138 -> 0 | E52: ='1B-Infra zonder forfait'!E138 -> 0 | F52: ='1B-Infra zonder forfait'!F138 -> 0 | G52: 0
A53: ='1B-Infra zonder forfait'!B139 -> 0 | E53: ='1B-Infra zonder forfait'!E139 -> 0 | F53: ='1B-Infra zonder forfait'!F139 -> 0 | G53: 0
A54: ='1B-Infra zonder forfait'!B140 -> 0 | E54: ='1B-Infra zonder forfait'!E140 -> 0 | F54: ='1B-Infra zonder forfait'!F140 -> 0 | G54: 0
A55: ='1B-Infra zonder forfait'!B141 -> 0 | E55: ='1B-Infra zonder forfait'!E141 -> 0 | F55: ='1B-Infra zonder forfait'!F141 -> 0 | G55: 0
A56: ='1B-Infra zonder forfait'!B142 -> 0 | E56: ='1B-Infra zonder forfait'!E142 -> 0 | F56: ='1B-Infra zonder forfait'!F142 -> 0 | G56: 0
A57: ='1B-Infra zonder forfait'!B143 -> 0 | E57: ='1B-Infra zonder forfait'!E143 -> 0 | F57: ='1B-Infra zonder forfait'!F143 -> 0 | G57: 0
A58: ='1B-Infra zonder forfait'!B144 -> 0 | E58: ='1B-Infra zonder forfait'!E144 -> 0 | F58: ='1B-Infra zonder forfait'!F144 -> 0 | G58: 0
A59: ='1B-Infra zonder forfait'!B145 -> 0 | E59: ='1B-Infra zonder forfait'!E145 -> 0 | F59: ='1B-Infra zonder forfait'!F145 -> 0 | G59: 0
A60: ='1B-Infra zonder forfait'!B146 -> 0 | E60: ='1B-Infra zonder forfait'!E146 -> 0 | F60: ='1B-Infra zonder forfait'!F146 -> 0 | G60: 0
A61: ='1B-Infra zonder forfait'!B147 -> 0 | E61: ='1B-Infra zonder forfait'!E147 -> 0 | F61: ='1B-Infra zonder forfait'!F147 -> 0 | G61: 0
A62: ='1B-Infra zonder forfait'!B148 -> 0 | E62: ='1B-Infra zonder forfait'!E148 -> 0 | F62: ='1B-Infra zonder forfait'!F148 -> 0 | G62: 0
A63: ='1B-Infra zonder forfait'!B149 -> 0 | E63: ='1B-Infra zonder forfait'!E149 -> 0 | F63: ='1B-Infra zonder forfait'!F149 -> 0 | G63: 0
A64: ='1B-Infra zonder forfait'!B150 -> 0 | E64: ='1B-Infra zonder forfait'!E150 -> 0 | F64: ='1B-Infra zonder forfait'!F150 -> 0 | G64: 0
A65: ='1B-Infra zonder forfait'!B151 -> 0 | E65: ='1B-Infra zonder forfait'!E151 -> 0 | F65: ='1B-Infra zonder forfait'!F151 -> 0 | G65: 0
A66: ='1B-Infra zonder forfait'!B152 -> 0 | E66: ='1B-Infra zonder forfait'!E152 -> 0 | F66: ='1B-Infra zonder forfait'!F152 -> 0 | G66: 0
A67: ='1B-Infra zonder forfait'!B153 -> 0 | E67: ='1B-Infra zonder forfait'!E153 -> 0 | F67: ='1B-Infra zonder forfait'!F153 -> 0 | G67: 0
G68: =G49 -> 0
A69: Formulier 2 alle zorgvormen | G69: =IF(SUM(F72:F90)>0,1,0) -> 0
G70: =G69 -> 0
A71: Kamertype | E71: aantal | F71: nettodagprijs (*) | G71: =G72 -> 0
A72: ='Formulier 2'!B169 -> 0 | E72: ='Formulier 2'!E169 -> 0 | F72: ='Formulier 2'!F169 -> 0 | G72: =IF(F72>0,1,0) -> 0
A73: ='Formulier 2'!B170 -> 0 | E73: ='Formulier 2'!E170 -> 0 | F73: ='Formulier 2'!F170 -> 0 | G73: =IF(F73>0,1,0) -> 0
A74: ='Formulier 2'!B171 -> 0 | E74: ='Formulier 2'!E171 -> 0 | F74: ='Formulier 2'!F171 -> 0 | G74: 0
A75: ='Formulier 2'!B172 -> 0 | E75: ='Formulier 2'!E172 -> 0 | F75: ='Formulier 2'!F172 -> 0 | G75: 0
A76: ='Formulier 2'!B173 -> 0 | E76: ='Formulier 2'!E173 -> 0 | F76: ='Formulier 2'!F173 -> 0 | G76: 0
A77: ='Formulier 2'!B174 -> 0 | E77: ='Formulier 2'!E174 -> 0 | F77: ='Formulier 2'!F174 -> 0 | G77: 0
A78: ='Formulier 2'!B175 -> 0 | E78: ='Formulier 2'!E175 -> 0 | F78: ='Formulier 2'!F175 -> 0 | G78: 0
A79: ='Formulier 2'!B176 -> 0 | E79: ='Formulier 2'!E176 -> 0 | F79: ='Formulier 2'!F176 -> 0 | G79: 0
A80: ='Formulier 2'!B177 -> 0 | E80: ='Formulier 2'!E177 -> 0 | F80: ='Formulier 2'!F177 -> 0 | G80: 0
A81: ='Formulier 2'!B178 -> 0 | E81: ='Formulier 2'!E178 -> 0 | F81: ='Formulier 2'!F178 -> 0 | G81: 0
A82: ='Formulier 2'!B179 -> 0 | E82: ='Formulier 2'!E179 -> 0 | F82: ='Formulier 2'!F179 -> 0 | G82: 0
A83: ='Formulier 2'!B180 -> 0 | E83: ='Formulier 2'!E180 -> 0 | F83: ='Formulier 2'!F180 -> 0 | G83: 0
A84: ='Formulier 2'!B181 -> 0 | E84: ='Formulier 2'!E181 -> 0 | F84: ='Formulier 2'!F181 -> 0 | G84: 0
A85: ='Formulier 2'!B182 -> 0 | E85: ='Formulier 2'!E182 -> 0 | F85: ='Formulier 2'!F182 -> 0 | G85: 0
A86: ='Formulier 2'!B183 -> 0 | E86: ='Formulier 2'!E183 -> 0 | F86: ='Formulier 2'!F183 -> 0 | G86: 0
A87: ='Formulier 2'!B184 -> 0 | E87: ='Formulier 2'!E184 -> 0 | F87: ='Formulier 2'!F184 -> 0 | G87: 0
A88: ='Formulier 2'!B185 -> 0 | E88: ='Formulier 2'!E185 -> 0 | F88: ='Formulier 2'!F185 -> 0 | G88: 0
A89: ='Formulier 2'!B186 -> 0 | E89: ='Formulier 2'!E186 -> 0 | F89: ='Formulier 2'!F186 -> 0 | G89: 0
A90: ='Formulier 2'!B187 -> 0 | E90: ='Formulier 2'!E187 -> 0 | F90: ='Formulier 2'!F187 -> 0 | G90: 0
A91: (*) dagprijs na eventuele aftrek van infrastructuurforfait (indien voorkomend) | G91: =G72 -> 0
G92: =G91 -> 0
A93: 3.2 Bestaande bewoners | G93: =IF(OR(G98=1,G128=1,G157=1),1,0) -> 0
G94: =G93 -> 0
A95: Formulier 1 met forfait | G95: =IF(SUM(D98:D116)>0,1,0) -> 0
G96: =G95 -> 0
A97: Kamertype | C97: aantal | D97: dagprijs na forfait | E97: brutodagprijs (vóór aftrek forfait) | F97: prijs in opnameovereen-komst vermeld? (*) | G97: =G98 -> 0
A98: ='1A-Infrastructuur met forfait'!B175 -> 0 | C98: ='1A-Infrastructuur met forfait'!E175 -> 0 | D98: ='1A-Infrastructuur met forfait'!I175 -> 0 | E98: ='1A-Infrastructuur met forfait'!J175 -> 0 | F98: =IF(C98>0,IF('1A-Infrastructuur met forfait'!G175=0,1,2),"") ->  | G98: =IF(D98>0,1,0) -> 0
A99: ='1A-Infrastructuur met forfait'!B176 -> 0 | C99: ='1A-Infrastructuur met forfait'!E176 -> 0 | D99: ='1A-Infrastructuur met forfait'!I176 -> 0 | E99: ='1A-Infrastructuur met forfait'!J176 -> 0 | F99: =IF(C99>0,IF('1A-Infrastructuur met forfait'!G176=0,1,2),"") ->  | G99: =IF(D99>0,1,0) -> 0
A100: ='1A-Infrastructuur met forfait'!B177 -> 0 | C100: ='1A-Infrastructuur met forfait'!E177 -> 0 | D100: ='1A-Infrastructuur met forfait'!I177 -> 0 | E100: ='1A-Infrastructuur met forfait'!J177 -> 0 | F100: =IF(C100>0,IF('1A-Infrastructuur met forfait'!G177=0,1,2),"") ->  | G100: 0
A101: ='1A-Infrastructuur met forfait'!B178 -> 0 | C101: ='1A-Infrastructuur met forfait'!E178 -> 0 | D101: ='1A-Infrastructuur met forfait'!I178 -> 0 | E101: ='1A-Infrastructuur met forfait'!J178 -> 0 | F101: =IF(C101>0,IF('1A-Infrastructuur met forfait'!G178=0,1,2),"") ->  | G101: 0
A102: ='1A-Infrastructuur met forfait'!B179 -> 0 | C102: ='1A-Infrastructuur met forfait'!E179 -> 0 | D102: ='1A-Infrastructuur met forfait'!I179 -> 0 | E102: ='1A-Infrastructuur met forfait'!J179 -> 0 | F102: =IF(C102>0,IF('1A-Infrastructuur met forfait'!G179=0,1,2),"") ->  | G102: 0
A103: ='1A-Infrastructuur met forfait'!B180 -> 0 | C103: ='1A-Infrastructuur met forfait'!E180 -> 0 | D103: ='1A-Infrastructuur met forfait'!I180 -> 0 | E103: ='1A-Infrastructuur met forfait'!J180 -> 0 | F103: =IF(C103>0,IF('1A-Infrastructuur met forfait'!G180=0,1,2),"") ->  | G103: 0
A104: ='1A-Infrastructuur met forfait'!B181 -> 0 | C104: ='1A-Infrastructuur met forfait'!E181 -> 0 | D104: ='1A-Infrastructuur met forfait'!I181 -> 0 | E104: ='1A-Infrastructuur met forfait'!J181 -> 0 | F104: =IF(C104>0,IF('1A-Infrastructuur met forfait'!G181=0,1,2),"") ->  | G104: 0
A105: ='1A-Infrastructuur met forfait'!B182 -> 0 | C105: ='1A-Infrastructuur met forfait'!E182 -> 0 | D105: ='1A-Infrastructuur met forfait'!I182 -> 0 | E105: ='1A-Infrastructuur met forfait'!J182 -> 0 | F105: =IF(C105>0,IF('1A-Infrastructuur met forfait'!G182=0,1,2),"") ->  | G105: 0
A106: ='1A-Infrastructuur met forfait'!B183 -> 0 | C106: ='1A-Infrastructuur met forfait'!E183 -> 0 | D106: ='1A-Infrastructuur met forfait'!I183 -> 0 | E106: ='1A-Infrastructuur met forfait'!J183 -> 0 | F106: =IF(C106>0,IF('1A-Infrastructuur met forfait'!G183=0,1,2),"") ->  | G106: 0
A107: ='1A-Infrastructuur met forfait'!B184 -> 0 | C107: ='1A-Infrastructuur met forfait'!E184 -> 0 | D107: ='1A-Infrastructuur met forfait'!I184 -> 0 | E107: ='1A-Infrastructuur met forfait'!J184 -> 0 | F107: =IF(C107>0,IF('1A-Infrastructuur met forfait'!G184=0,1,2),"") ->  | G107: 0
A108: ='1A-Infrastructuur met forfait'!B185 -> 0 | C108: ='1A-Infrastructuur met forfait'!E185 -> 0 | D108: ='1A-Infrastructuur met forfait'!I185 -> 0 | E108: ='1A-Infrastructuur met forfait'!J185 -> 0 | F108: =IF(C108>0,IF('1A-Infrastructuur met forfait'!G185=0,1,2),"") ->  | G108: 0
A109: ='1A-Infrastructuur met forfait'!B186 -> 0 | C109: ='1A-Infrastructuur met forfait'!E186 -> 0 | D109: ='1A-Infrastructuur met forfait'!I186 -> 0 | E109: ='1A-Infrastructuur met forfait'!J186 -> 0 | F109: =IF(C109>0,IF('1A-Infrastructuur met forfait'!G186=0,1,2),"") ->  | G109: 0
A110: ='1A-Infrastructuur met forfait'!B187 -> 0 | C110: ='1A-Infrastructuur met forfait'!E187 -> 0 | D110: ='1A-Infrastructuur met forfait'!I187 -> 0 | E110: ='1A-Infrastructuur met forfait'!J187 -> 0 | F110: =IF(C110>0,IF('1A-Infrastructuur met forfait'!G187=0,1,2),"") ->  | G110: 0
A111: ='1A-Infrastructuur met forfait'!B188 -> 0 | C111: ='1A-Infrastructuur met forfait'!E188 -> 0 | D111: ='1A-Infrastructuur met forfait'!I188 -> 0 | E111: ='1A-Infrastructuur met forfait'!J188 -> 0 | F111: =IF(C111>0,IF('1A-Infrastructuur met forfait'!G188=0,1,2),"") ->  | G111: 0
A112: ='1A-Infrastructuur met forfait'!B189 -> 0 | C112: ='1A-Infrastructuur met forfait'!E189 -> 0 | D112: ='1A-Infrastructuur met forfait'!I189 -> 0 | E112: ='1A-Infrastructuur met forfait'!J189 -> 0 | F112: =IF(C112>0,IF('1A-Infrastructuur met forfait'!G189=0,1,2),"") ->  | G112: 0
A113: ='1A-Infrastructuur met forfait'!B190 -> 0 | C113: ='1A-Infrastructuur met forfait'!E190 -> 0 | D113: ='1A-Infrastructuur met forfait'!I190 -> 0 | E113: ='1A-Infrastructuur met forfait'!J190 -> 0 | F113: =IF(C113>0,IF('1A-Infrastructuur met forfait'!G190=0,1,2),"") ->  | G113: 0
A114: ='1A-Infrastructuur met forfait'!B191 -> 0 | C114: ='1A-Infrastructuur met forfait'!E191 -> 0 | D114: ='1A-Infrastructuur met forfait'!I191 -> 0 | E114: ='1A-Infrastructuur met forfait'!J191 -> 0 | F114: =IF(C114>0,IF('1A-Infrastructuur met forfait'!G191=0,1,2),"") ->  | G114: 0
A115: ='1A-Infrastructuur met forfait'!B192 -> 0 | C115: ='1A-Infrastructuur met forfait'!E192 -> 0 | D115: ='1A-Infrastructuur met forfait'!I192 -> 0 | E115: ='1A-Infrastructuur met forfait'!J192 -> 0 | F115: =IF(C115>0,IF('1A-Infrastructuur met forfait'!G192=0,1,2),"") ->  | G115: 0
A116: ='1A-Infrastructuur met forfait'!B193 -> 0 | C116: ='1A-Infrastructuur met forfait'!E193 -> 0 | D116: ='1A-Infrastructuur met forfait'!I193 -> 0 | E116: ='1A-Infrastructuur met forfait'!J193 -> 0 | F116: =IF(C116>0,IF('1A-Infrastructuur met forfait'!G193=0,1,2),"") ->  | G116: 0
G117: =G98 -> 0
A118: (*) het cijfer in de laatste kolom duidt het onderscheid tussen: | G118: =G117 -> 0
A119: (1) Geen plafondprijs in opnameovereenkomst: De dagprijs na forfait stijgt niet in het eerste jaar en kan daarna elke 6 maand met max. 3 euro worden verhoogd tot de goedgekeurde prijs bereikt is. | G119: =G117 -> 0
G120: 0
A121: (2) Plafondprijs in opnameovereenkomst: de dagprijs na forfait kan bij ingebruikname met max. 6 euro stijgen en kan daarna ten vroegste elke 6 maand met maximaal 6 euro worden verhoogd tot de goedgekeurde prijs bereikt is. | G121: 0
G122: 0
G123: 0
G124: 1
A125: Formulier 1 zonder forfait | G125: =G128 -> 0
G126: =G127 -> 0
A127: Kamertype | D127: aantal | E127: dagprijs | F127: =F97 -> prijs in opnameovereen-komst vermeld? (*) | G127: =G125 -> 0
A128: ='1B-Infra zonder forfait'!B166 -> 0 | D128: ='1B-Infra zonder forfait'!E166 -> 0 | E128: ='1B-Infra zonder forfait'!H166 -> 0 | F128: =IF(D128>0,IF('1B-Infra zonder forfait'!F166=0,1,2),"") ->  | G128: =IF(E128>0,1,0) -> 0
A129: ='1B-Infra zonder forfait'!B167 -> 0 | D129: ='1B-Infra zonder forfait'!E167 -> 0 | E129: ='1B-Infra zonder forfait'!H167 -> 0 | F129: =IF(D129>0,IF('1B-Infra zonder forfait'!F167=0,1,2),"") ->  | G129: =IF(E129>0,1,0) -> 0
A130: ='1B-Infra zonder forfait'!B168 -> 0 | D130: ='1B-Infra zonder forfait'!E168 -> 0 | E130: ='1B-Infra zonder forfait'!H168 -> 0 | F130: =IF(D130>0,IF('1B-Infra zonder forfait'!F168=0,1,2),"") ->  | G130: 0
A131: ='1B-Infra zonder forfait'!B169 -> 0 | D131: ='1B-Infra zonder forfait'!E169 -> 0 | E131: ='1B-Infra zonder forfait'!H169 -> 0 | F131: =IF(D131>0,IF('1B-Infra zonder forfait'!F169=0,1,2),"") ->  | G131: 0
A132: ='1B-Infra zonder forfait'!B170 -> 0 | D132: ='1B-Infra zonder forfait'!E170 -> 0 | E132: ='1B-Infra zonder forfait'!H170 -> 0 | F132: =IF(D132>0,IF('1B-Infra zonder forfait'!F170=0,1,2),"") ->  | G132: 0
A133: ='1B-Infra zonder forfait'!B171 -> 0 | D133: ='1B-Infra zonder forfait'!E171 -> 0 | E133: ='1B-Infra zonder forfait'!H171 -> 0 | F133: =IF(D133>0,IF('1B-Infra zonder forfait'!F171=0,1,2),"") ->  | G133: 0
A134: ='1B-Infra zonder forfait'!B172 -> 0 | D134: ='1B-Infra zonder forfait'!E172 -> 0 | E134: ='1B-Infra zonder forfait'!H172 -> 0 | F134: =IF(D134>0,IF('1B-Infra zonder forfait'!F172=0,1,2),"") ->  | G134: 0
A135: ='1B-Infra zonder forfait'!B173 -> 0 | D135: ='1B-Infra zonder forfait'!E173 -> 0 | E135: ='1B-Infra zonder forfait'!H173 -> 0 | F135: =IF(D135>0,IF('1B-Infra zonder forfait'!F173=0,1,2),"") ->  | G135: 0
A136: ='1B-Infra zonder forfait'!B174 -> 0 | D136: ='1B-Infra zonder forfait'!E174 -> 0 | E136: ='1B-Infra zonder forfait'!H174 -> 0 | F136: =IF(D136>0,IF('1B-Infra zonder forfait'!F174=0,1,2),"") ->  | G136: 0
A137: ='1B-Infra zonder forfait'!B175 -> 0 | D137: ='1B-Infra zonder forfait'!E175 -> 0 | E137: ='1B-Infra zonder forfait'!H175 -> 0 | F137: =IF(D137>0,IF('1B-Infra zonder forfait'!F175=0,1,2),"") ->  | G137: 0
A138: ='1B-Infra zonder forfait'!B176 -> 0 | D138: ='1B-Infra zonder forfait'!E176 -> 0 | E138: ='1B-Infra zonder forfait'!H176 -> 0 | F138: =IF(D138>0,IF('1B-Infra zonder forfait'!F176=0,1,2),"") ->  | G138: 0
A139: ='1B-Infra zonder forfait'!B177 -> 0 | D139: ='1B-Infra zonder forfait'!E177 -> 0 | E139: ='1B-Infra zonder forfait'!H177 -> 0 | F139: =IF(D139>0,IF('1B-Infra zonder forfait'!F177=0,1,2),"") ->  | G139: 0
A140: ='1B-Infra zonder forfait'!B178 -> 0 | D140: ='1B-Infra zonder forfait'!E178 -> 0 | E140: ='1B-Infra zonder forfait'!H178 -> 0 | F140: =IF(D140>0,IF('1B-Infra zonder forfait'!F178=0,1,2),"") ->  | G140: 0
A141: ='1B-Infra zonder forfait'!B179 -> 0 | D141: ='1B-Infra zonder forfait'!E179 -> 0 | E141: ='1B-Infra zonder forfait'!H179 -> 0 | F141: =IF(D141>0,IF('1B-Infra zonder forfait'!F179=0,1,2),"") ->  | G141: 0
A142: ='1B-Infra zonder forfait'!B180 -> 0 | D142: ='1B-Infra zonder forfait'!E180 -> 0 | E142: ='1B-Infra zonder forfait'!H180 -> 0 | F142: =IF(D142>0,IF('1B-Infra zonder forfait'!F180=0,1,2),"") ->  | G142: 0
A143: ='1B-Infra zonder forfait'!B181 -> 0 | D143: ='1B-Infra zonder forfait'!E181 -> 0 | E143: ='1B-Infra zonder forfait'!H181 -> 0 | F143: =IF(D143>0,IF('1B-Infra zonder forfait'!F181=0,1,2),"") ->  | G143: 0
A144: ='1B-Infra zonder forfait'!B182 -> 0 | D144: ='1B-Infra zonder forfait'!E182 -> 0 | E144: ='1B-Infra zonder forfait'!H182 -> 0 | F144: =IF(D144>0,IF('1B-Infra zonder forfait'!F182=0,1,2),"") ->  | G144: 0
A145: ='1B-Infra zonder forfait'!B183 -> 0 | D145: ='1B-Infra zonder forfait'!E183 -> 0 | E145: ='1B-Infra zonder forfait'!H183 -> 0 | F145: =IF(D145>0,IF('1B-Infra zonder forfait'!F183=0,1,2),"") ->  | G145: 0
A146: ='1B-Infra zonder forfait'!B184 -> 0 | D146: ='1B-Infra zonder forfait'!E184 -> 0 | E146: ='1B-Infra zonder forfait'!H184 -> 0 | F146: =IF(D146>0,IF('1B-Infra zonder forfait'!F184=0,1,2),"") ->  | G146: 0
G147: =G128 -> 0
A148: =A118 -> (*) het cijfer in de laatste kolom duidt het onderscheid tussen: | G148: =G147 -> 0
A149: =A119 -> (1) Geen plafondprijs in opnameovereenkomst: De dagprijs na forfait stijgt niet in het eerste jaar en kan daarna elke 6 maand met max. 3 euro worden verhoogd tot de goedgekeurde prijs bereikt is. | G149: =G147 -> 0
G150: 0
A151: =A121 -> (2) Plafondprijs in opnameovereenkomst: de dagprijs na forfait kan bij ingebruikname met max. 6 euro stijgen en kan daarna ten vroegste elke 6 maand met maximaal 6 euro worden verhoogd tot de goedgekeurde prijs bereikt is. | G151: 0
G152: 0
G153: 0
A154: Formulier 2: alle zorgvormen | G154: =G157 -> 0
G155: =G154 -> 0
A156: Kamertype | C156: aantal | D156: goedgekeurde nettodagprijs (*) | E156: max. 1 jaar (*) | F156: max. nettoprijs (*) | G156: =G154 -> 0
A157: ='Formulier 2'!B200 -> 0 | C157: ='Formulier 2'!E200 -> 0 | D157: ='Formulier 2'!H200 -> 0 | E157: ='Formulier 2'!I200 -> 0 | F157: ='Formulier 2'!J200 -> 0 | G157: =IF(D157>0,1,0) -> 0
A158: ='Formulier 2'!B201 -> 0 | C158: ='Formulier 2'!E201 -> 0 | D158: ='Formulier 2'!H201 -> 0 | E158: ='Formulier 2'!I201 -> 0 | F158: ='Formulier 2'!J201 -> 0 | G158: 0
A159: ='Formulier 2'!B202 -> 0 | C159: ='Formulier 2'!E202 -> 0 | D159: ='Formulier 2'!H202 -> 0 | E159: ='Formulier 2'!I202 -> 0 | F159: ='Formulier 2'!J202 -> 0 | G159: 0
A160: ='Formulier 2'!B203 -> 0 | C160: ='Formulier 2'!E203 -> 0 | D160: ='Formulier 2'!H203 -> 0 | E160: ='Formulier 2'!I203 -> 0 | F160: ='Formulier 2'!J203 -> 0 | G160: 0
A161: ='Formulier 2'!B204 -> 0 | C161: ='Formulier 2'!E204 -> 0 | D161: ='Formulier 2'!H204 -> 0 | E161: ='Formulier 2'!I204 -> 0 | F161: ='Formulier 2'!J204 -> 0 | G161: 0
A162: ='Formulier 2'!B205 -> 0 | C162: ='Formulier 2'!E205 -> 0 | D162: ='Formulier 2'!H205 -> 0 | E162: ='Formulier 2'!I205 -> 0 | F162: ='Formulier 2'!J205 -> 0 | G162: 0
A163: ='Formulier 2'!B206 -> 0 | C163: ='Formulier 2'!E206 -> 0 | D163: ='Formulier 2'!H206 -> 0 | E163: ='Formulier 2'!I206 -> 0 | F163: ='Formulier 2'!J206 -> 0 | G163: 0
A164: ='Formulier 2'!B207 -> 0 | C164: ='Formulier 2'!E207 -> 0 | D164: ='Formulier 2'!H207 -> 0 | E164: ='Formulier 2'!I207 -> 0 | F164: ='Formulier 2'!J207 -> 0 | G164: 0
A165: ='Formulier 2'!B208 -> 0 | C165: ='Formulier 2'!E208 -> 0 | D165: ='Formulier 2'!H208 -> 0 | E165: ='Formulier 2'!I208 -> 0 | F165: ='Formulier 2'!J208 -> 0 | G165: 0
A166: ='Formulier 2'!B209 -> 0 | C166: ='Formulier 2'!E209 -> 0 | D166: ='Formulier 2'!H209 -> 0 | E166: ='Formulier 2'!I209 -> 0 | F166: ='Formulier 2'!J209 -> 0 | G166: 0
A167: ='Formulier 2'!B210 -> 0 | C167: ='Formulier 2'!E210 -> 0 | D167: ='Formulier 2'!H210 -> 0 | E167: ='Formulier 2'!I210 -> 0 | F167: ='Formulier 2'!J210 -> 0 | G167: 0
A168: ='Formulier 2'!B211 -> 0 | C168: ='Formulier 2'!E211 -> 0 | D168: ='Formulier 2'!H211 -> 0 | E168: ='Formulier 2'!I211 -> 0 | F168: ='Formulier 2'!J211 -> 0 | G168: 0
A169: ='Formulier 2'!B212 -> 0 | C169: ='Formulier 2'!E212 -> 0 | D169: ='Formulier 2'!H212 -> 0 | E169: ='Formulier 2'!I212 -> 0 | F169: ='Formulier 2'!J212 -> 0 | G169: 0
A170: ='Formulier 2'!B213 -> 0 | C170: ='Formulier 2'!E213 -> 0 | D170: ='Formulier 2'!H213 -> 0 | E170: ='Formulier 2'!I213 -> 0 | F170: ='Formulier 2'!J213 -> 0 | G170: 0
A171: ='Formulier 2'!B214 -> 0 | C171: ='Formulier 2'!E214 -> 0 | D171: ='Formulier 2'!H214 -> 0 | E171: ='Formulier 2'!I214 -> 0 | F171: ='Formulier 2'!J214 -> 0 | G171: 0
A172: ='Formulier 2'!B215 -> 0 | C172: ='Formulier 2'!E215 -> 0 | D172: ='Formulier 2'!H215 -> 0 | E172: ='Formulier 2'!I215 -> 0 | F172: ='Formulier 2'!J215 -> 0 | G172: 0
A173: ='Formulier 2'!B216 -> 0 | C173: ='Formulier 2'!E216 -> 0 | D173: ='Formulier 2'!H216 -> 0 | E173: ='Formulier 2'!I216 -> 0 | F173: ='Formulier 2'!J216 -> 0 | G173: 0
A174: ='Formulier 2'!B217 -> 0 | C174: ='Formulier 2'!E217 -> 0 | D174: ='Formulier 2'!H217 -> 0 | E174: ='Formulier 2'!I217 -> 0 | F174: ='Formulier 2'!J217 -> 0 | G174: 0
A175: ='Formulier 2'!B218 -> 0 | C175: ='Formulier 2'!E218 -> 0 | D175: ='Formulier 2'!H218 -> 0 | E175: ='Formulier 2'!I218 -> 0 | F175: ='Formulier 2'!J218 -> 0 | G175: 0
A176: (*) prijzen na eventueel infrastructuurforfait indien voorkomend | G176: =G157 -> 0
G177: =G180 -> 0
A178: 4. Andere toeslagen | G178: =$G$180 -> 0
A179: omschrijving | F179: aangevraagd | G179: =$G$180 -> 0
A180: ='Formulier 2'!B252 -> 0 | F180: ='Formulier 2'!K252 -> 0 | G180: =IF(F180>0,1,0) -> 0
A181: ='Formulier 2'!B253 -> 0 | F181: ='Formulier 2'!K253 -> 0 | G181: =IF(F181>0,1,0) -> 0
A182: ='Formulier 2'!B254 -> 0 | F182: ='Formulier 2'!K254 -> 0 | G182: 0
A183: ='Formulier 2'!B255 -> 0 | F183: ='Formulier 2'!K255 -> 0 | G183: 0
A184: ='Formulier 2'!B256 -> 0 | F184: ='Formulier 2'!K256 -> 0 | G184: 0
A185: ='Formulier 2'!B257 -> 0 | F185: ='Formulier 2'!K257 -> 0 | G185: 0
A186: ='Formulier 2'!B258 -> 0 | F186: ='Formulier 2'!K258 -> 0 | G186: 0
A187: ='Formulier 2'!B259 -> 0 | F187: ='Formulier 2'!K259 -> 0 | G187: 0
A188: ='Formulier 2'!B260 -> 0 | F188: ='Formulier 2'!K260 -> 0 | G188: 0
A189: ='Formulier 2'!B261 -> 0 | F189: ='Formulier 2'!K261 -> 0 | G189: 0
A190: ='Formulier 2'!B262 -> 0 | F190: ='Formulier 2'!K262 -> 0 | G190: 0
A191: ='Formulier 2'!B263 -> 0 | F191: ='Formulier 2'!K263 -> 0 | G191: 0
A192: ='Formulier 2'!B264 -> 0 | F192: ='Formulier 2'!K264 -> 0 | G192: 0
A193: ='Formulier 2'!B265 -> 0 | F193: ='Formulier 2'!K265 -> 0 | G193: 0
G194: =G180 -> 0
A195: 5. Kortingen | G195: =$G$197 -> 0
A196: omschrijving | F196: aangevraagd | G196: =$G$197 -> 0
A197: ='Formulier 2'!B301 -> 0 | F197: ='Formulier 2'!K301 -> 0 | G197: =IF(F197>0,1,0) -> 0
A198: ='Formulier 2'!B302 -> 0 | F198: ='Formulier 2'!K302 -> 0 | G198: =IF(F198>0,1,0) -> 0
A199: ='Formulier 2'!B303 -> 0 | F199: ='Formulier 2'!K303 -> 0 | G199: 0
A200: ='Formulier 2'!B304 -> 0 | F200: ='Formulier 2'!K304 -> 0 | G200: 0
... 20 more rows
